Workbook

Sheet spis ark (hidden)
A1: nr arkusza | B1: tematyka | C1: uwagi
A2: 1 | B2: wniosek
A3: 2 | B3: załącznik B | C3: oswiadczenie o MSP
A4: 3 | B4: załącznik H zabezpieczenia | C4: do uzgodnienia
A5: 4 | B5: załącznik oświadczenie o wykluczeniu | C5: oświadczenie że nie podlega wykluczeniu z ubiegania się o dofinansowanie na podst art. 207 Ustawy o finansach pulicznych
A6: 5 | B6: założenia i przepływy z nowego przedsięwzięcia
A7: 6 | B7: sprawozdanie uproszczone
A8: 7 | B8: założenia do projekcji z dotychczasowej działalności i przepływy łączne
A9: 3 | B9: załącznik F z danymi historycznymi i założeniami do projekcji finansowej
A10: 4 | B10: założenia KO do wstawiania przez TISE
A11: 5 | B11: projekcje i wskaźniki
A12: 6 | B12: Karta oceny wnioskodawcy
A13: 10 | B13: lista załączników dostarczonych | D13: czy kompletna

Sheet 1_wniosek
C3: Wniosek o pożyczkę w ramach Projektu Systemowego
C4: „Wsparcie inżynierii finansowej na rzecz rozwoju ekonomii społecznej”
C5: Wzór wniosku o pożyczkę w ramach Projektu Systemowego „Wsparcie inżynierii finansowanej na rzecz rozwoju ekonomii społecznej”
C6: Tytuł przedsięwzięcia | M6: proszę wypełniać wyłącznie białe pola
C7: Nazwa Wnioskodawcy
C9: Wnioskowana kwota pożyczki w PLN | F9: Wartość stopy redyskonta na dzień składania wniosku | J9: Data złożenia wniosku / format : RRRR-MM-DD/ | S9: oprocentowanie wnioskowanej pożyczki / wypełnia pracownik TISE/ | T9: =I9/2 -> 0
C10: Nazwa Programu Operacyjnego:
C11: PROGRAM OPERACYJNY KAPITAŁ LUDZKI
C12: Numer i nazwa Osi Priorytetowej:
C13: OŚ PRIORYTETOWA 1 – Zatrudnienie i integracja społeczna
C14: Numer i nazwa Działania w ramach Osi Priorytetowej:
C15: Działanie 1.4 – Wsparcie inżynierii finansowej na rzecz rozwoju ekonomii społecznej
C18: Sekcja A. Informacje o Wnioskodawcy
S19: 1 | T19: Spółdzielnia pracy; | U19: tak | X19: czy spełnia kryterium | Y19: =IFERROR((VLOOKUP(E19,T19:U24,2,FALSE)),"tak") -> tak
T20: Spółdzielnia inwalidów i niewidomych; | U20: tak
T21: Osoba prawna lub jednostka organizacyjna działające na podstawie przepisów o stosunku Państwa do Kościoła Katolickiego w Rzeczypospolitej Polskiej, o stosunku Państwa do innych kościołów i związków wyznaniowych oraz o gwarancjach wolności sumienia i wyznania, jeżeli ich cele statutowe obejmują prowadzenie działalności pożytku publicznego; | U21: tak | V21: - Organizacja pozarządowa lub podmiot wymieniony w art. 3 ust. 3 ustawy z dnia 24 kwietnia 2003 r. o pożytku publicznym i wolontariacie (Dz. U. z dnia 29 maja 2003 r. z późn. zm.), tj.:
C22: A.2. Dane teleadresowe siedziby Wnioskodawcy: | S22: 2 | T22: Spółdzielnia socjalna; | U22: tak
C23: A.2.1. Miejscowość: | S23: 3 | T23: Spółka akcyjna lub spółka z ograniczoną odpowiedzialnością lub klub sportowy, będący spółką działającą na podstawie przepisów ustawy z dnia 25 czerwca 2010 r. o sporcie (Dz. U. Nr 127, poz. 857, z późn. zm.2), która nie działa w celu osiągnięcia zysku oraz przeznacza całość dochodu na realizację celów statutowych oraz nie przeznaczają zysku do podziału między swoich udziałowców, akcjonariuszy i pracowników. | U23: tak
C24: A.2.2. Kod: | S24: 4 | U24: nie
C25: A.2.3. Ulica: | S25: 5 | T25: Organizacja pozarządowa | U25: tak
C26: A.2.4. Nr budynku/lokalu: | S26: 6 | U26: tak
C27: A.2.5. Numer telefonu: | U27: tak
C28: A.2.6. Numer faksu:
C29: A.2.7. Adres poczty elektronicznej:
C30: A.3. Dane osoby lub osób prawnie upoważnionych do reprezentowania Wnioskodawcy:
C31: A.3.1. Imię i nazwisko:
C32: A.3.2. Stanowisko:
C33: A.4. Dane personalne osoby upoważnionej do kontaktu w sprawach przedsięwzięcia :
C34: A.4.1. Imię i nazwisko:
C35: A.4.2. Stanowisko:
C36: A.4.3. Nazwa Instytucji:
C37: A.4.4. Numer telefonu:
C38: A.4.5. Numer faksu
C39: A.4.6. Adres poczty elektronicznej:
C40: A.5. Dane rejestrowe Wnioskodawcy:
C41: A.5.1. Numer KRS/CEIDG
C42: A.5.2. Numer Identyfikacji Podatkowej:
C43: A.5.3. REGON:
C44: A.5.4. PKD działalności (prosimy wymienić wszystkie występujące w dokumencie rejestrowym) | F44: Zgodnie z zał A
C45: A.5.5. Wielkość przedsiębiorstwa – zgodnie z Załącznikiem I do Rozporządzenia Komisji (WE) nr 800/2008 z dnia 6 sierpnia 2008 r. (Dz. Urz. UE L 214 z 09.08.2008 r.) | F45: Załącznik B | J45: czy spełnia kryterium | K45: tak
C46: A.5.6. Data wpisu do rejestru przedsiębiorców / format:RRRR-MM-DD/ | J46: czy spełnia kryterium | K46: =IF(U72>365,"tak","nie") -> nie
C47: A.5.7. Charakterystyka działalności Wnioskodawcy (historia, główny przedmiot działalności, podstawowe produkty i usługi oferowane na rynku, udział sprzedaży tych produktów i usług w całości przychodów ze sprzedaży):
T52: 2013-03-31
T53: 2013-04-30
T54: 2013-05-31
T55: 2013-06-30
T56: 2014-01-31
T57: 2014-02-28
T58: 2014-03-31
T59: 2014-04-30
T60: 2014-05-31
T61: 2014-06-30
T62: 2014-07-31
T63: 2014-08-31
C64: Sekcja B. Informacje o przedsięwzięciu
C65: B.1. Adres lokalizacji przedsięwzięcia :
C67: B.2. Przeznaczenie pożyczki /cel/ :
C70: B.3. Informacje finansowe:
C71: B.3.1. Planowane wydatki na realizację przedsięwzięcia:
C72: B.3.1.1.Wydatki całkowite (w PLN) | T72: tak | U72: =K9-F46 -> 0
C73: B.3.1.2.Wydatki kwalifikowalne (kwota brutto w PLN) | E73: =E72-E74 -> 0 | T73: nie | X73: czy spełnia kryterium | Z73: =IF(E9<=E73,"tak","nie") -> tak
C74: B.3.1.3. Wydatki niekwalifikowalne (w PLN) | E74: 0
C76: B.3.2.Proponowane parametry pożyczki
C77: B.3.2.1. Przewwidywana data wypłaty | D77: 2014-08-31 | E77: B.3.2.2. Okres karencji w spłacie kapitału (nie dłużej niż 6 miesięcy) | F77: 0 | G77: B.3.2.3. Okres finansowania pożyczki w miesiącach/razem z karencją/ | I77: 0
C79: B.4. Proponowany sposób spłaty pożyczki /wybierz a ,b lu c/ | R79: czy spełnia kryt poz
C80: a)Jednorazowo, do dnia | E80: Raty/zaznaczyć "x"/ | R80: =IF(F77<=6,1,0) -> 1 | S80: =IF(I77<=60,1,0) -> 1 | T80: =IF(E9<=100000,1,0) -> 1 | U80: =IF((R80+S80+T80)=3,"tak","nie") -> tak
C81: b)W ratach równych | D81: miesięcznych
D82: trzymiesięcznych
C83: c)W następujących kwotach i terminach:
C89: B.5. Prawne formy zabezpieczenia wierzytelności
C90: Obowiązkowa forma prawna zabezpieczenia spłaty pożyczki: | F90: Weksel “in blanco” wraz z deklaracja wekslową | H90: Tak | T90: miesięczne
C91: Dodatkowe proponowane formy zabezpieczenia spłaty pożyczki : | F91: nie | U91: tak, wg załącznika H
U92: nie
C93: str. 2
C95: B.6. Opis przedsięwzięcia – cel i zakres, tj.:
C96: czego dotyczy przedsięwzięcie (np. zakup maszyn i urządzeń, wartości niematerialnych i prawnych, remontów budynków, działań zmierzających do wprowadzenia nowych produktów lub usług),
C98: czy przedsięwzięcie jest zgodne z profilem prowadzonej lub przyszłej działalności | I98: tak
C99: czy zapewnia komplementarność technologiczną z istniejącym wyposażeniem, parkiem maszynowym itd., | I99: tak
C100: czy przedsięwzięcie będzie realizowane na terenie lub w budynkach, których Wnioskodawca jest właścicielem lub ma prawo do dysponowania nimi, | I100: tak
C101: jeśli nie to opissz jaki jest, będzie tytuł korzystania z budynku/terenu
C102: czy w wyniku realizacji przedsięwzięcia powstaną nowe miejsca pracy / wypełnienie pola nieobligatoryjne/ | I102: nie
C103: jeśli tak to ile łącznie | F103: kobiet | H103: mężczyzn | I103: =D103-G103 -> 0
C104: czy w wyniku realizacji przedsięwzięcia zostaną zatrudnione osoby bezrobotne, | I104: nie
C105: krótki opis rynku sprzedaży i zaopatrzenia: jaka jest konkurencja? jaki jest potencjał dostawców usług? podstawa kalkulacji przychodów z działalności gospodarczej
C107: krótki opis perspektywy działalności Wnioskodawcy w planowanym okresie spłaty pożyczki:
C111: B.7. Zasoby techniczne i przygotowanie do realizacji przedsięwzięcia, tj.:
J112: tak | U112: tak
C114: w przypadku prac budowlanych i modernizacyjnych – czy Wnioskodawca posiada pozwolenie na budowę, a jeśli nie – jaki jest termin złożenia wniosku oraz przewidywany termin uzyskania pozwolenia, | U114: nie | X114: tak, w załączeniu
C116: czy zostały już podjęte jakieś działania w celu realizacji przedsięwzięcia (podpisanie wstępnych umów z wykonawcami, projekt budowlany, szczegółowy kosztorys, uzyskanie niezbędnych pozwoleń, realizacja określonego etapu przedsięwzięcia itp.), | U116: tak, w załączeniu
U117: nie
C118: czy wymagane są inne zasoby techniczne niezbędne do realizacji przedsięwzięcia: | U118: tak,opis | X118: tak,opis
U119: nie
C122: B.8. Wydatki inwestycyjne i koszty w układzie kwartalnym i rocznym/związane z przedsięwzięciem - w okresie realizacji /(brutto w PLN):
C123: Działania | D123: Wydatki/ koszty | E123: Rok pierwszy przedsięwzięcia w ujęciu kwartalnym | I123: 2014 | J123: Rok 2 | K123: Rok 3 | L123: Rok 4 | M123: Rok 5 | N123: Rok 6 | W123: =I123 -> 2014
E124: Kwartał 1 | F124: Kwartał 2 | G124: Kwartał 3 | H124: Kwartał 4 | I124: Razem | J124: =I123+1 -> 2015 | K124: =J124+1 -> 2016 | L124: =K124+1 -> 2017 | M124: 2018 | N124: 2019 | W124: =N124 -> 2019 | AB124: Kwartał 1 | AC124: 90
E125: =I123 -> 2014 | AB125: Kwartał 2 | AC125: 180
C126: Działanie1 | D126: Wydatki inwestycyjne, np. | I126: =SUM(E126:H126) -> 0 | W126: =SUM(I126:N126) -> 0 | AB126: Kwartał 3 | AC126: 270
D127: remont ogrodu | H127: 0 | I127: 0 | W127: 0 | AB127: Kwartał 4 | AC127: 360
D128: zakup maszyny | H128: 0 | I128: 0 | W128: 0 | AB128: nie dotyczy | AC128: 0
I129: 0 | W129: 0
I130: 0 | W130: 0
I131: 0 | W131: 0
D132: Razem wydatki inwestycyjne | E132: =SUM(E126:E131) -> 0 | F132: =SUM(F126:F131) -> 0 | G132: =SUM(G126:G131) -> 0 | H132: =SUM(H126:H131) -> 0 | I132: 0 | J132: =SUM(J126:J131) -> 0 | K132: =SUM(K126:K131) -> 0 | L132: =SUM(L126:L131) -> 0 | M132: =SUM(M126:M131) -> 0 | N132: =SUM(N126:N131) -> 0 | W132: 0
D133: Inne wydatki zaliczone jako koszty,np.: | I133: 0 | W133: 0
D134: koszty eksploatacyjne - np. czynsz,zużycie materiałów i energii, transport ,podatki , opłaty, inne | H134: 0 | I134: 0 | W134: 0
D135: wynagrodzenia z narzutami | H135: 0 | W135: 0
W136: 0
W137: 0
I138: =SUM(E138:H138) -> 0 | W138: 0
D139: Razem inne wydatki | E139: =SUM(E133:E138) -> 0 | F139: =SUM(F133:F138) -> 0 | G139: =SUM(G133:G138) -> 0 | H139: =SUM(H133:H138) -> 0 | I139: 0 | J139: =SUM(J133:J138) -> 0 | K139: =SUM(K133:K138) -> 0 | L139: =SUM(L133:L138) -> 0 | M139: =SUM(M133:M138) -> 0 | N139: =SUM(N133:N138) -> 0 | W139: 0
C140: Działanie 2 | D140: Wydatki inwestycyjne, np. | I140: 0 | W140: 0
D141: zakup samochodu | I141: 0 | W141: 0
D142: zakup maszyny | I142: 0 | W142: 0
I143: 0 | W143: 0
I144: 0 | W144: 0
I145: 0 | W145: 0
D146: Razem wydatki inwestycyjne | E146: =SUM(E140:E145) -> 0 | F146: =SUM(F140:F145) -> 0 | G146: =SUM(G140:G145) -> 0 | H146: =SUM(H140:H145) -> 0 | I146: 0 | J146: =SUM(J140:J145) -> 0 | K146: =SUM(K140:K145) -> 0 | L146: =SUM(L140:L145) -> 0 | M146: =SUM(M140:M145) -> 0 | N146: =SUM(N140:N145) -> 0 | W146: 0
D147: Inne wydatki zaliczone jako koszty,np.: | I147: 0 | W147: 0
D148: koszty eksploatacyjne - np. czynsz,zużycie materiałów i energii, transport ,podatki , opłaty, inne | H148: 0 | I148: 0 | W148: 0
D149: wynagrodzenia z narzutami | I149: 0 | W149: 0
W150: 0
I151: =SUM(E151:H151) -> 0 | W151: 0
I152: =SUM(E152:H152) -> 0 | W152: 0
D153: Razem inne wydatki | E153: =SUM(E147:E152) -> 0 | F153: =SUM(F147:F152) -> 0 | G153: =SUM(G147:G152) -> 0 | H153: =SUM(H147:H152) -> 0 | I153: =SUM(E153:H153) -> 0 | J153: =SUM(J147:J152) -> 0 | K153: =SUM(K147:K152) -> 0 | L153: =SUM(L147:L152) -> 0 | M153: =SUM(M147:M152) -> 0 | N153: =SUM(N147:N152) -> 0 | W153: 0
C154: Razem wydatki i wydatki zaliczone jako koszty - wszystkich działań | E154: =E153+E146+E139+E132 -> 0 | F154: =F153+F146+F139+F132 -> 0 | G154: =G153+G146+G139+G132 -> 0 | H154: =H153+H146+H139+H132 -> 0 | I154: =SUM(E154:H154) -> 0 | J154: =J153+J146+J139+J132 -> 0 | K154: =K153+K146+K139+K132 -> 0 | L154: =L153+L146+L139+L132 -> 0 | M154: =M153+M146+M139+M132 -> 0 | N154: =N153+N146+N139+N132 -> 0 | W154: 0
C156: B.9. Struktura finansowania planowanych działąń(w PLN)
C157: Okresy | E157: =E124 -> Kwartał 1 | F157: Kwartał 2 | G157: Kwartał 3 | H157: Kwartał 4 | I157: Razem | J157: 2015 | K157: 2016 | L157: 2017 | M157: 2018 | N157: 2019 | W157: Razem
C158: Źródła finansowania przedsięwzięcia razem/ wartość wypłacanych środków w okresie/, z tego | E158: =E159+E161+E162 -> 0 | F158: 0 | G158: 0 | H158: 0 | I158: 0 | J158: 0 | K158: 0 | L158: 0 | M158: 0 | N158: 0 | W158: =SUM(I158:N158) -> 0
C159: środki własne planowane przez wnioskodawcę | H159: 0 | I159: =SUM(E159:H159) -> 0 | W159: =SUM(I159:N159) -> 0
C160: Roboczy_środki własne wnioskodawcy możliwe do wydatkowania na projekt | E160: =IF(E154>0,IF(AND((E154-E161-E162)>0,'5_projekcje'!E128>0),E154-E161-E162,0),0) -> 0 | F160: =IF(F154>0,IF(AND((F154-F161-F162)>0,'5_projekcje'!F128>0),F154-F161-F162,'5_projekcje'!E128),0) -> 0 | G160: =IF(G154>0,IF(AND((G154-G161-G162)>0,'5_projekcje'!G128>0),G154-G161-G162,'5_projekcje'!F128),0) -> 0 | H160: =IF(H154>0,IF(AND((H154-H161-H162)>0,'5_projekcje'!H128>0),H154-H161-H162,'5_projekcje'!G128),0) -> 0 | I160: =SUM(E160:H160) -> 0 | K160: =IF(K154>0,IF(AND((K154-K161-K162)>0,'5_projekcje'!K128>0),K154-K161-K162,'5_projekcje'!J128),0) -> 0 | L160: =IF(L154>0,IF(AND((L154-L161-L162)>0,'5_projekcje'!L128>0),L154-L161-L162,'5_projekcje'!K128),0) -> 0 | M160: =IF(M154>0,IF(AND((M154-M161-M162)>0,'5_projekcje'!M128>0),M154-M161-M162,'5_projekcje'!L128),0) -> 0 | N160: =IF(N154>0,IF(AND((N154-N161-N162)>0,'5_projekcje'!N128>0),N154-N161-N162,'5_projekcje'!M128),0) -> 0 | W160: =SUM(I160:N160) -> 0 | AA160: CO TO JEST? 2
C161: wnioskowana pożyczka | H161: 0 | I161: =SUM(E161:H161) -> 0 | W161: =SUM(I161:N161) -> 0
C162: "Inne"(suma carakterystyki źródeł "inne" poz poniżej) | E162: =E165+E166+E167+E168 -> 0 | F162: =F165+F166+F167+F168 -> 0 | G162: =G165+G166+G167+G168 -> 0 | H162: =H165+H166+H167+H168 -> 0 | I162: =SUM(E162:H162) -> 0 | J162: =J165+J166+J167+J168 -> 0 | K162: =K165+K166+K167+K168 -> 0 | L162: =L165+L166+L167+L168 -> 0 | M162: =M165+M166+M167+M168 -> 0 | N162: =N165+N166+N167+N168 -> 0 | W162: =SUM(I162:N162) -> 0
C164: Charakterystyka źródeł finansowania kosztów przedsięwzięcia wykazanych w wierszu „Inne” ( w PLN): | R164: przenosić nazwy okresów
C165: nazwa kredytu | D165: oprocentowanie roczne | I165: =SUM(E165:H165) -> 0
C166: kredyt 1 | D166: 0 | H166: 0 | I166: =SUM(E166:H166) -> 0 | W166: =SUM(I166:N166) -> 0
C167: kredyt 2 | I167: =SUM(E167:H167) -> 0 | W167: =SUM(I167:M167) -> 0
I168: =SUM(E168:H168) -> 0 | W168: =SUM(I168:M168) -> 0
C169: Różnica :żródła finansowania -wydatki i koszty - w każdym okresie | E169: =E158-E154 -> 0 | F169: 0 | G169: 0 | H169: 0 | I169: 0 | J169: 0 | K169: 0 | L169: 0 | M169: 0 | N169: 0
C170: Różnica :żródła finansowania -wydatki i koszty - skumulowana | E170: =E169 -> 0 | F170: =E170+F169 -> 0 | G170: 0 | H170: 0 | I170: =H170 -> 0 | J170: 0 | K170: 0 | L170: 0 | M170: 0 | N170: 0
C172: B.10. Prognoza sprzedaży z tytułu realizacji przedsięwzięcia netto w PLN :
C173: Należy przedstawić wartość sprzedaży podstawowych produktów i usług jakie będą oferowane na rynku bezpośrednio w wyniku realizacji projektu (dotyczy również przedsięwzięć , gdzie w wyniku ich realizacji zwiększy się wyłącznie wartość sprzedaży – w takim przypadku należy rozpatrywać wzrost sprzedaży).
C174: Produkt lub usługa | E174: Rok pierwszy w ujęciu kwartalnym | I174: =I157 -> Razem | J174: 2015 | K174: 2016 | L174: 2017 | M174: 2018 | N174: 2019 | W174: dodać
E175: =E157 -> Kwartał 1 | F175: =F157 -> Kwartał 2 | G175: =G157 -> Kwartał 3 | H175: =H157 -> Kwartał 4 | I175: =I123 -> 2014 | J175: Rok 2 | K175: Rok 3 | L175: Rok 4 | M175: Rok 5 | N175: Rok 6
I176: =SUM(E176:H176) -> 0
C180: Razem | E180: =SUM(E176:E179) -> 0 | F180: 0 | G180: 0 | H180: 0 | I180: 0 | J180: 0 | K180: 0 | L180: 0 | M180: 0 | N180: 0
C181: Należy przedstawić, na jakiej podstawie cena i prognozowana wielkość sprzedaży zostały skalkulowane:
C183: str 3
C184: B.11. Realizacja / prognoza przychodów i kosztów wnioskodawcy netto w PLN
C185: Okresy | E185: Rok pierwszy w ujęciu kwartalnym | I185: =I174 -> Razem | J185: 2015 | K185: 2016 | L185: 2017 | M185: 2018 | N185: 2019
E186: =E175 -> Kwartał 1 | F186: =F175 -> Kwartał 2 | G186: =G175 -> Kwartał 3 | H186: =H175 -> Kwartał 4 | S186: prognoza | T186: 1
E187: prognoza | F187: prognoza | G187: prognoza | H187: prognoza | I187: =I175 -> 2014 | J187: Rok 2 | K187: Rok 3 | L187: Rok 4 | M187: Rok 5 | N187: Rok 6 | S187: realizacja | T187: 2
C188: I. Przychody ogółem (II+III+IV+V), z tego | E188: =E189+E192+E193+E194 -> 0 | F188: 0 | G188: 0 | H188: 0 | I188: 0 | J188: 0 | K188: 0 | L188: 0 | M188: 0 | N188: 0
C189: II. Przychody z działalności gospodarczej , ze sprzedaży produktów, usług i towarów ogółem, z tego: | E189: =SUM(E190:E191) -> 0 | F189: 0 | G189: 0 | H189: 0 | I189: 0 | J189: 0 | K189: 0 | L189: 0 | M189: 0 | N189: 0
C190: z wnioskowanego przedsięwzięcia | E190: =E180 -> 0 | F190: =F180 -> 0 | G190: =G180 -> 0 | H190: =H180 -> 0 | I190: =SUM(E190:H190) -> 0 | J190: =J180 -> 0 | K190: =K180 -> 0 | L190: =L180 -> 0 | M190: =M180 -> 0 | N190: =N180 -> 0
C191: z dotychczasowej działalności | I191: =SUM(E191:H191) -> 0
C192: III. Pozostałe przychody operacyjne - razem | H192: 0 | I192: =SUM(E192:H192) -> 0
C193: IV. Przychody finansowe | I193: =SUM(E193:H193) -> 0
C194: V. Przychody z działalności statutowej | I194: =SUM(E194:H194) -> 0
E195: kw 1 | F195: kw2 | G195: kw 3 | H195: kw 4 | I195: rok 1 razem | J195: rok 2 | K195: rok 3 | L195: rok 4 | M195: rok 5 | N195: rok 5
C196: Koszty ogółem/VI+VII+pkt B8/ | E196: =E207+E197+E153+E139 -> 0 | F196: =F207+F197+F153+F139 -> 0 | G196: =G207+G197+G153+G139 -> 0 | H196: =H207+H197+H153+H139 -> 0 | I196: =SUM(E196:H196) -> 0 | J196: =J207+J197+J153+J139 -> 0 | K196: =K207+K197+K153+K139 -> 0 | L196: =L207+L197+L153+L139 -> 0 | M196: =M207+M197+M153+M139 -> 0 | N196: =N207+N197+N153+N139 -> 0
C197: VI. Koszty działalności gospodarczej ogółem , w tym: | E197: =E203+E204+E205+E206 -> 0 | F197: =F203+F204+F205+F206 -> 0 | G197: =G203+G204+G205+G206 -> 0 | H197: =H203+H204+H205+H206 -> 0 | I197: =SUM(E197:H197) -> 0 | J197: =J203+J204+J205+J206 -> 0 | K197: =K203+K204+K205+K206 -> 0 | L197: =L203+L204+L205+L206 -> 0 | M197: =M203+M204+M205+M206 -> 0 | N197: =N203+N204+N205+N206 -> 0 | T197: podział kosztów
C198: a) amortyzacja z dotychczasowych aktywów | I198: =SUM(E198:H198) -> 0 | T198: amortyzacja z dot aktywów | X198: średnia amortyzacja dla zakupionych aktywówm trwałych w %
C199: amortyzacja z planowanego przedsięwzięcia | E199: =$X$199*(E132+E146)/4 -> 0 | F199: =E199+($X$199*(F132+F146)/4) -> 0 | G199: =F199+($X$199*(G132+G146)/4) -> 0 | H199: 0 | I199: =SUM(E199:H199) -> 0 | J199: =I199+(J132+J146)*$X$199 -> 0 | K199: =J199+(K132+K146)*$X$199 -> 0 | L199: =K199+(L132+L146)*$X$199 -> 0 | M199: 0 | N199: =M199+(N132+N146)*$X$199 -> 0 | P199: ukryć | T199: koszty ekspl /czynsz energia transport | X199: 0.15
C200: b) koszty eksploatacyjne - np. czynsz,zużycie materiałów i energii, transport ,podatki , opłaty, inne | H200: 0 | I200: =SUM(E200:H200) -> 0 | T200: wynagrodzenia z narzutami
C201: c) wynagrodzenia z narzutami | H201: 0 | I201: 0
C202: d) koszt sprzedanych towarów , materiałów , usług | I202: 0
C203: Razem koszty działalności operacyjnej (a+b+c+d) | E203: =SUM(E198:E202) -> 0 | F203: =SUM(F198:F202) -> 0 | G203: =SUM(G198:G202) -> 0 | H203: =SUM(H198:H202) -> 0 | I203: 0 | J203: =SUM(J198:J202) -> 0 | K203: =SUM(K198:K202) -> 0 | L203: =SUM(L198:L202) -> 0 | M203: =SUM(M198:M202) -> 0 | N203: =SUM(N198:N202) -> 0
C204: Koszty finansowe dotyczące dotychczasowych kredytów , pożyczek | I204: 0 | T204: inne
C205: koszty finansowe dotyczące kredytów, pożyczek na planowane przedsięwzięcie | E205: ='3_Zał_F_TISE'!E50+'3_Zał_F_TISE'!E51+'3_Zał_F_TISE'!E52 -> 0 | F205: ='3_Zał_F_TISE'!F50+'3_Zał_F_TISE'!F51+'3_Zał_F_TISE'!F52 -> 0 | G205: ='3_Zał_F_TISE'!G50+'3_Zał_F_TISE'!G51+'3_Zał_F_TISE'!G52 -> 0 | H205: ='3_Zał_F_TISE'!H50+'3_Zał_F_TISE'!H51+'3_Zał_F_TISE'!H52 -> 0 | I205: 0 | J205: ='3_Zał_F_TISE'!J50+'3_Zał_F_TISE'!J51+'3_Zał_F_TISE'!J52 -> 0 | K205: ='3_Zał_F_TISE'!K50+'3_Zał_F_TISE'!K51+'3_Zał_F_TISE'!K52 -> 0 | L205: ='3_Zał_F_TISE'!L50+'3_Zał_F_TISE'!L51+'3_Zał_F_TISE'!L52 -> 0 | M205: ='3_Zał_F_TISE'!M50+'3_Zał_F_TISE'!M51+'3_Zał_F_TISE'!M52 -> 0 | N205: ='3_Zał_F_TISE'!N50+'3_Zał_F_TISE'!N51+'3_Zał_F_TISE'!N52 -> 0 | T205: razem koszty dział operacyjnej
C206: Pozostałe koszty operacyjne | I206: 0 | T206: pozostałe koszty operacyjne
C207: VII. Koszty realizacji zadań statutowych | I207: 0 | T207: koszt z dział statutowej
C210: Sekcja C. Usługi doradztwa
C211: C.1. Czy Wnioskodawca planuje skorzystanie z bezpłatnych usług doradztwa świadczonych przez … | I211: Nie | T211: Nie
C212: Jeżeli tak: | T212: Tak
C213: C.2. Ile godzin usług doradczych planuje wykorzystać Wnioskodawca | I213: 0 | T213: Zarządzanie finansami
C214: C.3. Z jakiego zakresu usług doradczych planuje skorzystać Wnioskodawca | T214: Rachunkowość
C215: Sekcja D. Deklaracje i oświadczenia Wnioskodawcy | T215: Zarządzanie zasobami ludzkimi
C216: Oświadczam, że: | N216: Tak/Nie | T216: Prawo
C217: Wszystkie informacje podane w niniejszym wniosku i załącznikach do wniosku są prawdziwe i zgodne ze stanem faktycznym i prawnym, co potwierdzam własnoręcznym podpisem. | N217: Tak | T217: Marketing
C218: Nie ciąży na mnie obowiązek zwrotu kwoty stanowiącej równowartość uzyskanej pomocy publicznej, co do której Komisja Europejska wydała decyzję o obowiązku zwrotu pomocy. | N218: Tak
C219: Jestem świadomy odpowiedzialności karnej wynikającej z art. 297 § 1 ustawy z dnia 6 czerwca 1997r. Kodeks Karny (Dz. U. z 1997 r., Nr 88, poz. 553 z późn. zm.) za składanie nierzetelnych oświadczeń, o których mowa w art. 297 § 1 ustawy oraz możliwości utraty pomocy finansowej jeśli miały one wpływ na jej przyznanie lub udzielenie. | N219: Tak | T219: Nie
C220: Projekt będzie realizowany zgodnie z ustawą z dnia 29 stycznia 2004 r. Prawo zamówień publicznych (tekst jednolity Dz. U. z 2010 r. nr 113, poz. 759 z późn. zm.). W sytuacji wyłączenia Projektu spod stosowania ustawy PZP, zobowiązuję się do ponoszenia wydatków z należytą starannością (celowo, rzetelnie, racjonalnie i oszczędnie). | N220: Tak | T220: Tak
C221: W przypadku pozytywnego rozpatrzenia niniejszego wniosku o pożyczkę na realizację przedsięwzięcia, nie naruszę zasady zakazu podwójnego finansowania, oznaczającej niedozwolone sfinansowanie całkowite lub częściowe danego wydatku dwa razy ze środków publicznych (wspólnotowych lub krajowych). | N221: Tak
C222: Deklaruję zabezpieczenie, a następnie poniesienie w całości udziału własnego na pokrycie wydatków związanych z realizacją przedsięwzięcia. | N222: Tak
C223: Zgodnie z Rozporządzeniem Rady Ministrów z dnia 29 marca 2010 r. w sprawie zakresu informacji przedstawianych przez podmiot ubiegający się o pomoc de minimis (Dz. U. z 2010 r. Nr 53, poz. 311) oraz Rozporządzeniem Ministra Rozwoju Regionalnego z dnia 20 października 2010 r. zmieniającym Rozporządzenie w sprawie udzielania pomocy publicznej w ramach PO KL (Dz. U. z 2011 r. Nr 233, poz. 1383), oświadczam, że w okresie 3 lat budżetowych poprzedzających złożenie wniosku o pożyczkę, uzyskałem pomoc de minimis o wartości: …………….. PLN. | N223: Tak
C224: Wnioskodawca przeznacza co najmniej 10% zysku lub nadwyżki bilansowej na działalność pożytku publicznego (w przypadku spółdzielni socjalnych na działalność określoną w art. 2 ust 3 ustawy o spółdzielniach socjalnych). | N224: Tak
C225: Sekcja E. Dokumenty pozwalające ocenić sytuację finansową Wnioskodawcy
C226: Do Wniosku dołączam następujące dokumenty finansowe: | J226: Tak/Nie
C227: Sprawozdania roczne / bilans i rachunek zysków i strat za ostatnie 3 lata, wraz z raportem i opinią biegłego rewidenta za ostatni lub poprzedni rok – o ile przepisy dotyczące rachunkowości nakładają na Inwestora obowiązek sporządzania takiego raportu (jeśli Inwestor prowadzi działalność krócej niż 3 lata – zobowiązany jest dostarczyć dokumentację finansową za okres działalności) | J227: Tak
C228: Sprawozdania kwartalne za ostatni okres (tj. od początku roku do kwartału poprzedzającego złożenie wniosku) | J228: Tak
C229: Sprawozdania roczne z przepływu środków pieniężnych | J229: Tak | T229: Tak
C230: Zestawienie należności i zobowiązań bilansowych oraz pozycji pozabilansowych | J230: Tak, wg załącznika | T230: Nie
C231: Zaświadczenia z Urzędu Skarbowego i Zakładu Ubezpieczeń Społecznych o niezaleganiu w płatnościach zobowiązań nie starsze niż 3 miesiące | J231: Tak | T231: Tak, wg załącznika
C233: Sekcja F. Pozostałe załączniki
C234: Do Wniosku dołączam dokumenty rejestrowe: | E234: Tak/Nie
C235: Statut / umowa podmiotu | E235: Tak
C236: NIP | E236: Tak
C237: REGON | E237: Tak
C239: Do Wniosku dołączam następujące załączniki: | E239: Tak/Nie
C240: Załącznik A – zestawienie kodów PKD (jeśli jest ich więcej niż 10) | E240: Tak
... 18 more rows

Sheet harm_pożyczki es (hidden)
F1: Harmonogram annuitetowy | U1: Harmonogram tradycyjny
O2: Założenia kredytu
C3: Formuły pomocnicze | F3: numer okresu | G3: dat końca okresu | I3: stała kwota płatności /pmt/ | J3: rata kapitału kredytu w danym okresie /ppmt/ | K3: rata odsetkowa w danym okresie /ipmt/ | L3: odsetki do zapłaty narastająco /cumipmt lub splac.ods/ | M3: kwota kredytu pozostałego do spłaty /pv/ | O3: oprocentowanie roczne | P3: ='1_wniosek'!T9 -> 0 | R3: Formuły pomocnicze | U3: numer okresu | V3: dat końca okresu | X3: rata kapitału kredytu w danym okresie | Y3: spłaty rat kred narastająco | Z3: rata odsetkowa w danym okresie | AA3: odsetki do zapłaty narastająco | AB3: kwota kredytu pozostałego do spłaty na koniec okresu | AD3: Formuły pomocnicze
C4: =P8 -> 0 | D4: 0 | F4: 0 | G4: =P6 -> 2014-08-31 | M4: =PV($P$7,C4,$I$5,0,0)*-1 ->  | O4: liczba miesięcy | P4: ='1_wniosek'!I77 -> 0 | R4: =P8 -> 0 | S4: 0 | U4: 0 | V4: =P6 -> 2014-08-31 | AB4: =P5 -> 0 | AD4: oprocentowanie | AE4: liczba okresów | AF4: data
C5: =IF(C4-1>=0,C4-1,0) -> 0 | D5: =IF(C4>0,D4+1,0) -> 0 | F5: =IF(D5=0,"",D5) ->  | G5: =IF(D5=0,"",EOMONTH(G4,$AF$8)) ->  | I5: =PMT(P7,P8,-$P$5,,0) ->  | J5: =IF(I5="","",(PPMT($P$7,D5,$P$8,-$P$5))) ->  | K5: =IPMT($P$7,F5,$P$8,-$P$5) ->  | L5: =CUMIPMT($P$7,$P$8,$P$5,1,F5,0)*-1 ->  | M5: =IF(F5>0,M4-J5,"") ->  | O5: kwota kredytu | P5: ='1_wniosek'!E9 -> 0 | R5: =IF(R4-1>=0,R4-1,0) -> 0 | S5: =IF(R4>0,S4+1,0) -> 0 | U5: 1 | V5: =IF(S5=0,"",EOMONTH(V4,$AF$8)) ->  | X5: =IF(AND(S5<=$P$9,S5>0),0,IF(S5=0,"",$AF$10)) ->  | Y5: =IF(AND(S5>$P$9,S5>0),(S5-$P$9)*$AF$10,0) -> 0 | Z5: =IF(S5=0,"",AB4*$P$7) ->  | AA5: =Z5 ->  | AB5: =IF(AND(S5<$P$9,S5>0),$AB$4,IF(S5>0,$AB$4-(S5-$P$9)*$AF$10,"")) ->  | AD5: =IF(P11=1,P3/12,0) -> 0 | AE5: =IF($P11=1,$P$4,0) -> 0
C6: 0 | D6: =IF(C5>0,D5+1,0) -> 0 | F6: =IF(D6=0,"",D6) ->  | G6: =IF(D6=0,"",EOMONTH(G5,$AF$8)) ->  | I6: =IF(D6=0,"",I5) ->  | J6: =IF(I6="","",(PPMT($P$7,D6,$P$8,-$P$5))) ->  | K6: =IF(J6="","",(IPMT($P$7,D6,$P$8,-$P$5))) ->  | L6: =IF(K6="","",(CUMIPMT($P$7,$P$8,$P$5,1,F6,0)*-1)) ->  | M6: =IF(F6>0,M5-J6,"") ->  | O6: data udostępnienia kredytu | P6: ='1_wniosek'!D77 -> 2014-08-31 | R6: 0 | S6: =IF(R5>0,S5+1,0) -> 0 | U6: =IF(S6=0,"",S6) ->  | V6: =IF(S6=0,"",EOMONTH(V5,$AF$8)) ->  | Y6: =IF(AND(S6>$P$9,S6>0),(S6-$P$9)*$AF$10,0) -> 0 | Z6: =IF(S6=0,"",AB5*$P$7) ->  | AA6: =IF(S6=0,"",AA5+Z6) ->  | AB6: =IF(AND(S6<$P$9,S6>0),$AB$4,IF(S6>0,$AB$4-(S6-$P$9)*$AF$10,"")) ->  | AD6: =IF(P12=1,P3/4,0) -> 0 | AE6: =IF($P12=1,$P$4/3,0) -> 0
C7: 0 | D7: 0 | I7: =IF(D7=0,"",I6) ->  | L7: =IF(K7="","",(CUMIPMT($P$7,$P$8,$P$5,1,F7,0)*-1)) ->  | O7: oprocentowanie w okresie | P7: =MAX(AD5:AD7) -> 0 | R7: 0 | S7: 0 | U7: =IF(S7=0,"",S7) ->  | Y7: 0 | AA7: =IF(S7=0,"",AA6+Z7) ->  | AD7: =IF(P13=1,P3,0) -> 0 | AE7: =IF($P13=1,$P$4/12,0) -> 0
C8: 0 | D8: 0 | K8: =IF(J8="","",(IPMT($P$7,D8,$P$8,-$P$5))) ->  | M8: =IF(D8>0,M7-J8,"") ->  | O8: liczba okresów | P8: =MAX(AE5:AE7) -> 0 | R8: 0 | S8: 0 | Y8: 0 | AF8: =IF(P11=1,1,IF(P12=1,3,IF(P13=1,12,0))) -> 1
C9: 0 | D9: 0 | K9: =IF(J9="","",(IPMT($P$7,D9,$P$8,-$P$5))) ->  | M9: =IF(D9>0,M8-J9,"") ->  | O9: karencja w okresach spłaty | P9: ='1_wniosek'!F77 -> 0 | R9: 0 | S9: 0 | Y9: 0 | AD9: 2012-11-30
C10: 0 | D10: 0 | O10: częstotliwość płatności | P10: wstawić " 1 " w odpowidnie pole | R10: 0 | S10: 0 | Y10: 0 | AD10: 2012-12-31 | AF10: =AB4/(P8-P9) ->  | AG10: rata kapitałowa
C11: 0 | D11: 0 | O11: miesięcznie | P11: =IF('1'!G51="x",1,0) -> 1 | R11: 0 | S11: 0 | Y11: 0 | AD11: 2013-01-31
C12: 0 | D12: 0 | O12: kwartalnie | P12: =IF('1'!G52="x",1,0) -> 0 | R12: 0 | S12: 0 | Y12: 0 | AD12: 2013-02-28 | AG12: rata kap
C13: 0 | D13: 0 | O13: rocznie | R13: 0 | S13: 0 | Y13: 0 | AD13: 2013-03-31
C14: 0 | D14: 0 | R14: 0 | S14: 0 | Y14: 0 | AD14: 2013-04-30
C15: 0 | D15: 0 | R15: 0 | S15: 0 | Y15: 0 | AD15: 2013-05-31
C16: 0 | D16: 0 | R16: 0 | S16: 0 | Y16: 0 | AD16: 2013-06-30
C17: 0 | D17: 0 | R17: 0 | S17: 0 | X17: =IF(AND(S17<=$P$9,S17>0),0,IF(S17=0,"",$AF$10)) ->  | Y17: 0 | AD17: 2013-07-31
C18: 0 | D18: 0 | R18: 0 | S18: 0 | X18: =IF(AND(S18<=$P$9,S18>0),0,IF(S18=0,"",$AF$10)) ->  | Y18: 0 | AD18: 2013-08-31
C19: 0 | D19: 0 | R19: 0 | S19: 0 | Y19: 0 | AD19: 2013-09-30
C20: 0 | D20: 0 | R20: 0 | S20: 0 | Y20: 0 | AD20: 2013-10-31
C21: 0 | D21: 0 | R21: 0 | S21: 0 | Y21: 0 | AD21: 2013-11-30
C22: 0 | D22: 0 | R22: 0 | S22: 0 | Y22: 0 | AD22: 2013-12-31
C23: 0 | D23: 0 | R23: 0 | S23: 0 | Y23: 0
C24: 0 | D24: 0 | R24: 0 | S24: 0 | Y24: 0
C25: 0 | D25: 0 | R25: 0 | S25: 0 | Y25: 0
C26: 0 | D26: 0 | R26: 0 | S26: 0 | Y26: 0
C27: 0 | D27: 0 | R27: 0 | S27: 0 | Y27: 0
C28: 0 | D28: 0 | R28: 0 | S28: 0 | Y28: 0
C29: 0 | D29: 0 | R29: 0 | S29: 0 | Y29: 0
C30: 0 | D30: 0 | R30: 0 | S30: 0 | Y30: 0
C31: 0 | D31: 0 | R31: 0 | S31: 0 | Y31: 0
C32: 0 | D32: 0 | R32: 0 | S32: 0 | Y32: 0
C33: 0 | D33: 0 | R33: 0 | S33: 0 | Y33: 0
C34: 0 | D34: 0 | R34: 0 | S34: 0 | Y34: 0
C35: 0 | D35: 0 | R35: 0 | S35: 0 | Y35: 0
C36: 0 | D36: 0 | R36: 0 | S36: 0 | Y36: 0
C37: 0 | D37: 0 | R37: 0 | S37: 0 | Y37: 0
C38: 0 | D38: 0 | R38: 0 | S38: 0 | Y38: 0
C39: 0 | D39: 0 | R39: 0 | S39: 0 | Y39: 0
C40: 0 | D40: 0 | R40: 0 | S40: 0 | Y40: 0
C41: 0 | D41: 0 | R41: 0 | S41: 0 | Y41: 0
C42: 0 | D42: 0 | R42: 0 | S42: 0 | Y42: 0
C43: 0 | D43: 0 | R43: 0 | S43: 0 | Y43: 0
C44: 0 | D44: 0 | R44: 0 | S44: 0 | Y44: 0
C45: 0 | D45: 0 | R45: 0 | S45: 0 | Y45: 0
C46: 0 | D46: 0 | R46: 0 | S46: 0 | Y46: 0
C47: 0 | D47: 0 | R47: 0 | S47: 0 | Y47: 0
C48: 0 | D48: 0 | R48: 0 | S48: 0 | Y48: 0
C49: 0 | D49: 0 | R49: 0 | S49: 0 | Y49: 0
C50: 0 | D50: 0 | R50: 0 | S50: 0 | Y50: 0
C51: 0 | D51: 0 | R51: 0 | S51: 0 | Y51: 0
C52: 0 | D52: 0 | R52: 0 | S52: 0 | Y52: 0
C53: 0 | D53: 0 | R53: 0 | S53: 0 | Y53: 0
C54: 0 | D54: 0 | R54: 0 | S54: 0 | Y54: 0
C55: 0 | D55: 0 | R55: 0 | S55: 0 | Y55: 0
C56: 0 | D56: 0 | R56: 0 | S56: 0 | Y56: 0
C57: 0 | D57: 0 | R57: 0 | S57: 0 | Y57: 0
C58: 0 | D58: 0 | R58: 0 | S58: 0 | Y58: 0
C59: 0 | D59: 0 | R59: 0 | S59: 0 | Y59: 0
C60: 0 | D60: 0 | R60: 0 | S60: 0 | Y60: 0
C61: 0 | D61: 0 | R61: 0 | S61: 0 | Y61: 0
C62: 0 | D62: 0 | R62: 0 | S62: 0 | Y62: 0
C63: 0 | D63: 0 | R63: 0 | S63: 0 | Y63: 0
C64: 0 | D64: 0 | R64: 0 | S64: 0 | Y64: 0
C65: 0 | D65: 0 | R65: 0 | S65: 0 | Y65: 0
C66: 0 | D66: 0 | R66: 0 | S66: 0 | Y66: 0
C67: 0 | D67: 0 | R67: 0 | S67: 0 | Y67: 0
C68: 0 | D68: 0 | R68: 0 | S68: 0 | Y68: 0
C69: =IF(C68-1>=0,C68-1,0) -> 0 | D69: 0 | R69: =IF(R68-1>=0,R68-1,0) -> 0 | S69: 0 | Y69: 0
C70: 0 | D70: =IF(C69>0,D69+1,0) -> 0 | F70: =IF(D70=0,"",D70) ->  | G70: =IF(D70=0,"",EOMONTH(G69,$AF$8)) ->  | J70: =IF(I70="","",(PPMT($P$7,D70,$P$8,-$P$5))) ->  | R70: 0 | S70: =IF(R69>0,S69+1,0) -> 0 | V70: =IF(S70=0,"",EOMONTH(V69,$AF$8)) ->  | Y70: =IF(AND(S70>$P$9,S70>0),(S70-$P$9)*$AF$10,0) -> 0 | Z70: =IF(S70=0,"",AB69*$P$7) ->  | AB70: =IF(AND(S70<$P$9,S70>0),$AB$4,IF(S70>0,$AB$4-(S70-$P$9)*$AF$10,"")) -> 
C71: 0 | D71: 0 | I71: =IF(D71=0,"",I70) ->  | L71: =IF(K71="","",(CUMIPMT($P$7,$P$8,$P$5,1,F71,0)*-1)) ->  | R71: 0 | S71: 0 | U71: =IF(S71=0,"",S71) ->  | Y71: 0 | AA71: =IF(S71=0,"",AA70+Z71) -> 
C72: 0 | D72: 0 | R72: 0 | S72: 0 | Y72: 0
C73: 0 | D73: 0 | K73: =IF(J73="","",(IPMT($P$7,D73,$P$8,-$P$5))) ->  | M73: =IF(D73>0,M72-J73,"") ->  | R73: 0 | S73: 0 | Y73: 0
C74: 0 | D74: 0 | R74: 0 | S74: 0 | Y74: 0
C75: 0 | D75: 0 | R75: 0 | S75: 0 | Y75: 0
C76: 0 | D76: 0 | R76: 0 | S76: 0 | Y76: 0
C77: 0 | D77: =IF(C77>0,D76+1,0) -> 0
C78: 0 | D78: 0
C79: 0 | D79: 0
C80: 0 | D80: 0
C81: 0 | D81: 0
C82: 0 | D82: 0
C83: 0 | D83: 0
C84: 0 | D84: 0
C85: 0 | D85: 0
C86: 0 | D86: 0
C87: 0 | D87: 0
C88: 0 | D88: 0
C89: 0 | D89: 0
C90: 0 | D90: 0
C91: 0 | D91: 0
C92: 0 | D92: 0
C93: 0 | D93: 0
C94: 0 | D94: 0
C95: 0 | D95: 0
C96: 0 | D96: 0
C97: 0 | D97: 0
C98: 0 | D98: 0
C99: 0 | D99: 0
C100: 0 | D100: 0
C101: 0 | D101: 0
C102: 0 | D102: 0
C103: 0 | D103: 0
C104: 0 | D104: 0
C105: 0 | D105: 0
C106: 0 | D106: 0
C107: 0 | D107: 0
C108: 0 | D108: 0

Sheet Wniosek _1 (hidden)
B3: Tytuł przedsięwzięcia
B4: Nazwa Wnioskodawcy
B5: Wnioskowana kwota pożyczki
B6: Wartość stopy redyskonta na dzień składania wniosku
B8: Sekcja A. Informacje ogólne o przedsięwzięciu
B9: A.1. Nazwa Programu Operacyjnego:
B10: PROGRAM OPERACYJNY KAPITAŁ LUDZKI
B11: A.2. Numer i nazwa Osi Priorytetowej:
B12: OŚ PRIORYTETOWA 1 – Zatrudnienie i integracja społeczna
B13: A.3. Numer i nazwa Działania w ramach Osi Priorytetowej:
B14: Działanie 1.4 – Wsparcie inżynierii finansowej na rzecz rozwoju ekonomii społecznej
B15: A.4. Dane rejestrowe Wnioskodawcy:
B16: Numer KRS/CEIDG
B17: PKD działalności (prosimy wymienić wszystkie występujące w dokumencie rejestrowym)
B18: PKD, których dotyczy projekt
B19: Wielkość przedsiębiorstwa – zgodnie z Załącznikiem I do Rozporządzenia Komisji (WE) nr 800/2008 z dnia 6 sierpnia 2008 r. (Dz. Urz. UE L 214 z 09.08.2008 r.)
B20: A.5. Skrócony opis przedsięwzięcia :
B21: Wielkość przedsiębiorstwa – zgodnie z Załącznikiem I do Rozporządzenia Komisji (WE) nr 800/2008 z dnia 6 sierpnia 2008 r. (Dz. Urz. UE L 214 z 09.08.2008 r.)
B22: A.6. Adres lokalizacji przedsięwzięcia :
B24: A.7. Informacje finansowe:
B25: A.7.1. Planowane koszty realizacji przedsięwzięcia :
B26: Koszt całkowity (w PLN)
B27: Wydatki kwalifikowalne (w PLN)
B28: Wydatki niekwalifikowalne (w PLN)
B29: A.7.2. Proponowana struktura finansowania kosztów przedsięwzięcia (źródła finansowania) w PLN - podział źródeł finansowania przedsięwzięcia , z jakich pokryte zostaną koszty kwalifikowalne w kolejnych latach.
D30: Pożyczka | E30: Środki własne Wnioskodawcy | F30: Inne | G30: Suma
B31: 2012 | C31: PLN
C32: %
B33: 2013 | C33: PLN
C34: %
B35: 2014 | C35: PLN
C36: %
B37: 2015 | C37: PLN
C38: %
B39: Razem | C39: PLN
C40: %
B42: Charakterystyka źródeł finansowania kosztów przedsięwzięcia wykazanych w kolumnie „Inne”:
B44: A.8. Proponowany sposób spłaty pożyczki
C45: Jednorazowo, do dnia | F45: format DD.MM.RRRR
C46: W ratach
B47: Liczba rat | E47: Raty: | F47: miesięczne | G47: trzymiesięczne
C48: W następujących kwotach i terminach:
B49: Lp. | C49: Kwota (w tys. PLN) | F49: Do dnia
B50: 1 | F50: format DD.MM.RRRR | J50: zmienić uwzglednić harmon automat lub nierówne raty
B51: 2 | F51: format DD.MM.RRRR
B52: 3 | F52: format DD.MM.RRRR
B53: 4 | F53: format DD.MM.RRRR
B54: 5 | F54: format DD.MM.RRRR
B55: … | F55: format DD.MM.RRRR
B56: Okres karencji w spłacie kapitału (nie dłużej niż 6 miesięcy) | F56: ilość miesięcy:
B57: Źródła spłaty pożyczki przed zakończeniem realizacji przedsięwzięcia :
B60: A.9. Prawne formy zabezpieczenia wierzytelności
B61: Obowiązkowa forma prawna zabezpieczenia spłaty Pożyczki:
B62: Weksel “in blanco” wraz z deklaracja wekslową | E62: tak | M62: tak
B63: Inne proponowane formy prawne rzeczowego zabezpieczenia spłaty pożyczki (jakie, wartość): | M63: nie
B66: Sekcja B. Informacje o Wnioskodawcy
B67: B.1. Nazwa Wnioskodawcy:
B68: B.2. Forma prawna:
B69: B.3. Numer Identyfikacji Podatkowej:
B70: B.3.1. REGON:
B71: B.4. Dane teleadresowe siedziby Wnioskodawcy:
B72: B.4.1. Miejscowość:
B73: B.4.2. Kod:
B74: B.4.3. Ulica:
B75: B.4.4. Nr budynku/lokalu:
B76: B.4.5. Numer telefonu:
B77: B.4.6. Numer faksu:
B78: B.4.7. Adres poczty elektronicznej:
B79: B.5. Dane osoby lub osób prawnie upoważnionych do reprezentowania Wnioskodawcy:
B80: Imię i nazwisko:
B81: Stanowisko:
B82: B.6. Dane personalne osoby upoważnionej do kontaktu w sprawach przedsięwzięcia :
B83: B.6.1. Imię i nazwisko:
B84: B.6.2. Stanowisko:
B85: B.6.3. Nazwa Instytucji:
B86: B.6.4. Numer telefonu:
B87: B.6.5. Numer faksu
B88: B.6.6. Adres poczty elektronicznej:
B89: B.7. Charakterystyka działalności Wnioskodawcy (historia, główny przedmiot działalności, podstawowe produkty i usługi oferowane na rynku, udział sprzedaży tych produktów i usług w całości przychodów ze sprzedaży):

Sheet 1 (hidden)
A1: 1
B2: Wniosek o pożyczkę w ramach Projektu Systemowego
B3: „Wsparcie inżynierii finansowej na rzecz rozwoju ekonomii społecznej”
B4: Metryka
B5: Tytuł przedsięwzięcia
B6: Nazwa Wnioskodawcy
B7: Wnioskowana kwota pożyczki
B8: Wartość stopy redyskonta na dzień składania wniosku | C8: 0.035 | E8: data złożenia wniosku | G8: 2013-04-30 | O8: oprocentowanie wnioskowanej pożyczki / wypełnia pracownik TISE/ | P8: =C8/2 -> 0.0175
B9: Sekcja A. Informacje ogólne o przedsięwzięciu
B10: A.1. Nazwa Programu Operacyjnego:
B11: PROGRAM OPERACYJNY KAPITAŁ LUDZKI
B12: A.2. Numer i nazwa Osi Priorytetowej:
B13: OŚ PRIORYTETOWA 1 – Zatrudnienie i integracja społeczna
B14: A.3. Numer i nazwa Działania w ramach Osi Priorytetowej:
B15: Działanie 1.4 – Wsparcie inżynierii finansowej na rzecz rozwoju ekonomii społecznej
B16: A.4. Dane rejestrowe Wnioskodawcy:
B17: Numer KRS/CEIDG
B18: PKD działalności (prosimy wymienić wszystkie występujące w dokumencie rejestrowym) | C18: Zgodnie z zał A
B19: PKD, których dotyczy projekt
B20: Wielkość przedsiębiorstwa – zgodnie z Załącznikiem I do Rozporządzenia Komisji (WE) nr 800/2008 z dnia 6 sierpnia 2008 r. (Dz. Urz. UE L 214 z 09.08.2008 r.) | C20: Załącznik B | D20: tak/nie | E20: czy spełnia kryterium
B21: Data wpisu do rejestru przedsiębiorców: | C21: 2011-11-11 | E21: czy spełnia kryterium | G21: =IF(O21>365,"tak","nie") -> tak | O21: =G8-C21 -> 536
B22: A.5. Skrócony opis przedsięwzięcia :
B24: A.6. Adres lokalizacji przedsięwzięcia : | C24: wypełniać jeśli inny niż adres firmy/zmiana/
B26: A.7. Informacje finansowe:
B27: A.7.1. Planowane /wydatki/ realizacji przedsięwzięcia:
B28: Koszt całkowity (w PLN) | C28: 100
B29: Wydatki kwalifikowalne (w PLN) | C29: =C28-C30 -> 0 | E29: czy spełnia kryterium | G29: =IF(D42<C29,"tak","nie") -> nie
B30: Wydatki niekwalifikowalne (w PLN) | C30: 100 | E30: czy nie zmienić def
B31: A.7.2. Proponowana struktura finansowania wydatków przedsięwzięcia (źródła finansowania) w PLN - podział źródeł finansowania przedsięwzięcia, z jakich pokryte zostaną koszty kwalifikowalne w kolejnych latach. | I31: sprawdzic
D33: Pożyczka | E33: Przewidywana data wypłaty | F33: Środki własne Wnioskodawcy | G33: Inne | H33: Suma
B34: 2013 | C34: PLN | D34: 100000 | E34: 2013-06-30 | I34: wazny czas wydatkowania / na ogół 1 rok/ | P34: 2013-03-31
C35: % | E35: x | P35: 2013-04-30
B36: 2014 | C36: PLN | I36: czas spłaty inny | P36: 2013-05-31
C37: % | E37: x | P37: 2013-06-30
B38: 2015 | C38: PLN | P38: 2013-07-31
C39: % | E39: x | P39: 2013-08-31
B40: 2016 | C40: PLN | P40: 2013-09-30
C41: % | E41: x | P41: 2013-10-31
B42: Razem | C42: PLN | P42: 2013-11-30
C43: % | E43: x | P43: 2013-12-31
B46: Charakterystyka źródeł finansowania kosztów przedsięwzięcia wykazanych w kolumnie „Inne”:
B48: A.8. Proponowany sposób spłaty pożyczki/wybierz a ,b lu c | I48: brak proponowanego sposobu wypłaty np. w 2 transzach
C49: a)Jednorazowo, do dnia | F49: format DD.MM.RRRR
B50: W ratach równych | H50: w ratach równych - automat liczenia
B51: b)Liczba rat/okres finansowania pożyczka/ w miesiącach | D51: 60 | E51: Raty/zaznaczyć "x"/ | F51: miesięczne | G51: x | P51: miesięczne
F52: trzymiesięczne
C53: c)W następujących kwotach i terminach: | P53: trzymiesięczne
B54: Lp. | C54: Kwota (w tys. PLN) | F54: Do dnia
B55: 1 | F55: format DD.MM.RRRR
B56: 2 | F56: format DD.MM.RRRR
B57: 3 | F57: format DD.MM.RRRR
B58: 4 | F58: format DD.MM.RRRR
B59: 5 | F59: format DD.MM.RRRR
B60: … | F60: format DD.MM.RRRR
B61: Okres karencji w spłacie kapitału (nie dłużej niż 6 miesięcy) | G61: 6 | H61: max 6 mcy
B62: Źródła spłaty pożyczki przed zakończeniem realizacji przedsięwzięcia : | H62: dochody z działalności gospodarczej
B65: A.9. Prawne formy zabezpieczenia wierzytelności
B66: Obowiązkowa forma prawna zabezpieczenia spłaty pożyczki:
B67: Weksel “in blanco” wraz z deklaracja wekslową | C67: Tak | O67: tak, wg załacznika | Q67: rodzaj | R67: wartość
B68: Inne proponowane formy prawne rzeczowego zabezpieczenia spłaty pożyczki (jakie, wartość): | C68: tak, wg załacznika | O68: nie
B70: Sekcja B. Informacje o Wnioskodawcy | D70: dołączyć z A4 | E70: przerobić
B71: B.1. Nazwa Wnioskodawcy:
B72: B.2. Forma prawna: | D72: lista rozwijana - powinna uwzględniać kryteria prawne/ przenieść z przewodnika/ | K72: inne opisz
B73: B.3. Numer Identyfikacji Podatkowej:
B74: B.3.1. REGON:
B75: B.4. Dane teleadresowe siedziby Wnioskodawcy:
B76: B.4.1. Miejscowość:
B77: B.4.2. Kod:
B78: B.4.3. Ulica:
B79: B.4.4. Nr budynku/lokalu:
B80: B.4.5. Numer telefonu:
B81: B.4.6. Numer faksu:
B82: B.4.7. Adres poczty elektronicznej:
B83: B.5. Dane osoby lub osób prawnie upoważnionych do reprezentowania Wnioskodawcy:
B84: Imię i nazwisko: | O84: Zgodnie z KRS lub innym prawnym umocowaniem
B85: Stanowisko:
B86: B.6. Dane personalne osoby upoważnionej do kontaktu w sprawach przedsięwzięcia :
B87: B.6.1. Imię i nazwisko: | G87: więcej miejsca | I87: te osoby muszą wypełnić zał c i d/ wziąć od Teresy
B88: B.6.2. Stanowisko:
B89: B.6.3. Nazwa Instytucji:
B90: B.6.4. Numer telefonu:
B91: B.6.5. Numer faksu
B92: B.6.6. Adres poczty elektronicznej:
B93: B.7. Charakterystyka działalności Wnioskodawcy (historia, główny przedmiot działalności, podstawowe produkty i usługi oferowane na rynku, udział sprzedaży tych produktów i usług w całości przychodów ze sprzedaży):
B95: Sekcja C. Opis i cele przedsięwzięcia
B96: C.1. Opis przedsięwzięcia – cel i zakres, tj.:
B97: czego dotyczy przedsięwzięcie (np. zakup maszyn i urządzeń, wartości niematerialnych i prawnych, remontów budynków, działań zmierzających do wprowadzenia nowych produktów lub usług), | I97: doładnie co chcemy kupić
B98: czy przedsięwzięcie jest zgodne z profilem prowadzonej lub przyszłej działalności i czy zapewnia komplementarność technologiczną z istniejącym wyposażeniem, parkiem maszynowym itd., | I98: zautomatyzować w miarę mozliwości
B99: czy przedsięwzięcie będzie realizowane na terenie lub w budynkach, których Wnioskodawca jest właścicielem lub ma prawo do dysponowania nimi,
B100: czy w wyniku realizacji przedsięwzięcia powstaną nowe miejsca pracy (jeśli tak to ile, w podziale na mężczyzn i kobiety), | H100: zautomatyz
B101: czy w wyniku realizacji przedsięwzięcia zostaną zatrudnione osoby bezrobotne, | J101: to są intencje
B102: krótki opis rynku sprzedaży i zaopatrzenia: jaka jest konkurencja? jaki jest potencjał dostawców usług? | J102: badamy przygotowanie wnioskodawcy
B103: krótki opis perspektywy działalności Wnioskodawcy w planowanym okresie spłaty pożyczki:
B107: C.2. Zasoby techniczne i przygotowanie do realizacji przedsięwzięcia, tj.:
B108: czy Wnioskodawca posiada pomieszczenia niezbędne do zlokalizowania w nich nabywanych środków trwałych/realizacji przedsięwzięcia, | I108: zautomatyzować w miarę mozliwości
B109: w przypadku prac budowlanych i modernizacyjnych – czy Wnioskodawca posiada pozwolenie na budowę, a jeśli nie – jaki jest termin złożenia wniosku oraz przewidywany termin uzyskania pozwolenia, | I109: tak załącz
B110: czy zostały już podjęte jakieś działania w celu realizacji przedsięwzięcia (podpisanie wstępnych umów z wykonawcami, projekt budowlany, szczegółowy kosztorys, uzyskanie niezbędnych pozwoleń, realizacja określonego etapu przedsięwzięcia itp.),
B111: czy wymagane są inne zasoby techniczne niezbędne do realizacji przedsięwzięcia: | I111: tak opisz/ np. pozwolenia na budowę/
B115: C.3. Zakres rzeczowy przedsięwzięcia/dotyczy nakładów inwest i kosztów zwiazanych z projektem/
B117: Należy określić harmonogram realizacji zakresu rzeczowego przedsięwzięcia, w tym działań objętych wkładem własnym, bez których realizacja projektu nie będzie mogła nastąpić./wydatków kwalifikowanych i niekwalifikowanych/
B118: Planowany termin rozpoczęcia i zakończenia realizacji zadań | E118: Od rrrr-mm-dd:
E119: Do rrrr-mm-dd:
B120: Działanie | C120: Okres realizacji | D120: Opis | E120: Wartość netto | F120: Wartość brutto
C121: od… do…
B122: Działanie 1 | G122: ztrudn osób | I122: etapy działania ale całe przeds może buć jednym działaniem / np. remont zatrudnienie osób/
B123: Działanie 2 | I123: to jest zakres rzeczowy całego przeds/ w tym zak inwest/
B124: Działanie 3
B125: Działanie 4
B126: Działanie 5
B127: Działanie 6
B128: … | K128: c3-c4=koszty?
D129: Razem:
B131: C.4 Nakłady inwestycyjne w układzie kwartalnym i rocznym/związane z przedsięwzięciem/:
B133: Należy podać kwoty wydatków inwestycyjnych w podziale na podstawowe grupy oraz na poszczególne lata. W przypadku pierwszych 12 miesięcy należy podać kwoty w układzie kwartalnym i określić, jaki zakres dat obejmuje pierwszy kwartał.
B134: Wydatek inwestycyjny | C134: Rok pierwszy w ujęciu kwartalnym | G134: Rok 2014 | H134: Rok 2015 | I134: Rok 2016 | J134: Rok 2017
C135: Kwartał 1 | D135: Kwartał 2 | E135: Kwartał 3 | F135: Kwartał 4
C136: Od mm/rr: | K136: rok 2, 3 …
C138: Do mm/rr:
B140: zakup maszyny | D140: 50000 | K140: koszty w to nie wchodą/
B141: zakup samochodu | E141: 30000
B147: Razem | C147: =SUM(C140:C146) -> 0 | D147: =SUM(D140:D146) -> 50000 | E147: 30000 | F147: 0 | G147: 0 | H147: 0 | I147: 0 | J147: 0
B148: C.5 Prognoza sprzedaży z tytułu realizacji przedsięwzięcia : | L148: sprzedaż tylko z tytułu przedsięwzięcia/ a nie cała sprzedaż/
B149: Należy przedstawić wartość sprzedaży podstawowych produktów i usług jakie będą oferowane na rynku bezpośrednio w wyniku realizacji projektu (dotyczy również przedsięwzięć , gdzie w wyniku ich realizacji zwiększy się wyłącznie wartość sprzedaży – w takim przypadku należy rozpatrywać wzrost sprzedaży).
B150: Produkt lub usługa | C150: Rok pierwszy w ujęciu kwartalnym | G150: Rok 2013 | H150: Rok 2014 | I150: Rok 2015 | J150: Rok 2016 | K150: Rok 2017
C151: Kwartał 1 | D151: Kwartał 2 | E151: Kwartał 3 | F151: Kwartał 4 | L151: prognoza na 60 mcy/ dostawić np. kw 2018/
C152: Od mm/rr:
C153: Do mm/rr:
C154: 50 | D154: 50 | E154: 50 | F154: 50 | G154: =F154+D154+C154+E154 -> 200 | H154: 200 | I154: 200 | J154: 200 | K154: 200 | L154: stąd przechodzi dalej do ark 5
B161: Razem
B162: Należy przedstawić, na jakiej podstawie cena i prognozowana wielkość sprzedaży zostały skalkulowane: | L162: np. kontrakty/trudne do realizacji, trend historyczny/
B163: Sekcja D. Usługi doradztwa
B164: D.1. Czy Wnioskodawca planuje skorzystanie z bezpłatnych usług doradztwa świadczonych przez … | C164: Nie | D164: lista rozwijana | P164: Nie
B165: Jeżeli tak: | P165: Tak
B166: D.2. Ile godzin usług doradczych planuje wykorzystać Wnioskodawca | D166: jeśli >30 to czerwone
B167: D.3. Z jakiego zakresu usług doradczych planuje skorzystać Wnioskodawca | L167: lista rozwijana
B168: Sekcja E. Deklaracje i oświadczenia Wnioskodawcy
B169: Oświadczam, że: | C169: Tak | D169: Nie
B170: Wszystkie informacje podane w niniejszym wniosku i załącznikach do wniosku są prawdziwe i zgodne ze stanem faktycznym i prawnym, co potwierdzam własnoręcznym podpisem.
B171: Nie ciąży na mnie obowiązek zwrotu kwoty stanowiącej równowartość uzyskanej pomocy publicznej, co do której Komisja Europejska wydała decyzję o obowiązku zwrotu pomocy.
B172: Jestem świadomy odpowiedzialności karnej wynikającej z art. 297 § 1 ustawy z dnia 6 czerwca 1997r. Kodeks Karny (Dz. U. z 1997 r., Nr 88, poz. 553 z późn. zm.) za składanie nierzetelnych oświadczeń, o których mowa w art. 297 § 1 ustawy oraz możliwości utraty pomocy finansowej jeśli miały one wpływ na jej przyznanie lub udzielenie.
B173: Projekt będzie realizowany zgodnie z ustawą z dnia 29 stycznia 2004 r. Prawo zamówień publicznych (tekst jednolity Dz. U. z 2010 r. nr 113, poz. 759 z późn. zm.). W sytuacji wyłączenia Projektu spod stosowania ustawy PZP, zobowiązuję się do ponoszenia wydatków z należytą starannością (celowo, rzetelnie, racjonalnie i oszczędnie). | E173: że będzie zgodnie z ustawą a ustawa precyzuje
B174: W przypadku pozytywnego rozpatrzenia niniejszego wniosku o pożyczkę na realizację przedsięwzięcia, nie naruszę zasady zakazu podwójnego finansowania, oznaczającej niedozwolone sfinansowanie całkowite lub częściowe danego wydatku dwa razy ze środków publicznych (wspólnotowych lub krajowych).
B175: Deklaruję zabezpieczenie, a następnie poniesienie w całości udziału własnego na pokrycie wydatków związanych z realizacją przedsięwzięcia. | C175: tak deklaruję
B176: Zgodnie z Rozporządzeniem Rady Ministrów z dnia 29 marca 2010 r. w sprawie zakresu informacji przedstawianych przez podmiot ubiegający się o pomoc de minimis (Dz. U. z 2010 r. Nr 53, poz. 311) oraz Rozporządzeniem Ministra Rozwoju Regionalnego z dnia 20 października 2010 r. zmieniającym Rozporządzenie w sprawie udzielania pomocy publicznej w ramach PO KL (Dz. U. z 2011 r. Nr 233, poz. 1383), oświadczam, że w okresie 3 lat budżetowych poprzedzających złożenie wniosku o pożyczkę, uzyskałem pomoc de minimis o wartości: …………….. PLN. | C176: 0 | D176: nie | E176: zał E | F176: ta poz tez jest pmoca de min
B177: Wnioskodawca przeznacza co najmniej 10% zysku lub nadwyżki bilansowej na działalność pożytku publicznego (w przypadku spółdzielni socjalnych na działalność określoną w art. 2 ust 3 ustawy o spółdzielniach socjalnych). | E177: to jest warunek skorzystania z obniżonego oprocentowania, chodzi o zasadę/ w polityce rachunkowości?/
B178: Sekcja F. Dokumenty pozwalające ocenić sytuację finansową Wnioskodawcy
B179: Do Wniosku dołączam następujące dokumenty finansowe: | C179: Tak | D179: Nie
B180: F.1. Wnioskodawca prowadzący uproszczoną księgowość:
B181: Zeznania podatkowe za ostatnie 3 lata oraz za ostatni okres, tj. od początku roku do miesiąca poprzedzającego złożenie wniosku (jeśli Inwestor prowadzi działalność krócej niż 3 lata – zobowiązany jest dostarczyć dokumentację finansową za okres działalności) | E181: lista rozw
B182: Analityczne sprawozdania finansowe oraz zestawienie należności i zobowiązań sporządzone na formularzu wymaganym przez Pośrednika Finansowego
B183: Zaświadczenia z Urzędu Skarbowego i Zakładu Ubezpieczeń Społecznych o niezaleganiu w płatnościach zobowiązań nie starsze niż 3 miesiące
B184: F.2. Wnioskodawca prowadzący pełną sprawozdawczość finansową:
B185: Sprawozdania roczne / bilans i rachunek zysków i strat za ostatnie 3 lata, wraz z raportem i opinią biegłego rewidenta za ostatni lub poprzedni rok – o ile przepisy dotyczące rachunkowości nakładają na Inwestora obowiązek sporządzania takiego raportu (jeśli Inwestor prowadzi działalność krócej niż 3 lata – zobowiązany jest dostarczyć dokumentację finansową za okres działalności) | E185: czy 3 lata? | F185: kom w przyp prowadzenia działalności dłużej niż 3 lata obroroowe
B186: Sprawozdania kwartalne za ostatni okres (tj. od początku roku do kwartału poprzedzającego złożenie wniosku) | E186: ważne | F186: na dzień ostatni zakończony kwartał? | I186: sprawozd statystyczne o ile mają obowiązek
B187: Sprawozdania roczne z przepływu środków pieniężnych
B188: Sprawozdanie roczne o stanie i rachunku środków własnych
B189: Zestawienie należności i zobowiązań bilansowych oraz pozycji pozabilansowych
B190: Zaświadczenia z Urzędu Skarbowego i Zakładu Ubezpieczeń Społecznych o niezaleganiu w płatnościach zobowiązań nie starsze niż 3 miesiące | E190: warunek podst
B191: Sekcja G. Informacje pozwalające ocenić rentowność przedsięwzięcia | H191: tu ocena rentowności czyli progn rzis - z przedsięwzięcia- to powinno być spójne z zakł 5 1 rok
B192: Forma opodatkowania: | C192: Podatek liniowy | D192: Skala podatkowa
B193: Stawka podatku:
B194: G.1. Prognoza wpływów w ciągu 12 miesięcy po realizacji przedsięwzięcia : | F194: 12 mcy po realizacji przedsięwzięcia
B195: Ze sprzedaży produktów
B196: w tym z nowego przeds
B197: Ze sprzedaży usług
B198: Ze sprzedaży towarów i materiałów | F198: wpływy z nalezności
B199: Razem
B200: G.2. Prognoza wydatków działalności gospodarczej w ciągu 12 miesięcy po realizacji przedsięwzięcia : | F200: łącznie
B201: Zakup towaru do handlu
B202: Zakupy surowców/materiałów części zamiennych
B203: Wynagrodzenia pracowników
B204: Narzuty na wynagrodzenia pracowników | F204: zobo publ prawne związane z wynagrodzeniem pracowników
B205: Koszt najmu lokalu lub podatek od nieruchomości
B206: Transport
B207: Energia, co, gaz, woda,
B208: Usługi zewnętrzne (np. księgowość, ochrona)
B209: Reklama, poczta, Internet, telefon
B210: Ubezpieczenie PES
B211: Opłaty skarbowe, administracyjne, licencje, koncesje
B212: Pozostałe koszty (wymienić w uzasadnieniu jakie)
B213: Razem
B214: Spłata pożyczki wraz z odsetkami
B215: Zysk przed opodatkowaniem
B216: Kwota podatku dochodowego
B217: Zysk z działalności gospodarczej PES | F217: czy wynik z przepływów? | H217: czy rentowność
B219: Sekcja H. Pozostałe załączniki | H219: załącznik G
B220: Do Wniosku dołączam dokumenty rejestrowe: | C220: Tak | D220: Nie
B221: Statut / umowa podmiotu | H221: załącznik F - excell przepływy | K221: powinno być zgodne z wnioskiem / projekcje na12 mcy/
B222: NIP | K222: prognoza na cały okres spłaty pożyczki
B223: REGON | K223: przepływy - wpływy z działalności . Saldo skkumuulowane dodatnie/ na całej działalności
B225: Do Wniosku dołączam następujące załączniki: | C225: Tak | D225: Nie
B226: Załącznik A – zestawienie kodów PKD (jeśli jest ich więcej niż 10)
B227: Załącznik B – oświadczenie Zarządu dotyczące potwierdzenia, że podmiot spełnia kryteria mikro i małych przedsiębiorstw
B228: Załącznik C – oświadczenie o przetwarzaniu danych osobowych
B229: Załącznik D – zakres danych osobowych
B230: Załącznik E – formularz informacji przedstawianych przy ubieganiu się o pomoc de minimis
B231: Załącznik F – arkusz excel z przepływami finansowymi i strukturą przychodów i kosztów podmiotu
B232: Sekcja I. Informacje dla Wnioskodawcy | E232: rozszerzyć
B233: Niniejszy wniosek nie jest ofertą i nie zobowiązuje ani Towarzystwa Inwestycji Społeczno-Ekonomicznych SA, ani Wnioskodawcy do zawarcia umowy Pożyczki. Towarzystwo Inwestycji Społeczno-Ekonomicznych SA zatrzymuje oryginał wniosku wraz z załącznikami do wniosku oraz kopie wszystkich dołączonych do wniosku dokumentów – nawet, jeśli Pożyczka nie zostanie udzielona.
B234: Towarzystwo Inwestycji Społeczno-Ekonomicznych SA, jako administrator danych osobowych, w rozumieniu przepisów Ustawy o ochronie danych osobowych informuje, że w jego zbiorze danych będą przetwarzane dane osobowe osób reprezentujących Wnioskodawcę w celu wykonywania czynności, których Wnioskodawca będzie stroną. Osobom tym przysługuje prawo wglądu do swoich danych i prawo ich poprawienia.
... 8 more rows

Sheet 2 (hidden)
A1: 2 | B1: Załącznik B
B2: oswiadczenie o MSP | E2: do uzupełnienia

Sheet 2_zał_H_zabezp
B3: Załącznik H. Proponowane zabezpieczenia
B5: Lp. | C5: Rodzaj proponowanego zabezpieczenia | D5: Krótki opis proponowanego zabezpieczenia | E5: Wartość szacowana przez Wnioskodawcę w tys. zł. | F5: Ocena zbywalności/ dokonana przez Wnioskodawcę/ | G5: Wartość zweryfikowana/wypełnia TISE/ | H5: Weryfikacja oceny zbywalności - wypełnia TISE | P5: wsk zabezpieczeń | Q5: =F22/'1_wniosek'!E9 -> 
B6: I. | C6: Zabezpieczenia osobiste | F6: nie dotyczy | G6: =E6 -> 0 | H6: nie dotyczy | M6: bardzo dobra | P6: =IF(E6>0,1,0) -> 0
F7: nie dotyczy | G7: 0 | H7: bardzo dobra | M7: dobra | P7: =IF(E7>0,1,0) -> 0
F8: nie dotyczy | G8: 0 | H8: bardzo dobra | M8: średnia | P8: 0
F9: nie dotyczy | G9: 0 | H9: bardzo dobra | M9: słaba | P9: 0
F10: nie dotyczy | G10: 0 | H10: bardzo dobra | M10: bardzo słaba | P10: 0
F11: nie dotyczy | G11: 0 | H11: bardzo dobra | M11: nie dotyczy | P11: 0
F12: nie dotyczy | G12: 0 | H12: bardzo dobra | P12: 0
F13: nie dotyczy | G13: 0 | H13: bardzo dobra | P13: 0
B14: II. | C14: Zabezpieczenia rzeczowe | F14: nie dotyczy | G14: 0 | H14: bardzo dobra | P14: 0
C15: np.. przewłaszczenie maszyny | F15: nie dotyczy | G15: 0 | H15: bardzo dobra | P15: 0
F16: nie dotyczy | G16: 0 | H16: bardzo dobra | P16: 0
F17: nie dotyczy | G17: 0 | H17: bardzo dobra | P17: 0
F18: nie dotyczy | G18: 0 | H18: bardzo dobra | P18: 0
F19: nie dotyczy | G19: 0 | H19: bardzo dobra | P19: 0
F20: nie dotyczy | G20: 0 | H20: bardzo dobra | P20: 0
F21: nie dotyczy | G21: 0 | H21: bardzo dobra | P21: 0
F22: =SUM(G6:G21) -> 0 | P22: =SUM(P6:P21) -> 0
C23: „Projekt jest współfinansowany ze środków Unii Europejskiej w ramach Europejskiego Funduszu Społecznego”.

Sheet 3_Zał_F_dane fin i zał_klient
C2: Załącznik F. Dane finansowe i założenia
A3: I. | C3: Uproszczone sprawozdania z dotychczasowej działalności
C4: Bilans | I4: Uproszczony Rachunek zysków i strat | M4: Struktura nalezności i zobowiązań
C5: Aktywa | D5: 2013 | E5: Pasywa | G5: =D5 -> 2013 | I5: rzis | K5: =G5 -> 2013 | M5: Wyszczególnienie | N5: koniec roku | O5: koniec kw … | S5: 2012 | T5: 360 | U5: =VLOOKUP(D5,S5:T11,2,FALSE) -> 360
C6: Aktywa trwałe | E6: Kapitały własne | G6: =D15-G8-G9-G12-G13-G14 -> 0 | I6: I. Przychody ogółem (II+III+IV+V), z tego | K6: =SUM(K7:K10) -> 0 | M6: Nalezności ogółem , z tego | S6: I kw 2013 | T6: 90
C7: Zapasy | E7: w tym wynik netto | G7: =K21 -> 0 | I7: II. Przychody z działalności gospodarczej , ze sprzedaży produktów, usług i towarów ogółem | M7: nieprzeterminowane | S7: II kw 2013 | T7: 180
C8: Należności | D8: =D9+D10 -> 0 | E8: Dług oprocentowany długoterminowy/ kredyty pożyczki , leasingi/ | I8: III. Pozostałe przychody operacyjne | M8: przeterminowane , w tym | N8: 0 | S8: III kw 2013 | T8: 270
C9: od odbiorców /handlowe/ | E9: Zobowiązania krótkoterminowe | G9: =G10+G11 -> 0 | I9: IV. Przychody finansowe | M9: 90-120 dni | S9: 2013 | T9: 360
C10: pozostałe należności | E10: - handlowe | I10: V. Przychody z działalności statutowej | M10: powyżej 120 dni | S10: I kw 2014 | T10: 90
C11: śr pieniężne | E11: - kredyty obrotowe | I11: VI. Koszty działalności gospodarczej, w tym | K11: =SUM(K12:K17) -> 0 | M11: Zobowiązania bieżące ogółem , z tego | S11: II kw 2014 | T11: 180
C12: inne składniki majątkowe | E12: Pozostałe zobowiązania | I12: amortyzacja | M12: nieprzeterminowane
E13: Inne pasywa krótkoterminowe | I13: koszty eksploatacyjne - np. czynsz,zużycie materiałów i energii, transport ,podatki , opłaty, inne | M13: przeterminowane , w tym
E14: Inne pasywa długoterminowe | I14: wynagrodzenia z narzutami | M14: 90-120 dni
C15: Razem Aktywa | D15: =D6+D7+D8+D11+D12 -> 0 | E15: Razem Pasywa | G15: =G6+G8+G9+G12+G13+G14 -> 0 | I15: koszt sprzedanych towarów , materiałów , usług | M15: powyżej 120 dni
I16: Pozostałe koszty operacyjne
I17: Koszty finansowe
I18: VII. Koszty realizacji zadań statutowych
I19: Wynik na działaln nadzwyczajnej
I20: Podatek dochodowy
I21: Wynik netto | K21: =K6-K11-K18+K19-K20 -> 0
A23: II. | C23: Planowane spłaty rat kapitałowych dotychczasowych długoterminowych pożyczek / kredytów / leasingu finansowegp ogółem
E24: ='1_wniosek'!E186 -> Kwartał 1 | F24: ='1_wniosek'!F186 -> Kwartał 2 | G24: ='1_wniosek'!G186 -> Kwartał 3 | H24: ='1_wniosek'!H186 -> Kwartał 4 | I24: ='1_wniosek'!I123 -> 2014 | J24: ='1_wniosek'!J124 -> 2015 | K24: ='1_wniosek'!K124 -> 2016 | L24: ='1_wniosek'!L124 -> 2017 | M24: ='1_wniosek'!M124 -> 2018 | N24: ='1_wniosek'!N124 -> 2019
C25: Razem , z tego | E25: =SUM(E26:E28) -> 0 | F25: 0 | G25: 0 | H25: 0 | I25: 0 | J25: 0 | K25: 0 | L25: 0 | M25: 0 | N25: 0
C26: kredyt 1 | I26: =SUM(E26:H26) -> 0
C27: kredyt 2 | I27: =SUM(E27:H27) -> 0
C28: pozostałe | I28: =SUM(E28:H28) -> 0
C29: Stan kredytów i pozyczek dotychczasowych długoterminowych po planowanych spłatach
C30: Razem , z tego | D30: ='3_Zał_F_dane fin i zał_klient'!D5 -> 2013 | E30: =E24 -> Kwartał 1 | F30: =F24 -> Kwartał 2 | G30: Kwartał 3 | H30: Kwartał 4 | I30: 2014 | J30: 2015 | K30: 2016 | L30: 2017 | M30: 2018 | N30: 2019
D31: =D32+D33+D34 -> 0 | E31: =D31-E26 -> 0 | F31: =E31-F26 -> 0 | G31: 0 | H31: 0 | I31: =H31 -> 0 | J31: =SUM(J32:J34) -> 0 | K31: 0 | L31: 0 | M31: 0 | N31: 0
C32: kredyt 1 | E32: =D32-E26 -> 0 | F32: =E32-F26 -> 0 | G32: 0 | H32: 0 | I32: =H32 -> 0 | J32: =I32-J26 -> 0 | K32: 0 | L32: 0 | M32: 0 | N32: 0
C33: kredyt 2 | E33: =D33-E27 -> 0 | F33: 0 | G33: 0 | H33: 0 | I33: =H33 -> 0 | J33: 0 | K33: 0 | L33: 0 | M33: 0 | N33: 0
C34: pozostałe | E34: =D34-E28 -> 0 | F34: 0 | G34: 0 | H34: 0 | I34: 0 | J34: 0 | K34: 0 | L34: 0 | M34: 0 | N34: 0
C35: suma kontr | D35: =D34+D33+D32 -> 0 | E35: =E34+E33+E32 -> 0 | F35: 0 | G35: 0 | H35: 0 | I35: 0 | J35: 0 | K35: 0 | L35: 0 | M35: 0 | N35: 0
A37: III. | C37: Planowane spłaty rat kapitałowych pożyczek / kredytów / leasingu zaciągniętych na nowe przedsięwzięcie ogółem
C38: Razem , z tego | E38: =E30 -> Kwartał 1 | F38: =F30 -> Kwartał 2 | G38: Kwartał 3 | H38: Kwartał 4 | I38: 2014 | J38: 2015 | K38: 2016 | L38: 2017 | M38: 2018 | N38: 2019
E39: =SUM(E40:E42) -> 0 | F39: =SUM(F40:F42) -> 0 | G39: 0 | H39: 0 | I39: 0 | J39: 0 | K39: 0 | L39: 0 | M39: 0 | N39: 0
C40: pożyczka z ES | I40: =SUM(E40:H40) -> 0
C41: inne | D41: kredyt 1 | I41: =SUM(E41:H41) -> 0
C42: inne | D42: kredyt 2 | I42: =SUM(E42:H42) -> 0
C43: Stan planowanych kredytów i pozyczek po planowanych spłatach
C44: Razem , z tego | E44: =E38 -> Kwartał 1 | F44: =F38 -> Kwartał 2 | G44: Kwartał 3 | H44: Kwartał 4 | I44: 2014 | J44: 2015 | K44: 2016 | L44: 2017 | M44: 2018 | N44: 2019
E45: =SUM(E46:E47) -> 0 | F45: 0 | G45: 0 | H45: 0 | I45: 0 | J45: 0 | K45: 0 | L45: 0 | M45: 0 | N45: 0
C46: pożyczka z ES | E46: ='1_wniosek'!E161-E40 -> 0 | F46: ='1_wniosek'!F161-F40+E46 -> 0 | G46: ='1_wniosek'!G161-G40+F46 -> 0 | H46: ='1_wniosek'!H161-H40+G46 -> 0 | I46: =H46 -> 0 | J46: ='1_wniosek'!J161-J40+I46 -> 0 | K46: ='1_wniosek'!K161-K40+J46 -> 0 | L46: ='1_wniosek'!L161-L40+K46 -> 0 | M46: ='1_wniosek'!M161-M40+L46 -> 0 | N46: ='1_wniosek'!N161-N40+M46 -> 0
C47: kredyt 1 | E47: ='1_wniosek'!E166-E41 -> 0 | F47: ='1_wniosek'!F166-F41+E47 -> 0 | G47: ='1_wniosek'!G166-G41+F47 -> 0 | H47: ='1_wniosek'!H166-H41+G47 -> 0 | I47: =H47 -> 0 | J47: ='1_wniosek'!J166-J41+I47 -> 0 | K47: ='1_wniosek'!K166-K41+J47 -> 0 | L47: ='1_wniosek'!L166-L41+K47 -> 0 | M47: ='1_wniosek'!M166-M41+L47 -> 0 | N47: ='1_wniosek'!N166-N41+M47 -> 0
C48: kredyt 2 | E48: ='1_wniosek'!E167-E42 -> 0 | F48: ='1_wniosek'!F167-F42+E48 -> 0 | G48: ='1_wniosek'!G167-G42+F48 -> 0 | H48: ='1_wniosek'!H167-H42+G48 -> 0 | I48: =H48 -> 0 | J48: ='1_wniosek'!J167-J42+I48 -> 0 | K48: ='1_wniosek'!K167-K42+J48 -> 0 | L48: ='1_wniosek'!L167-L42+K48 -> 0 | M48: ='1_wniosek'!M167-M42+L48 -> 0 | N48: ='1_wniosek'!N167-N42+M48 -> 0
F49: „Projekt jest współfinansowany ze środków Unii Europejskiej w ramach Europejskiego Funduszu Społecznego”.
D50: =D31 -> 0 | E50: =E45+E31 -> 0 | F50: =F45+F31 -> 0 | G50: 0 | H50: 0 | I50: 0 | J50: 0 | K50: 0 | L50: 0 | M50: 0 | N50: 0 | O50: oprocentowanie
C51: k finansowe pożyczki es | E51: =E46*$O$51/4 -> 0 | F51: =F46*$O$51/4 -> 0 | G51: 0 | H51: 0 | I51: =SUM(E51:H51) -> 0 | J51: =J46*$O$51 -> 0 | K51: =K46*$O$51 -> 0 | L51: 0 | M51: 0 | N51: 0 | O51: ='1_wniosek'!T9 -> 0
C52: k finansowe kred 1 | E52: =E47*$O$52/4 -> 0 | F52: =F47*'1_wniosek'!$D$166/4 -> 0 | G52: =G47*'1_wniosek'!$D$166/4 -> 0 | H52: =H47*'1_wniosek'!$D$166/4 -> 0 | I52: =SUM(E52:H52) -> 0 | J52: =J47*'1_wniosek'!$D$166 -> 0 | K52: =K47*'1_wniosek'!$D$166 -> 0 | L52: =L47*'1_wniosek'!$D$166 -> 0 | M52: =M47*'1_wniosek'!$D$166 -> 0 | N52: =N47*'1_wniosek'!$D$166 -> 0 | O52: ='1_wniosek'!D166 -> 0
C53: k finansowe kred 2 | E53: =E48*'1_wniosek'!$D$167/4 -> 0 | F53: =F48*'1_wniosek'!$D$167/4 -> 0 | G53: =G48*'1_wniosek'!$D$167/4 -> 0 | H53: =H48*'1_wniosek'!$D$167/4 -> 0 | I53: 0 | J53: =J48*'1_wniosek'!$D$167 -> 0 | K53: =K48*'1_wniosek'!$D$167 -> 0 | L53: =L48*'1_wniosek'!$D$167 -> 0 | M53: =M48*'1_wniosek'!$D$167 -> 0 | N53: =N48*'1_wniosek'!$D$167 -> 0 | O53: ='1_wniosek'!D167 -> 0
J55: =J51+J52+J53 -> 0 | K55: =K51+K52+K53 -> 0 | L55: 0 | M55: 0 | N55: 0

Sheet 4 (hidden)
B2: oświadczenie że Wnioskodawca nie podlega wykluczeniu z ubiegania się o dofinansowanie na podst art. 207 Ustawy o finansach pulicznych | H2: do uzupełnienia

Sheet 5 (hidden)
A1: 5
B2: Założenia dotyczące planowanego przedsięwzięcia ( w tys. zł.) | E2: 1 kw | F2: 2 kw | G2: 3 kw | H2: 4 kw | I2: razem 1 rok | J2: 2 rok | K2: 3 rok | L2: 4 rok | M2: 5 rok | N2: 6 rok | R2: dec - ujęcie kalendarzowe
C3: liczba dni w okresie | E3: 90 | F3: 90 | G3: 90 | H3: 90 | I3: 360 | J3: 360 | K3: 360 | L3: 360 | M3: 360 | N3: 360
B4: 1. | C4: Planowane przychody ogółem, z tego: | E4: =SUM(E5:E8) -> 0 | F4: =SUM(F5:F8) -> 0 | G4: 0 | H4: 0 | I4: 0 | J4: 0 | K4: 0 | L4: 0 | M4: 0 | N4: =SUM(N5:N8) -> 0
B5: 1a. | E5: ='1_wniosek'!E180 -> 0 | F5: ='1_wniosek'!F180 -> 0 | G5: ='1_wniosek'!G180 -> 0 | H5: ='1_wniosek'!H180 -> 0 | I5: ='1_wniosek'!I180 -> 0 | J5: ='1_wniosek'!J180 -> 0 | K5: ='1_wniosek'!K180 -> 0 | L5: ='1_wniosek'!L180 -> 0 | M5: ='1_wniosek'!M180 -> 0 | N5: ='1_wniosek'!N180 -> 0
B6: 1b. | I6: =SUM(E6:H6) -> 0
B7: 1c. | I7: 0
B8: 1d. | I8: 0
B9: 2. | C9: Planowane koszty działalności operacyjnej ogółem, z tego | E9: =SUM(E10:E13) -> 0 | F9: =SUM(F10:F13) -> 0 | G9: 0 | H9: 0 | I9: 0 | J9: 0 | K9: 0 | L9: 0 | M9: 0 | N9: =SUM(N10:N13) -> 0
B10: 2a. | C10: amortyzacja | E10: ='1_wniosek'!E199 -> 0 | F10: ='1_wniosek'!F199 -> 0 | G10: ='1_wniosek'!G199 -> 0 | H10: ='1_wniosek'!H199 -> 0 | I10: ='1_wniosek'!I199 -> 0 | J10: ='1_wniosek'!J199 -> 0 | K10: ='1_wniosek'!K199 -> 0 | L10: ='1_wniosek'!L199 -> 0 | M10: ='1_wniosek'!M199 -> 0 | N10: ='1_wniosek'!N199 -> 0
B11: 2b. | C11: pozostałe koszty działalności operacyjnej
B12: 2c. | C12: koszty na realizację przedsięwzięcia | E12: ='1_wniosek'!E153+'1_wniosek'!E139 -> 0 | F12: ='1_wniosek'!F153+'1_wniosek'!F139 -> 0 | G12: ='1_wniosek'!G153+'1_wniosek'!G139 -> 0 | H12: ='1_wniosek'!H153+'1_wniosek'!H139 -> 0 | I12: ='1_wniosek'!I153+'1_wniosek'!I139 -> 0 | J12: ='1_wniosek'!J153+'1_wniosek'!J139 -> 0 | K12: ='1_wniosek'!K153+'1_wniosek'!K139 -> 0 | L12: ='1_wniosek'!L153+'1_wniosek'!L139 -> 0 | M12: ='1_wniosek'!M153+'1_wniosek'!M139 -> 0 | N12: ='1_wniosek'!N153+'1_wniosek'!N139 -> 0
B13: 2d. | I13: =SUM(E13:H13) -> 0
B16: 3. | C16: Planowane wydatki inwestycyjne / jak we wniosku ale w tys.zł. / i planowana amortyzacja w %
C17: Wydatek inwestycyjny | D17: stopa amortyzacji dla danego rodzaju zakupu inwestycyjnego / od 0% do 100%/w kwartale w którym dokonano zakupu | E17: Rok pierwszy w ujęciu kwartalnym | I17: Rok 1 | J17: Rok 2 | K17: Rok 3 | L17: Rok 4 | M17: Rok 5 | N17: Rok 6 | O17: założenia amortyzacji będą uproszczone, do wyliczeń szacunkowych / niezaleznie czy np. zakup maszyny ma miejce na początku czy na końcu kwartału amortyzacja liczona jest za cały dany kwartał
E18: Kwartał 1 | F18: Kwartał 2 | G18: Kwartał 3 | H18: Kwartał 4 | I18: razem
C21: ='1'!B140 -> zakup maszyny | D21: 1 | E21: ='1'!C140/1000 -> 0 | F21: ='1'!D140/1000 -> 50 | G21: ='1'!E140/1000 -> 0 | H21: ='1'!F140/1000 -> 0 | I21: =SUM(E21:H21) -> 50 | J21: ='1'!G140/1000 -> 0 | K21: ='1'!H140/1000 -> 0 | L21: ='1'!I140/1000 -> 0 | M21: ='1'!J140/1000 -> 0 | N21: ='1'!K140/1000 -> 
C22: ='1'!B141 -> zakup samochodu | D22: 0.05 | E22: ='1'!C141/1000 -> 0 | F22: ='1'!D141/1000 -> 0 | G22: ='1'!E141/1000 -> 30 | H22: ='1'!F141/1000 -> 0 | I22: =SUM(E22:H22) -> 30 | J22: ='1'!G141/1000 -> 0 | K22: ='1'!H141/1000 -> 0 | L22: ='1'!I141/1000 -> 0 | M22: ='1'!J141/1000 -> 0 | N22: ='1'!K141/1000 -> 0 | O22: pod spodem dać daty
C23: ='1'!B142 -> 0 | E23: ='1'!C142/1000 -> 0 | F23: ='1'!D142/1000 -> 0 | G23: ='1'!E142/1000 -> 0 | H23: ='1'!F142/1000 -> 0 | I23: 0 | J23: ='1'!G142/1000 -> 0 | K23: ='1'!H142/1000 -> 0 | L23: ='1'!I142/1000 -> 0 | M23: ='1'!J142/1000 -> 0 | N23: ='1'!K142/1000 -> 0
C24: ='1'!B143 -> 0 | E24: ='1'!C143/1000 -> 0 | F24: ='1'!D143/1000 -> 0 | G24: ='1'!E143/1000 -> 0 | H24: ='1'!F143/1000 -> 0 | I24: 0 | J24: ='1'!G143/1000 -> 0 | K24: ='1'!H143/1000 -> 0 | L24: ='1'!I143/1000 -> 0 | M24: ='1'!J143/1000 -> 0 | N24: ='1'!K143/1000 -> 0
C25: ='1'!B144 -> 0 | E25: ='1'!C144/1000 -> 0 | F25: ='1'!D144/1000 -> 0 | G25: ='1'!E144/1000 -> 0 | H25: ='1'!F144/1000 -> 0 | I25: 0 | J25: ='1'!G144/1000 -> 0 | K25: ='1'!H144/1000 -> 0 | L25: ='1'!I144/1000 -> 0 | M25: ='1'!J144/1000 -> 0 | N25: ='1'!K144/1000 -> 0
C26: ='1'!B145 -> 0 | E26: ='1'!C145/1000 -> 0 | F26: ='1'!D145/1000 -> 0 | G26: ='1'!E145/1000 -> 0 | H26: ='1'!F145/1000 -> 0 | I26: 0 | J26: ='1'!G145/1000 -> 0 | K26: ='1'!H145/1000 -> 0 | L26: ='1'!I145/1000 -> 0 | M26: ='1'!J145/1000 -> 0 | N26: ='1'!K145/1000 -> 0
C27: ='1'!B146 -> 0 | E27: ='1'!C146/1000 -> 0 | F27: ='1'!D146/1000 -> 0 | G27: ='1'!E146/1000 -> 0 | H27: ='1'!F146/1000 -> 0 | I27: 0 | J27: ='1'!G146/1000 -> 0 | K27: ='1'!H146/1000 -> 0 | L27: ='1'!I146/1000 -> 0 | M27: ='1'!J146/1000 -> 0 | N27: ='1'!K146/1000 -> 0
C28: Razem | D28: x | E28: ='1_wniosek'!E132+'1_wniosek'!E146 -> 0 | F28: ='1_wniosek'!F132+'1_wniosek'!F146 -> 0 | G28: ='1_wniosek'!G132+'1_wniosek'!G146 -> 0 | H28: ='1_wniosek'!H132+'1_wniosek'!H146 -> 0 | I28: ='1_wniosek'!I132+'1_wniosek'!I146 -> 0 | J28: ='1_wniosek'!J132+'1_wniosek'!J146 -> 0 | K28: ='1_wniosek'!K132+'1_wniosek'!K146 -> 0 | L28: ='1_wniosek'!L132+'1_wniosek'!L146 -> 0 | M28: ='1_wniosek'!M132+'1_wniosek'!M146 -> 0 | N28: ='1_wniosek'!N132+'1_wniosek'!N146 -> 0
B30: 4. | C30: Planowane źródła finansowania inwestycji | D30: planowane oprocentowanie kredytów, pożyczek | E30: planowane kwoty w tys. zł.
C31: Planowane zaciagnięcie nowych kredytów, pożyczek razem, z tego | D31: x | E31: =SUM(E32:E34) -> 0 | F31: 0 | G31: 0 | H31: 0 | I31: 0 | J31: 0 | K31: 0 | L31: 0 | M31: 0 | N31: =SUM(N32:N34) -> 0
C32: pożyczka z es | D32: ='1'!P8 -> 0.0175 | E32: ='1_wniosek'!E161 -> 0 | F32: ='1_wniosek'!F161 -> 0 | G32: ='1_wniosek'!G161 -> 0 | H32: ='1_wniosek'!H161 -> 0 | I32: ='1_wniosek'!I161 -> 0 | J32: ='1_wniosek'!J161 -> 0 | K32: ='1_wniosek'!K161 -> 0 | L32: ='1_wniosek'!L161 -> 0 | M32: ='1_wniosek'!M161 -> 0 | N32: ='1_wniosek'!N161 -> 0
C33: pożyczka/i inna/e | D33: 0.1 | E33: ='1_wniosek'!E162 -> 0 | F33: ='1_wniosek'!F162 -> 0 | G33: ='1_wniosek'!G162 -> 0 | H33: ='1_wniosek'!H162 -> 0 | I33: ='1_wniosek'!I162 -> 0 | J33: ='1_wniosek'!J162 -> 0 | K33: ='1_wniosek'!K162 -> 0 | L33: ='1_wniosek'!L162 -> 0 | M33: ='1_wniosek'!M162 -> 0 | N33: ='1_wniosek'!N162 -> 0
C34: inne finansowanie/kredyty, leasingi finansowe/ | I34: =SUM(E34:H34) -> 0
C35: Planowane spłaty rat kapitałowych nowych pożyczek / kredytów ogółem, z tego | E35: =SUM(E36:E38) -> 0 | F35: 0 | G35: 0 | H35: 0 | I35: 0 | J35: 0 | K35: 0 | L35: 0 | M35: 0 | N35: =SUM(N36:N38) -> 0
C36: pożyczka z ES | E36: ='3_Zał_F_TISE'!E39 -> 0 | F36: ='3_Zał_F_TISE'!F39 -> 0 | G36: ='3_Zał_F_TISE'!G39 -> 0 | H36: ='3_Zał_F_TISE'!H39 -> 0 | I36: ='3_Zał_F_TISE'!I39 -> 0 | J36: ='3_Zał_F_TISE'!J39 -> 0 | K36: ='3_Zał_F_TISE'!K39 -> 0 | L36: ='3_Zał_F_TISE'!L39 -> 0 | M36: ='3_Zał_F_TISE'!M39 -> 0 | N36: ='3_Zał_F_TISE'!N39 -> 0
C37: pożyczka/i inna/e - kredyt 1 | E37: ='3_Zał_F_TISE'!E40 -> 0 | F37: ='3_Zał_F_TISE'!F40 -> 0 | G37: ='3_Zał_F_TISE'!G40 -> 0 | H37: ='3_Zał_F_TISE'!H40 -> 0 | I37: ='3_Zał_F_TISE'!I40 -> 0 | J37: ='3_Zał_F_TISE'!J40 -> 0 | K37: ='3_Zał_F_TISE'!K40 -> 0 | L37: ='3_Zał_F_TISE'!L40 -> 0 | M37: ='3_Zał_F_TISE'!M40 -> 0 | N37: ='3_Zał_F_TISE'!N40 -> 0
C38: kredyt 2 | E38: ='3_Zał_F_TISE'!E41 -> 0 | F38: ='3_Zał_F_TISE'!F41 -> 0 | G38: ='3_Zał_F_TISE'!G41 -> 0 | H38: ='3_Zał_F_TISE'!H41 -> 0 | I38: =SUM(E38:H38) -> 0 | J38: ='3_Zał_F_TISE'!J41 -> 0 | K38: ='3_Zał_F_TISE'!K41 -> 0 | L38: ='3_Zał_F_TISE'!L41 -> 0 | M38: ='3_Zał_F_TISE'!M41 -> 0 | N38: ='3_Zał_F_TISE'!N41 -> 0
C39: Środki własne | E39: ='1_wniosek'!E160 -> 0 | F39: ='1_wniosek'!F160 -> 0 | G39: ='1_wniosek'!G160 -> 0 | H39: ='1_wniosek'!H160 -> 0 | I39: ='1_wniosek'!I160 -> 0 | J39: ='1_wniosek'!J160 -> 0 | K39: ='1_wniosek'!K160 -> 0 | L39: ='1_wniosek'!L160 -> 0 | M39: ='1_wniosek'!M160 -> 0 | N39: ='1_wniosek'!N160 -> 0
B40: Róznica źródła - wydatki/w okresie/ | E40: =E31+E39-E35-E28 -> 0 | F40: =F31+F39-F35-F28 -> 0 | G40: =G31+G39-G35-G28 -> 0 | H40: =H31+H39-H35-H28 -> 0 | I40: =H41 -> 0 | J40: =J31+J39-J35-J28 -> 0 | K40: =K31+K39-K35-K28 -> 0 | L40: =L31+L39-L35-L28 -> 0 | M40: =M31+M39-M35-M28 -> 0 | N40: =N31+N39-N35-N28 -> 0
C41: Róznica źródła - wydatki/w okresie/skumulowana | E41: =E40 -> 0 | F41: =F40+E41 -> 0 | G41: =G40+F41 -> 0 | H41: 0 | I41: =I40/1000 -> 0 | J41: =I41+J40 -> 0 | K41: =J41+K40 -> 0 | L41: 0 | M41: 0 | N41: 0
B43: 5. | C43: Planowane zmiany kapitału obrotowego - w dniach | E43: =E45-E44-E46 -> 0 | F43: =F45-F44-F46 -> 0 | G43: 0 | H43: 0 | I43: 0 | J43: 0 | K43: 0 | L43: 0 | M43: 0 | N43: =N45-N44-N46 -> 0
B44: 5a. | C44: Planowane średnie terminy płatności przez odbiorców w dniach | E44: ='4_założenia KO'!D6 -> 0 | F44: ='4_założenia KO'!E6 -> 0 | G44: ='4_założenia KO'!F6 -> 0 | H44: ='4_założenia KO'!G6 -> 0 | I44: ='4_założenia KO'!H6 -> 0 | J44: ='4_założenia KO'!I6 -> 0 | K44: ='4_założenia KO'!J6 -> 0 | L44: ='4_założenia KO'!K6 -> 0 | M44: ='4_założenia KO'!L6 -> 0 | N44: ='4_założenia KO'!M6 -> 0
B45: 5b. | C45: Planowane średnie terminy płatności za bieżace zobowiązania dla dostawców w dniach | E45: ='4_założenia KO'!D7 -> 0 | F45: ='4_założenia KO'!E7 -> 0 | G45: ='4_założenia KO'!F7 -> 0 | H45: ='4_założenia KO'!G7 -> 0 | I45: ='4_założenia KO'!H7 -> 0 | J45: ='4_założenia KO'!I7 -> 0 | K45: ='4_założenia KO'!J7 -> 0 | L45: ='4_założenia KO'!K7 -> 0 | M45: ='4_założenia KO'!L7 -> 0 | N45: ='4_założenia KO'!M7 -> 0
B46: 5c. | C46: Planowana średnia rotacja zapasów w magazynie - w dniach | E46: ='4_założenia KO'!D8 -> 0 | F46: ='4_założenia KO'!E8 -> 0 | G46: ='4_założenia KO'!F8 -> 0 | H46: ='4_założenia KO'!G8 -> 0 | I46: ='4_założenia KO'!H8 -> 0 | J46: ='4_założenia KO'!I8 -> 0 | K46: ='4_założenia KO'!J8 -> 0 | L46: ='4_założenia KO'!K8 -> 0 | M46: ='4_założenia KO'!L8 -> 0 | N46: ='4_założenia KO'!M8 -> 0
C48: planowane koszty finansowe przedsięwzięcia | E48: 1 kw | F48: 2 kw | G48: 3 kw | H48: 4 kw | I48: razem 1 rok | J48: 2 rok | K48: 3 rok | L48: 4 rok | M48: 5 rok | N48: 5 rok
C49: pożyczka z ES
C50: pożyczka/i inna/e
C51: inne finansowanie / kredyty, leasnigi finansowe/ | I51: =SUM(E51:H51) -> 0
C52: razem planowane koszty finansowe | E52: ='1_wniosek'!E205 -> 0 | F52: ='1_wniosek'!F205 -> 0 | G52: ='1_wniosek'!G205 -> 0 | H52: ='1_wniosek'!H205 -> 0 | I52: ='1_wniosek'!I205 -> 0 | J52: ='1_wniosek'!J205 -> 0 | K52: ='1_wniosek'!K205 -> 0 | L52: ='1_wniosek'!L205 -> 0 | M52: ='1_wniosek'!M205 -> 0 | N52: ='1_wniosek'!N205 -> 0
B54: Tabela 1 Kalkulacja przepływów pieniężnych z przedsięwzięcia
B55: Przepływy pieniężne z przedsięwzięcia w tys. zł. | E55: 1 kw | F55: 2 kw | G55: 3 kw | H55: 4 kw | I55: razem 1 rok | J55: 2 rok | K55: 3 rok | L55: 4 rok | M55: 5 rok | N55: 6 rok
B56: - | C56: Nakłady inwestycyjne | E56: =E28 -> 0 | F56: =F28 -> 0 | G56: 0 | H56: 0 | I56: 0 | J56: 0 | K56: 0 | L56: 0 | M56: 0 | N56: =N28 -> 0
B57: + | C57: Przychody | E57: =E4 -> 0 | F57: =F4 -> 0 | G57: 0 | H57: 0 | I57: 0 | J57: 0 | K57: 0 | L57: 0 | M57: 0 | N57: =N4 -> 0
B58: - | C58: Koszty działalności operacyjnej / w tym również amortyzacja/ | E58: =E9 -> 0 | F58: =F9 -> 0 | G58: 0 | H58: 0 | I58: 0 | J58: 0 | K58: 0 | L58: 0 | M58: 0 | N58: =N9 -> 0
B59: - | C59: Koszty finansowe | E59: =E52 -> 0 | F59: =F52 -> 0 | G59: 0 | H59: 0 | I59: 0 | J59: 0 | K59: 0 | L59: 0 | M59: 0 | N59: =N52 -> 0
B60: - | C60: Podatek dochodowy | E60: =IF((E57-(E58+E59))<=0,0,(E57-(E58+E59))*19%) -> 0 | F60: =IF((F57-(F58+F59))<=0,0,(F57-(F58+F59))*19%) -> 0 | G60: 0 | H60: 0 | I60: 0 | J60: 0 | K60: 0 | L60: 0 | M60: 0 | N60: =IF((N57-(N58+N59))<=0,0,(N57-(N58+N59))*19%) -> 0
B61: + | C61: Amortyzacja | E61: =E10 -> 0 | F61: =F10 -> 0 | G61: 0 | H61: 0 | I61: 0 | J61: 0 | K61: 0 | L61: 0 | M61: 0 | N61: =N10 -> 0
B62: "-/+" | C62: Zmiany kapitału obrotowego | E62: =E66 -> 0 | F62: =F66-E66 -> 0 | G62: =G66-F66 -> 0 | H62: 0 | I62: 0 | J62: 0 | K62: 0 | L62: 0 | M62: 0 | N62: 0
B63: + | C63: Zaciągnięcia pożyczki | E63: =E31 -> 0 | F63: =F31 -> 0 | G63: 0 | H63: 0 | I63: 0 | J63: 0 | K63: 0 | L63: 0 | M63: 0 | N63: =N31 -> 0
B64: - | C64: Spłata pożyczki | E64: =E35 -> 0 | F64: =F35 -> 0 | G64: 0 | H64: 0 | I64: 0 | J64: 0 | K64: 0 | L64: 0 | M64: 0 | N64: =N35 -> 0
B65: = | C65: Przepływy pieniężne z przedsięwzięcia (FCFEI) | E65: =-E56+E57-E58-E59-E60+E61+E62+E63-E64 -> 0 | F65: =-F56+F57-F58-F59-F60+F61+F62+F63-F64 -> 0 | G65: 0 | H65: 0 | I65: 0 | J65: 0 | K65: 0 | L65: 0 | M65: 0 | N65: =-N56+N57-N58-N59-N60+N61+N62+N63-N64 -> 0
E66: =E68-E69-E67 -> 0 | F66: =F68-F69-F67 -> 0 | G66: 0 | H66: 0 | I66: 0 | J66: 0 | K66: 0 | L66: 0 | M66: 0 | N66: =N68-N69-N67 -> 0
C67: nalezności | E67: =IFERROR(E4*E44/E3,0) -> 0 | F67: =IFERROR(F4*F44/F3,0) -> 0 | G67: 0 | H67: 0 | I67: =H67 -> 0 | J67: =IFERROR(J4*J44/J3,0) -> 0 | K67: =IFERROR(K4*K44/K3,0) -> 0 | L67: 0 | M67: 0 | N67: 0
C68: zobow handlowe | E68: =IFERROR(E45*E4/E3,0) -> 0 | F68: =IFERROR(F45*F4/F3,0) -> 0 | G68: 0 | H68: 0 | I68: =H68 -> 0 | J68: =IFERROR(J45*J4/J3,0) -> 0 | K68: =IFERROR(K45*K4/K3,0) -> 0 | L68: 0 | M68: 0 | N68: 0
C69: zapasy | E69: =IFERROR(E46*E4/E3,0) -> 0 | F69: =IFERROR(F46*F4/F3,0) -> 0 | G69: 0 | H69: 0 | I69: 0 | J69: =IFERROR(J46*J4/J3,0) -> 0 | K69: =IFERROR(K46*K4/K3,0) -> 0 | L69: 0 | M69: 0 | N69: 0

Sheet 3a_projekcje_klient
D2: projekcje - wyliczane automatycznie
D3: Aktywa | E3: ='3_Zał_F_dane fin i zał_klient'!G5 -> 2013 | F3: ='1_wniosek'!E124 -> Kwartał 1 | G3: ='1_wniosek'!F124 -> Kwartał 2 | H3: ='1_wniosek'!G124 -> Kwartał 3 | I3: ='1_wniosek'!H124 -> Kwartał 4 | J3: ='1_wniosek'!I123 -> 2014 | K3: ='1_wniosek'!J157 -> 2015 | L3: ='1_wniosek'!K157 -> 2016 | M3: ='1_wniosek'!L157 -> 2017 | N3: ='1_wniosek'!M157 -> 2018 | O3: ='1_wniosek'!N157 -> 2019 | S3: =F3 -> Kwartał 1 | T3: =G3 -> Kwartał 2 | U3: Kwartał 3 | V3: Kwartał 4 | X3: nie dotyczy | Y3: 1 | AA3: wersja 08.01.2014
D4: Aktywa trwałe | E4: ='5_projekcje'!D3 -> 0 | F4: ='5_projekcje'!E3 -> 0 | G4: ='5_projekcje'!F3 -> 0 | H4: ='5_projekcje'!G3 -> 0 | I4: ='5_projekcje'!H3 -> 0 | J4: ='5_projekcje'!I3 -> 0 | K4: ='5_projekcje'!J3 -> 0 | L4: ='5_projekcje'!K3 -> 0 | M4: ='5_projekcje'!L3 -> 0 | N4: ='5_projekcje'!M3 -> 0 | O4: ='5_projekcje'!N3 -> 0 | S4: =VLOOKUP(F3,'1_wniosek'!$AB$124:$AC$128,2,FALSE) -> 90 | T4: =VLOOKUP(G3,'1_wniosek'!$AB$124:$AC$128,2,FALSE) -> 180 | U4: =VLOOKUP(H3,'1_wniosek'!$AB$124:$AC$128,2,FALSE) -> 270 | V4: =VLOOKUP(I3,'1_wniosek'!$AB$124:$AC$128,2,FALSE) -> 360
D5: Zapasy | E5: ='5_projekcje'!D4 -> 0 | F5: ='5_projekcje'!E4 -> 0 | G5: ='5_projekcje'!F4 -> 0 | H5: ='5_projekcje'!G4 -> 0 | I5: ='5_projekcje'!H4 -> 0 | J5: ='5_projekcje'!I4 -> 0 | K5: ='5_projekcje'!J4 -> 0 | L5: ='5_projekcje'!K4 -> 0 | M5: ='5_projekcje'!L4 -> 0 | N5: ='5_projekcje'!M4 -> 0 | O5: ='5_projekcje'!N4 -> 0 | S5: =S4 -> 90 | T5: =T4 -> 180 | U5: 270 | V5: 360 | W5: =SUM(S5:V5) -> 900
D6: Należności | E6: ='5_projekcje'!D5 -> 0 | F6: ='5_projekcje'!E5 -> 0 | G6: ='5_projekcje'!F5 -> 0 | H6: ='5_projekcje'!G5 -> 0 | I6: ='5_projekcje'!H5 -> 0 | J6: ='5_projekcje'!I5 -> 0 | K6: ='5_projekcje'!J5 -> 0 | L6: ='5_projekcje'!K5 -> 0 | M6: ='5_projekcje'!L5 -> 0 | N6: ='5_projekcje'!M5 -> 0 | O6: ='5_projekcje'!N5 -> 0
D7: - od odbiorców /handlowe/ | E7: ='5_projekcje'!D6 -> 0 | F7: ='5_projekcje'!E6 -> 0 | G7: ='5_projekcje'!F6 -> 0 | H7: ='5_projekcje'!G6 -> 0 | I7: ='5_projekcje'!H6 -> 0 | J7: ='5_projekcje'!I6 -> 0 | K7: ='5_projekcje'!J6 -> 0 | L7: ='5_projekcje'!K6 -> 0 | M7: ='5_projekcje'!L6 -> 0 | N7: ='5_projekcje'!M6 -> 0 | O7: ='5_projekcje'!N6 -> 0 | S7: ='1_wniosek'!E187 -> prognoza | T7: ='1_wniosek'!F187 -> prognoza | U7: ='1_wniosek'!G187 -> prognoza | V7: ='1_wniosek'!H187 -> prognoza
D8: - pozostałe | E8: ='5_projekcje'!D7 -> 0 | F8: ='5_projekcje'!E7 -> 0 | G8: ='5_projekcje'!F7 -> 0 | H8: ='5_projekcje'!G7 -> 0 | I8: ='5_projekcje'!H7 -> 0 | J8: ='5_projekcje'!I7 -> 0 | K8: ='5_projekcje'!J7 -> 0 | L8: ='5_projekcje'!K7 -> 0 | M8: ='5_projekcje'!L7 -> 0 | N8: ='5_projekcje'!M7 -> 0 | O8: ='5_projekcje'!N7 -> 0 | S8: =VLOOKUP('1_wniosek'!E187,'1_wniosek'!$S$186:$T$187,2,FALSE) -> 1 | T8: =VLOOKUP('1_wniosek'!F187,'1_wniosek'!$S$186:$T$187,2,FALSE) -> 1 | U8: =VLOOKUP('1_wniosek'!G187,'1_wniosek'!$S$186:$T$187,2,FALSE) -> 1 | V8: =VLOOKUP('1_wniosek'!H187,'1_wniosek'!$S$186:$T$187,2,FALSE) -> 1
D9: śr pieniężne | E9: ='5_projekcje'!D8 -> 0 | F9: ='5_projekcje'!E8 -> 0 | G9: ='5_projekcje'!F8 -> 0 | H9: ='5_projekcje'!G8 -> 0 | I9: ='5_projekcje'!H8 -> 0 | J9: ='5_projekcje'!I8 -> 0 | K9: ='5_projekcje'!J8 -> 0 | L9: ='5_projekcje'!K8 -> 0 | M9: ='5_projekcje'!L8 -> 0 | N9: ='5_projekcje'!M8 -> 0 | O9: ='5_projekcje'!N8 -> 0
D10: śr pieniężne | E10: ='5_projekcje'!D9 -> 0 | F10: ='5_projekcje'!E9 -> 0 | G10: ='5_projekcje'!F9 -> 0 | H10: ='5_projekcje'!G9 -> 0 | I10: ='5_projekcje'!H9 -> 0 | J10: ='5_projekcje'!I9 -> 0 | K10: ='5_projekcje'!J9 -> 0 | L10: ='5_projekcje'!K9 -> 0 | M10: ='5_projekcje'!L9 -> 0 | N10: ='5_projekcje'!M9 -> 0 | O10: ='5_projekcje'!N9 -> 0
D11: inne składniki majątkowe | E11: ='5_projekcje'!D10 -> 0 | F11: ='5_projekcje'!E10 -> 0 | G11: ='5_projekcje'!F10 -> 0 | H11: ='5_projekcje'!G10 -> 0 | I11: ='5_projekcje'!H10 -> 0 | J11: ='5_projekcje'!I10 -> 0 | K11: ='5_projekcje'!J10 -> 0 | L11: ='5_projekcje'!K10 -> 0 | M11: ='5_projekcje'!L10 -> 0 | N11: ='5_projekcje'!M10 -> 0 | O11: ='5_projekcje'!N10 -> 0
D12: Razem Aktywa | E12: ='5_projekcje'!D11 -> 0 | F12: ='5_projekcje'!E11 -> 0 | G12: ='5_projekcje'!F11 -> 0 | H12: ='5_projekcje'!G11 -> 0 | I12: ='5_projekcje'!H11 -> 0 | J12: ='5_projekcje'!I11 -> 0 | K12: ='5_projekcje'!J11 -> 0 | L12: ='5_projekcje'!K11 -> 0 | M12: ='5_projekcje'!L11 -> 0 | N12: ='5_projekcje'!M11 -> 0 | O12: ='5_projekcje'!N11 -> 0
D13: Razem Aktywa | E13: ='5_projekcje'!D12 -> 0 | F13: ='5_projekcje'!E12 -> 0 | G13: ='5_projekcje'!F12 -> 0 | H13: ='5_projekcje'!G12 -> 0 | I13: ='5_projekcje'!H12 -> 0 | J13: ='5_projekcje'!I12 -> 0 | K13: ='5_projekcje'!J12 -> 0 | L13: ='5_projekcje'!K12 -> 0 | M13: ='5_projekcje'!L12 -> 0 | N13: ='5_projekcje'!M12 -> 0 | O13: ='5_projekcje'!N12 -> 0
D15: Pasywa | E15: =E3 -> 2013 | F15: =F3 -> Kwartał 1 | G15: =G3 -> Kwartał 2 | H15: Kwartał 3 | I15: Kwartał 4 | J15: 2014 | K15: 2015 | L15: 2016 | M15: 2017 | N15: 2018 | O15: 2019
D16: Kapitały własne | E16: ='5_projekcje'!D15 -> 0 | F16: ='5_projekcje'!E15 -> 0 | G16: ='5_projekcje'!F15 -> 0 | H16: ='5_projekcje'!G15 -> 0 | I16: ='5_projekcje'!H15 -> 0 | J16: ='5_projekcje'!I15 -> 0 | K16: ='5_projekcje'!J15 -> 0 | L16: ='5_projekcje'!K15 -> 0 | M16: ='5_projekcje'!L15 -> 0 | N16: ='5_projekcje'!M15 -> 0 | O16: ='5_projekcje'!N15 -> 0
D17: Dług oprocentowany długoterminowy/ kredyty pożyczki , leasingi/ | E17: ='5_projekcje'!D16 -> 0 | F17: ='5_projekcje'!E16 -> 0 | G17: ='5_projekcje'!F16 -> 0 | H17: ='5_projekcje'!G16 -> 0 | I17: ='5_projekcje'!H16 -> 0 | J17: ='5_projekcje'!I16 -> 0 | K17: ='5_projekcje'!J16 -> 0 | L17: ='5_projekcje'!K16 -> 0 | M17: ='5_projekcje'!L16 -> 0 | N17: ='5_projekcje'!M16 -> 0 | O17: ='5_projekcje'!N16 -> 0
D18: Zobowiązania krótkoterminowe | E18: ='5_projekcje'!D17 -> 0 | F18: ='5_projekcje'!E17 -> 0 | G18: ='5_projekcje'!F17 -> 0 | H18: ='5_projekcje'!G17 -> 0 | I18: ='5_projekcje'!H17 -> 0 | J18: ='5_projekcje'!I17 -> 0 | K18: ='5_projekcje'!J17 -> 0 | L18: ='5_projekcje'!K17 -> 0 | M18: ='5_projekcje'!L17 -> 0 | N18: ='5_projekcje'!M17 -> 0 | O18: ='5_projekcje'!N17 -> 0
D19: Zobowiązania krótkoterminowe/p/ | E19: ='5_projekcje'!D18 -> 0 | F19: ='5_projekcje'!E18 -> 0 | G19: ='5_projekcje'!F18 -> 0 | H19: ='5_projekcje'!G18 -> 0 | I19: ='5_projekcje'!H18 -> 0 | J19: ='5_projekcje'!I18 -> 0 | K19: ='5_projekcje'!J18 -> 0 | L19: ='5_projekcje'!K18 -> 0 | M19: ='5_projekcje'!L18 -> 0 | N19: ='5_projekcje'!M18 -> 0 | O19: ='5_projekcje'!N18 -> 0
D20: handlowe | E20: ='5_projekcje'!D19 -> 0 | F20: ='5_projekcje'!E19 -> 0 | G20: ='5_projekcje'!F19 -> 0 | H20: ='5_projekcje'!G19 -> 0 | I20: ='5_projekcje'!H19 -> 0 | J20: ='5_projekcje'!I19 -> 0 | K20: ='5_projekcje'!J19 -> 0 | L20: ='5_projekcje'!K19 -> 0 | M20: ='5_projekcje'!L19 -> 0 | N20: ='5_projekcje'!M19 -> 0 | O20: ='5_projekcje'!N19 -> 0
D21: - kredyty obrotowe | E21: ='5_projekcje'!D20 -> 0 | F21: ='5_projekcje'!E20 -> 0 | G21: ='5_projekcje'!F20 -> 0 | H21: ='5_projekcje'!G20 -> 0 | I21: ='5_projekcje'!H20 -> 0 | J21: ='5_projekcje'!I20 -> 0 | K21: ='5_projekcje'!J20 -> 0 | L21: ='5_projekcje'!K20 -> 0 | M21: ='5_projekcje'!L20 -> 0 | N21: ='5_projekcje'!M20 -> 0 | O21: ='5_projekcje'!N20 -> 0
D22: kredyty, pożyczki krótkoterminowe | E22: ='5_projekcje'!D21 -> 0 | F22: ='5_projekcje'!E21 -> 0 | G22: ='5_projekcje'!F21 -> 0 | H22: ='5_projekcje'!G21 -> 0 | I22: ='5_projekcje'!H21 -> 0 | J22: ='5_projekcje'!I21 -> 0 | K22: ='5_projekcje'!J21 -> 0 | L22: ='5_projekcje'!K21 -> 0 | M22: ='5_projekcje'!L21 -> 0 | N22: ='5_projekcje'!M21 -> 0 | O22: ='5_projekcje'!N21 -> 0
D23: Pozostałe zobowiązania | E23: ='5_projekcje'!D22 -> 0 | F23: ='5_projekcje'!E22 -> 0 | G23: ='5_projekcje'!F22 -> 0 | H23: ='5_projekcje'!G22 -> 0 | I23: ='5_projekcje'!H22 -> 0 | J23: ='5_projekcje'!I22 -> 0 | K23: ='5_projekcje'!J22 -> 0 | L23: ='5_projekcje'!K22 -> 0 | M23: ='5_projekcje'!L22 -> 0 | N23: ='5_projekcje'!M22 -> 0 | O23: ='5_projekcje'!N22 -> 0
D24: Inne pasywa krótkoterm | E24: ='5_projekcje'!D23 -> 0 | F24: ='5_projekcje'!E23 -> 0 | G24: ='5_projekcje'!F23 -> 0 | H24: ='5_projekcje'!G23 -> 0 | I24: ='5_projekcje'!H23 -> 0 | J24: ='5_projekcje'!I23 -> 0 | K24: ='5_projekcje'!J23 -> 0 | L24: ='5_projekcje'!K23 -> 0 | M24: ='5_projekcje'!L23 -> 0 | N24: ='5_projekcje'!M23 -> 0 | O24: ='5_projekcje'!N23 -> 0
D25: Inne pasywa długoterm | E25: ='5_projekcje'!D24 -> 0 | F25: ='5_projekcje'!E24 -> 0 | G25: ='5_projekcje'!F24 -> 0 | H25: ='5_projekcje'!G24 -> 0 | I25: ='5_projekcje'!H24 -> 0 | J25: ='5_projekcje'!I24 -> 0 | K25: ='5_projekcje'!J24 -> 0 | L25: ='5_projekcje'!K24 -> 0 | M25: ='5_projekcje'!L24 -> 0 | N25: ='5_projekcje'!M24 -> 0 | O25: ='5_projekcje'!N24 -> 0
D26: Razem Pasywa | E26: ='5_projekcje'!D25 -> 0 | F26: ='5_projekcje'!E25 -> 0 | G26: ='5_projekcje'!F25 -> 0 | H26: ='5_projekcje'!G25 -> 0 | I26: ='5_projekcje'!H25 -> 0 | J26: ='5_projekcje'!I25 -> 0 | K26: ='5_projekcje'!J25 -> 0 | L26: ='5_projekcje'!K25 -> 0 | M26: ='5_projekcje'!L25 -> 0 | N26: ='5_projekcje'!M25 -> 0 | O26: ='5_projekcje'!N25 -> 0
D27: Razem Pasywa | E27: ='5_projekcje'!D26 -> 0 | F27: ='5_projekcje'!E26 -> 0 | G27: ='5_projekcje'!F26 -> 0 | H27: ='5_projekcje'!G26 -> 0 | I27: ='5_projekcje'!H26 -> 0 | J27: ='5_projekcje'!I26 -> 0 | K27: ='5_projekcje'!J26 -> 0 | L27: ='5_projekcje'!K26 -> 0 | M27: ='5_projekcje'!L26 -> 0 | N27: ='5_projekcje'!M26 -> 0 | O27: ='5_projekcje'!N26 -> 0
D28: różnica A-P | E28: =E13-E27 -> 0 | F28: =F13-F27 -> 0 | G28: 0 | H28: 0 | I28: 0 | J28: 0 | K28: 0 | L28: 0 | M28: 0 | N28: 0 | O28: 0
D30: rzis | E30: =E3 -> 2013 | F30: =F3 -> Kwartał 1 | G30: Kwartał 2 | H30: Kwartał 3 | I30: Kwartał 4 | J30: 2014 | K30: 2015 | L30: 2016 | M30: 2017 | N30: 2018 | O30: 2019
D31: I. Przychody ogółem (II+III+IV+V), z tego | E31: ='3_Zał_F_TISE'!K5 -> 0 | F31: ='1_wniosek'!E188 -> 0 | G31: ='1_wniosek'!F188 -> 0 | H31: ='1_wniosek'!G188 -> 0 | I31: ='1_wniosek'!H188 -> 0 | J31: ='5_projekcje'!I29 -> 0 | K31: ='5_projekcje'!J29 -> 0 | L31: ='5_projekcje'!K29 -> 0 | M31: ='5_projekcje'!L29 -> 0 | N31: ='5_projekcje'!M29 -> 0 | O31: ='5_projekcje'!N29 -> 0
D32: II. Przychody z działalności gospodarczej , ze sprzedaży produktów, usług i towarów ogółem, z tego: | E32: ='3_Zał_F_TISE'!K6 -> 0 | F32: ='1_wniosek'!E189 -> 0 | G32: ='1_wniosek'!F189 -> 0 | H32: ='1_wniosek'!G189 -> 0 | I32: ='1_wniosek'!H189 -> 0 | J32: ='5_projekcje'!I30 -> 0 | K32: ='5_projekcje'!J30 -> 0 | L32: ='5_projekcje'!K30 -> 0 | M32: ='5_projekcje'!L30 -> 0 | N32: ='5_projekcje'!M30 -> 0 | O32: ='5_projekcje'!N30 -> 0
D33: III. Pozostałe przychody operacyjne | E33: ='3_Zał_F_TISE'!K7 -> 0 | F33: ='1_wniosek'!E192 -> 0 | G33: ='1_wniosek'!F192 -> 0 | H33: ='1_wniosek'!G192 -> 0 | I33: ='1_wniosek'!H192 -> 0 | J33: ='5_projekcje'!I31 -> 0 | K33: ='5_projekcje'!J31 -> 0 | L33: ='5_projekcje'!K31 -> 0 | M33: ='5_projekcje'!L31 -> 0 | N33: ='5_projekcje'!M31 -> 0 | O33: ='5_projekcje'!N31 -> 0
D34: IV. Przychody finansowe | E34: ='3_Zał_F_TISE'!K8 -> 0 | F34: ='1_wniosek'!E193 -> 0 | G34: ='1_wniosek'!F193 -> 0 | H34: ='1_wniosek'!G193 -> 0 | I34: ='1_wniosek'!H193 -> 0 | J34: ='5_projekcje'!I32 -> 0 | K34: ='5_projekcje'!J32 -> 0 | L34: ='5_projekcje'!K32 -> 0 | M34: ='5_projekcje'!L32 -> 0 | N34: ='5_projekcje'!M32 -> 0 | O34: ='5_projekcje'!N32 -> 0
D35: V. Przychody z działalności statutowej | E35: ='3_Zał_F_TISE'!K9 -> 0 | F35: ='1_wniosek'!E194 -> 0 | G35: ='1_wniosek'!F194 -> 0 | H35: ='1_wniosek'!G194 -> 0 | I35: ='1_wniosek'!H194 -> 0 | J35: ='5_projekcje'!I33 -> 0 | K35: ='5_projekcje'!J33 -> 0 | L35: ='5_projekcje'!K33 -> 0 | M35: ='5_projekcje'!L33 -> 0 | N35: ='5_projekcje'!M33 -> 0 | O35: ='5_projekcje'!N33 -> 0
D36: VI. Koszty działalności gospodarczej, w tym | E36: ='3_Zał_F_TISE'!K10 -> 0 | F36: =SUM(F37:F42) -> 0 | G36: =SUM(G37:G42) -> 0 | H36: 0 | I36: 0 | J36: ='5_projekcje'!I34 -> 0 | K36: ='5_projekcje'!J34 -> 0 | L36: ='5_projekcje'!K34 -> 0 | M36: ='5_projekcje'!L34 -> 0 | N36: ='5_projekcje'!M34 -> 0 | O36: ='5_projekcje'!N34 -> 0
D37: amortyzacja | E37: ='3_Zał_F_TISE'!K11 -> 0 | F37: ='1_wniosek'!E198+'1_wniosek'!E199 -> 0 | G37: ='1_wniosek'!F198+'1_wniosek'!F199 -> 0 | H37: ='1_wniosek'!G198+'1_wniosek'!G199 -> 0 | I37: ='1_wniosek'!H198+'1_wniosek'!H199 -> 0 | J37: ='5_projekcje'!I35 -> 0 | K37: ='5_projekcje'!J35 -> 0 | L37: ='5_projekcje'!K35 -> 0 | M37: ='5_projekcje'!L35 -> 0 | N37: ='5_projekcje'!M35 -> 0 | O37: ='5_projekcje'!N35 -> 0
D38: koszty eksploatacyjne - np. czynsz,zużycie materiałów i energii, transport ,podatki , opłaty, inne | E38: ='3_Zał_F_TISE'!K12 -> 0 | F38: ='1_wniosek'!E200+'1_wniosek'!E134+'1_wniosek'!E148 -> 0 | G38: ='1_wniosek'!F200+'1_wniosek'!F134+'1_wniosek'!F148 -> 0 | H38: ='1_wniosek'!G200+'1_wniosek'!G134+'1_wniosek'!G148 -> 0 | I38: ='1_wniosek'!H200+'1_wniosek'!H134+'1_wniosek'!H148 -> 0 | J38: ='5_projekcje'!I36 -> 0 | K38: ='5_projekcje'!J36 -> 0 | L38: ='5_projekcje'!K36 -> 0 | M38: ='5_projekcje'!L36 -> 0 | N38: ='5_projekcje'!M36 -> 0 | O38: ='5_projekcje'!N36 -> 0
D39: wynagrodzenia z narzutami | E39: ='3_Zał_F_TISE'!K13 -> 0 | F39: ='1_wniosek'!E201+'1_wniosek'!E135+'1_wniosek'!E149 -> 0 | G39: ='1_wniosek'!F201+'1_wniosek'!F135+'1_wniosek'!F149 -> 0 | H39: ='1_wniosek'!G201+'1_wniosek'!G135+'1_wniosek'!G149 -> 0 | I39: ='1_wniosek'!H201+'1_wniosek'!H135+'1_wniosek'!H149 -> 0 | J39: ='5_projekcje'!I37 -> 0 | K39: ='5_projekcje'!J37 -> 0 | L39: ='5_projekcje'!K37 -> 0 | M39: ='5_projekcje'!L37 -> 0 | N39: ='5_projekcje'!M37 -> 0 | O39: ='5_projekcje'!N37 -> 0
D40: koszt sprzedanych towarów , materiałów , usług | E40: ='3_Zał_F_TISE'!K14 -> 0 | F40: ='1_wniosek'!E202 -> 0 | G40: ='1_wniosek'!F202 -> 0 | H40: ='1_wniosek'!G202 -> 0 | I40: ='1_wniosek'!H202 -> 0 | J40: ='5_projekcje'!I38 -> 0 | K40: ='5_projekcje'!J38 -> 0 | L40: ='5_projekcje'!K38 -> 0 | M40: ='5_projekcje'!L38 -> 0 | N40: ='5_projekcje'!M38 -> 0 | O40: ='5_projekcje'!N38 -> 0
D41: Pozostałe koszty operacyjne | E41: ='3_Zał_F_TISE'!K15 -> 0 | F41: ='1_wniosek'!E206 -> 0 | G41: ='1_wniosek'!F206 -> 0 | H41: ='1_wniosek'!G206 -> 0 | I41: ='1_wniosek'!H206 -> 0 | J41: ='5_projekcje'!I39 -> 0 | K41: ='5_projekcje'!J39 -> 0 | L41: ='5_projekcje'!K39 -> 0 | M41: ='5_projekcje'!L39 -> 0 | N41: ='5_projekcje'!M39 -> 0 | O41: ='5_projekcje'!N39 -> 0
D42: Koszty finansowe | E42: ='3_Zał_F_TISE'!K16 -> 0 | F42: ='1_wniosek'!E205+'1_wniosek'!E204 -> 0 | G42: ='1_wniosek'!F205+'1_wniosek'!F204 -> 0 | H42: ='1_wniosek'!G205+'1_wniosek'!G204 -> 0 | I42: ='1_wniosek'!H205+'1_wniosek'!H204 -> 0 | J42: ='5_projekcje'!I40 -> 0 | K42: ='5_projekcje'!J40 -> 0 | L42: ='5_projekcje'!K40 -> 0 | M42: ='5_projekcje'!L40 -> 0 | N42: ='5_projekcje'!M40 -> 0 | O42: ='5_projekcje'!N40 -> 0
D43: VII. Koszty realizacji zadań statutowych | E43: ='3_Zał_F_TISE'!K17 -> 0 | F43: ='1_wniosek'!E207 -> 0 | G43: ='1_wniosek'!F207 -> 0 | H43: ='1_wniosek'!G207 -> 0 | I43: ='1_wniosek'!H207 -> 0 | J43: ='5_projekcje'!I41 -> 0 | K43: ='5_projekcje'!J41 -> 0 | L43: ='5_projekcje'!K41 -> 0 | M43: ='5_projekcje'!L41 -> 0 | N43: ='5_projekcje'!M41 -> 0 | O43: ='5_projekcje'!N41 -> 0
D44: Podatek dochodowy | E44: ='3_Zał_F_TISE'!K19 -> 0 | F44: =IF((F31-F36-F41-F42-F43)>0,(F31-F36-F41-F42-F43)*19%,0) -> 0 | G44: 0 | H44: 0 | I44: 0 | J44: ='5_projekcje'!I42 -> 0 | K44: ='5_projekcje'!J42 -> 0 | L44: ='5_projekcje'!K42 -> 0 | M44: ='5_projekcje'!L42 -> 0 | N44: ='5_projekcje'!M42 -> 0 | O44: ='5_projekcje'!N42 -> 0
D45: Wynik netto | E45: ='3_Zał_F_TISE'!K20 -> 0 | F45: =F31-F36-F43-F44 -> 0 | G45: 0 | H45: 0 | I45: 0 | J45: ='5_projekcje'!I43 -> 0 | K45: ='5_projekcje'!J43 -> 0 | L45: ='5_projekcje'!K43 -> 0 | M45: ='5_projekcje'!L43 -> 0 | N45: ='5_projekcje'!M43 -> 0 | O45: ='5_projekcje'!N43 -> 0
C46: Tabela 2 Kalkulacja przepływów pieniężnych z całej działalności Wnioskodawcy
D47: Przepływy pieniężne z działalności całej | F47: =F3 -> Kwartał 1 | G47: =G3 -> Kwartał 2 | H47: Kwartał 3 | I47: Kwartał 4 | J47: 2014 | K47: 2015 | L47: 2016 | M47: 2017 | N47: 2018 | O47: 2019
D48: Nakłady inwestycyjne | E48: - | F48: ='7'!E56 -> 0 | G48: ='7'!F56 -> 0 | H48: ='7'!G56 -> 0 | I48: ='7'!H56 -> 0 | J48: ='7'!I56 -> 0 | K48: ='7'!J56 -> 0 | L48: ='7'!K56 -> 0 | M48: ='7'!L56 -> 0 | N48: ='7'!M56 -> 0 | O48: ='7'!N56 -> 0
D49: Przychody | E49: + | F49: ='7'!E57 -> 0 | G49: ='7'!F57 -> 0 | H49: ='7'!G57 -> 0 | I49: ='7'!H57 -> 0 | J49: ='7'!I57 -> 0 | K49: ='7'!J57 -> 0 | L49: ='7'!K57 -> 0 | M49: ='7'!L57 -> 0 | N49: ='7'!M57 -> 0 | O49: ='7'!N57 -> 0
D50: Koszty działalności operacyjnej / w tym również amortyzacja/ | E50: - | F50: ='7'!E58 -> 0 | G50: ='7'!F58 -> 0 | H50: ='7'!G58 -> 0 | I50: ='7'!H58 -> 0 | J50: ='7'!I58 -> 0 | K50: ='7'!J58 -> 0 | L50: ='7'!K58 -> 0 | M50: ='7'!L58 -> 0 | N50: ='7'!M58 -> 0 | O50: ='7'!N58 -> 0
D51: Koszty finansowe | E51: - | F51: ='7'!E59 -> 0 | G51: ='7'!F59 -> 0 | H51: ='7'!G59 -> 0 | I51: ='7'!H59 -> 0 | J51: ='7'!I59 -> 0 | K51: ='7'!J59 -> 0 | L51: ='7'!K59 -> 0 | M51: ='7'!L59 -> 0 | N51: ='7'!M59 -> 0 | O51: ='7'!N59 -> 0
D52: Podatek dochodowy | E52: - | F52: ='7'!E60 -> 0 | G52: ='7'!F60 -> 0 | H52: ='7'!G60 -> 0 | I52: ='7'!H60 -> 0 | J52: ='7'!I60 -> 0 | K52: ='7'!J60 -> 0 | L52: ='7'!K60 -> 0 | M52: ='7'!L60 -> 0 | N52: ='7'!M60 -> 0 | O52: ='7'!N60 -> 0
D53: Amortyzacja | E53: + | F53: ='7'!E61 -> 0 | G53: ='7'!F61 -> 0 | H53: ='7'!G61 -> 0 | I53: ='7'!H61 -> 0 | J53: ='7'!I61 -> 0 | K53: ='7'!J61 -> 0 | L53: ='7'!K61 -> 0 | M53: ='7'!L61 -> 0 | N53: ='7'!M61 -> 0 | O53: ='7'!N61 -> 0
D54: Zmiany kapitału obrotowego | E54: "-/+" | F54: 0 | G54: =IFERROR('7'!F62,0) -> 0 | H54: =IFERROR('7'!G62,0) -> 0 | I54: =IFERROR('7'!H62,0) -> 0 | J54: =IFERROR('7'!I62,0) -> 0 | K54: =IFERROR('7'!J62,0) -> 0 | L54: =IFERROR('7'!K62,0) -> 0 | M54: =IFERROR('7'!L62,0) -> 0 | N54: =IFERROR('7'!M62,0) -> 0 | O54: =IFERROR('7'!N62,0) -> 0
D55: Zaciągnięcia pożyczki | E55: + | F55: ='7'!E63 -> 0 | G55: ='7'!F63 -> 0 | H55: ='7'!G63 -> 0 | I55: ='7'!H63 -> 0 | J55: ='7'!I63 -> 0 | K55: ='7'!J63 -> 0 | L55: ='7'!K63 -> 0 | M55: ='7'!L63 -> 0 | N55: ='7'!M63 -> 0 | O55: ='7'!N63 -> 0
D56: Spłata pożyczki | E56: - | F56: ='7'!E64 -> 0 | G56: ='7'!F64 -> 0 | H56: ='7'!G64 -> 0 | I56: ='7'!H64 -> 0 | J56: ='7'!I64 -> 0 | K56: ='7'!J64 -> 0 | L56: ='7'!K64 -> 0 | M56: ='7'!L64 -> 0 | N56: ='7'!M64 -> 0 | O56: ='7'!N64 -> 0
D57: Przepływy pieniężne z przedsięwzięcia (FCFEI) | E57: = | F57: =IFERROR('7'!E65,0) -> 0 | G57: =IFERROR('7'!F65,0) -> 0 | H57: =IFERROR('7'!G65,0) -> 0 | I57: =IFERROR('7'!H65,0) -> 0 | J57: =IFERROR('7'!I65,0) -> 0 | K57: =IFERROR('7'!J65,0) -> 0 | L57: =IFERROR('7'!K65,0) -> 0 | M57: =IFERROR('7'!L65,0) -> 0 | N57: =IFERROR('7'!M65,0) -> 0 | O57: =IFERROR('7'!N65,0) -> 0
E60: „Projekt jest współfinansowany ze środków Unii Europejskiej w ramach Europejskiego Funduszu Społecznego”.
E81: =E12-E26 -> 0 | F81: =-F10 -> 0 | G81: 0 | H81: 0 | I81: 0 | J81: 0 | K81: 0 | L81: 0 | M81: 0 | N81: 0 | O81: 0
D82: różnica A- P | E82: =F13-F27 -> 0 | F82: =F12-F26 -> 0 | G82: 0 | H82: 0 | I82: 0 | J82: 0 | K82: 0 | L82: 0 | M82: 0 | N82: 0 | O82: 0
D83: sr pie sp | E83: =E9 -> 0
D84: śr pie sk | F84: =E83+'7'!E65+'3a_projekcje_klient '!F21-'3a_projekcje_klient '!E21+'3a_projekcje_klient '!E8-'3a_projekcje_klient '!F8+'3a_projekcje_klient '!E11-'3a_projekcje_klient '!F11 -> 0 | G84: =F83+'7'!F65+'3a_projekcje_klient '!G21-'3a_projekcje_klient '!F21+'3a_projekcje_klient '!F8-'3a_projekcje_klient '!G8+'3a_projekcje_klient '!F11-'3a_projekcje_klient '!G11 -> 0
D85: zm apbiez | F85: =E8-F8+E11-F11+F21-E21+F23-E23+F24-E24 -> 0

Sheet 3_Zał_F_TISE (hidden)
C1: Załącznik F. Dane finansowe i założenia
A2: I. | C2: Uproszczone sprawozdania z dotychczasowej działalności
C3: Bilans | I3: Uproszczony Rachunek zysków i strat | M3: Struktura nalezności i zobowiązań
C4: Aktywa | D4: ='3_Zał_F_dane fin i zał_klient'!D5 -> 2013 | E4: Pasywa | G4: ='3_Zał_F_dane fin i zał_klient'!G5 -> 2013 | I4: rzis | K4: ='3_Zał_F_dane fin i zał_klient'!K5 -> 2013 | M4: Wyszczególnienie | N4: ='3_Zał_F_dane fin i zał_klient'!N5 -> koniec roku | O4: ='3_Zał_F_dane fin i zał_klient'!O5 -> koniec kw …
C5: Aktywa trwałe | D5: ='3_Zał_F_dane fin i zał_klient'!D6 -> 0 | E5: Kapitały własne | G5: =D14-G7-G8-G11-G12-G13 -> 0 | I5: I. Przychody ogółem (II+III+IV+V), z tego | K5: =K6+K7+K8+K9 -> 0 | M5: Nalezności ogółem , z tego | N5: ='3_Zał_F_dane fin i zał_klient'!N6 -> 0 | O5: ='3_Zał_F_dane fin i zał_klient'!O6 -> 0
C6: Zapasy | D6: ='3_Zał_F_dane fin i zał_klient'!D7 -> 0 | E6: w tym wynik netto | G6: =K20 -> 0 | I6: II. Przychody z działalności gospodarczej , ze sprzedaży produktów, usług i towarów ogółem | K6: ='3_Zał_F_dane fin i zał_klient'!K7 -> 0 | M6: nieprzeterminowane | N6: ='3_Zał_F_dane fin i zał_klient'!N7 -> 0 | O6: ='3_Zał_F_dane fin i zał_klient'!O7 -> 0
C7: Należności | D7: =D8+D9 -> 0 | E7: Dług oprocentowany długoterminowy/ kredyty pożyczki , leasingi/ | G7: ='3_Zał_F_dane fin i zał_klient'!G8 -> 0 | I7: III. Pozostałe przychody operacyjne | K7: ='3_Zał_F_dane fin i zał_klient'!K8 -> 0 | M7: przeterminowane , w tym | N7: ='3_Zał_F_dane fin i zał_klient'!N8 -> 0 | O7: ='3_Zał_F_dane fin i zał_klient'!O8 -> 0
C8: - od odbiorców /handlowe/ | D8: ='3_Zał_F_dane fin i zał_klient'!D9 -> 0 | E8: Zobowiązania krótkoterminowe | G8: =G9+G10 -> 0 | I8: IV. Przychody finansowe | K8: ='3_Zał_F_dane fin i zał_klient'!K9 -> 0 | M8: 90-120 dni | N8: ='3_Zał_F_dane fin i zał_klient'!N9 -> 0 | O8: ='3_Zał_F_dane fin i zał_klient'!O9 -> 0
C9: - pozostałe należności | D9: ='3_Zał_F_dane fin i zał_klient'!D10 -> 0 | E9: - handlowe | G9: ='3_Zał_F_dane fin i zał_klient'!G10 -> 0 | I9: V. Przychody z działalności statutowej | K9: ='3_Zał_F_dane fin i zał_klient'!K10 -> 0 | M9: powyżej 120 dni | N9: ='3_Zał_F_dane fin i zał_klient'!N10 -> 0 | O9: ='3_Zał_F_dane fin i zał_klient'!O10 -> 0
C10: śr pieniężne | D10: ='3_Zał_F_dane fin i zał_klient'!D11 -> 0 | E10: - kredyty obrotowe | G10: ='3_Zał_F_dane fin i zał_klient'!G11 -> 0 | I10: VI. Koszty działalności gospodarczej, w tym | K10: =K11+K12+K13+K14+K15+K16 -> 0 | M10: Zobowiązania bieżące ogółem , z tego | N10: ='3_Zał_F_dane fin i zał_klient'!N11 -> 0 | O10: ='3_Zał_F_dane fin i zał_klient'!O11 -> 0
C11: inne składniki majątkowe | D11: ='3_Zał_F_dane fin i zał_klient'!D12 -> 0 | E11: Pozostałe zobowiązania | G11: ='3_Zał_F_dane fin i zał_klient'!G12 -> 0 | I11: amortyzacja | K11: ='3_Zał_F_dane fin i zał_klient'!K12 -> 0 | M11: nieprzeterminowane | N11: ='3_Zał_F_dane fin i zał_klient'!N12 -> 0 | O11: ='3_Zał_F_dane fin i zał_klient'!O12 -> 0
E12: Inne pasywa krótkoterminowe | G12: ='3_Zał_F_dane fin i zał_klient'!G13 -> 0 | I12: koszty eksploatacyjne - np. czynsz,zużycie materiałów i energii, transport ,podatki , opłaty, inne | K12: ='3_Zał_F_dane fin i zał_klient'!K13 -> 0 | M12: przeterminowane , w tym | N12: ='3_Zał_F_dane fin i zał_klient'!N13 -> 0 | O12: ='3_Zał_F_dane fin i zał_klient'!O13 -> 0
E13: Inne pasywa długoterminowe | G13: ='3_Zał_F_dane fin i zał_klient'!G14 -> 0 | I13: wynagrodzenia z narzutami | K13: ='3_Zał_F_dane fin i zał_klient'!K14 -> 0 | M13: 90-120 dni | N13: ='3_Zał_F_dane fin i zał_klient'!N14 -> 0 | O13: ='3_Zał_F_dane fin i zał_klient'!O14 -> 0
C14: Razem Aktywa | D14: =D5+D6+D7+D10+D11 -> 0 | E14: Razem Pasywa | G14: =G5+G7+G8+G11+G12+G13 -> 0 | I14: koszt sprzedanych towarów , materiałów , usług | K14: ='3_Zał_F_dane fin i zał_klient'!K15 -> 0 | M14: powyżej 120 dni | N14: ='3_Zał_F_dane fin i zał_klient'!N15 -> 0 | O14: ='3_Zał_F_dane fin i zał_klient'!O15 -> 0
I15: Pozostałe koszty operacyjne | K15: ='3_Zał_F_dane fin i zał_klient'!K16 -> 0
I16: Koszty finansowe | K16: ='3_Zał_F_dane fin i zał_klient'!K17 -> 0
I17: VII. Koszty realizacji zadań statutowych | K17: ='3_Zał_F_dane fin i zał_klient'!K18 -> 0
I18: Wynik na działaln nadzwyczajnej | K18: ='3_Zał_F_dane fin i zał_klient'!K19 -> 0
I19: Podatek dochodowy | K19: ='3_Zał_F_dane fin i zał_klient'!K20 -> 0
I20: Wynik netto | K20: =K5-K10-K17+K18-K19 -> 0
A22: II. | C22: Planowane spłaty rat kapitałowych dotychczasowych długoterminowych pożyczek / kredytów / leasingu finansowegp ogółem
E23: ='3_Zał_F_dane fin i zał_klient'!E24 -> Kwartał 1 | F23: ='3_Zał_F_dane fin i zał_klient'!F24 -> Kwartał 2 | G23: ='3_Zał_F_dane fin i zał_klient'!G24 -> Kwartał 3 | H23: ='3_Zał_F_dane fin i zał_klient'!H24 -> Kwartał 4 | I23: ='3_Zał_F_dane fin i zał_klient'!I24 -> 2014 | J23: ='3_Zał_F_dane fin i zał_klient'!J24 -> 2015 | K23: ='3_Zał_F_dane fin i zał_klient'!K24 -> 2016 | L23: ='3_Zał_F_dane fin i zał_klient'!L24 -> 2017 | M23: ='3_Zał_F_dane fin i zał_klient'!M24 -> 2018 | N23: ='3_Zał_F_dane fin i zał_klient'!N24 -> 2019
C24: Razem , z tego | E24: =SUM(E25:E27) -> 0 | F24: 0 | G24: 0 | H24: 0 | I24: 0 | J24: 0 | K24: 0 | L24: 0 | M24: 0 | N24: 0
C25: kredyt 1 | E25: ='3_Zał_F_dane fin i zał_klient'!E26 -> 0 | F25: ='3_Zał_F_dane fin i zał_klient'!F26 -> 0 | G25: ='3_Zał_F_dane fin i zał_klient'!G26 -> 0 | H25: ='3_Zał_F_dane fin i zał_klient'!H26 -> 0 | I25: =SUM(E25:H25) -> 0 | J25: ='3_Zał_F_dane fin i zał_klient'!J26 -> 0 | K25: ='3_Zał_F_dane fin i zał_klient'!K26 -> 0 | L25: ='3_Zał_F_dane fin i zał_klient'!L26 -> 0 | M25: ='3_Zał_F_dane fin i zał_klient'!M26 -> 0 | N25: ='3_Zał_F_dane fin i zał_klient'!N26 -> 0
C26: kredyt 2 | E26: ='3_Zał_F_dane fin i zał_klient'!E27 -> 0 | F26: ='3_Zał_F_dane fin i zał_klient'!F27 -> 0 | G26: ='3_Zał_F_dane fin i zał_klient'!G27 -> 0 | H26: ='3_Zał_F_dane fin i zał_klient'!H27 -> 0 | I26: =SUM(E26:H26) -> 0 | J26: ='3_Zał_F_dane fin i zał_klient'!J27 -> 0 | K26: ='3_Zał_F_dane fin i zał_klient'!K27 -> 0 | L26: ='3_Zał_F_dane fin i zał_klient'!L27 -> 0 | M26: ='3_Zał_F_dane fin i zał_klient'!M27 -> 0 | N26: ='3_Zał_F_dane fin i zał_klient'!N27 -> 0
C27: pozostałe | E27: ='3_Zał_F_dane fin i zał_klient'!E28 -> 0 | F27: ='3_Zał_F_dane fin i zał_klient'!F28 -> 0 | G27: ='3_Zał_F_dane fin i zał_klient'!G28 -> 0 | H27: ='3_Zał_F_dane fin i zał_klient'!H28 -> 0 | I27: =SUM(E27:H27) -> 0 | J27: ='3_Zał_F_dane fin i zał_klient'!J28 -> 0 | K27: ='3_Zał_F_dane fin i zał_klient'!K28 -> 0 | L27: ='3_Zał_F_dane fin i zał_klient'!L28 -> 0 | M27: ='3_Zał_F_dane fin i zał_klient'!M28 -> 0 | N27: ='3_Zał_F_dane fin i zał_klient'!N28 -> 0
C28: Stan kredytów i pozyczek dotychczasowych długoterminowych po planowanych spłatach
C29: Razem , z tego | D29: ='3_Zał_F_dane fin i zał_klient'!D30 -> 2013 | E29: =E23 -> Kwartał 1 | F29: =F23 -> Kwartał 2 | G29: Kwartał 3 | H29: Kwartał 4 | I29: 2014 | J29: 2015 | K29: 2016 | L29: 2017 | M29: 2018 | N29: 2019
D30: =G7 -> 0 | E30: =SUM(E31:E33) -> 0 | F30: 0 | G30: 0 | H30: 0 | I30: 0 | J30: 0 | K30: 0 | L30: 0 | M30: 0 | N30: 0
C31: kredyt 1 | D31: ='3_Zał_F_dane fin i zał_klient'!D32 -> 0 | E31: =D31-E25 -> 0 | F31: =E31-F25 -> 0 | G31: 0 | H31: 0 | I31: =H31 -> 0 | J31: =I31-J25 -> 0 | K31: 0 | L31: 0 | M31: 0 | N31: 0
C32: kredyt 2 | D32: ='3_Zał_F_dane fin i zał_klient'!D33 -> 0 | E32: =D32-E26 -> 0 | F32: =E32-F26 -> 0 | G32: 0 | H32: 0 | I32: =H32 -> 0 | J32: =I32-J26 -> 0 | K32: 0 | L32: 0 | M32: 0 | N32: 0
C33: pozostałe | D33: ='3_Zał_F_dane fin i zał_klient'!D34 -> 0 | E33: =D33-E27 -> 0 | F33: =E33-F27 -> 0 | G33: 0 | H33: 0 | I33: 0 | J33: =I33-J27 -> 0 | K33: 0 | L33: 0 | M33: 0 | N33: 0
C34: suma kontr | D34: =D33+D32+D31 -> 0 | E34: =E33+E32+E31 -> 0 | F34: 0 | G34: 0 | H34: 0 | I34: 0 | J34: 0 | K34: 0 | L34: 0 | M34: 0 | N34: 0
A36: III. | C36: Planowane spłaty rat kapitałowych pożyczek / kredytów / leasingu zaciągniętych na nowe przedsięwzięcie ogółem
C37: Razem , z tego | E37: =E29 -> Kwartał 1 | F37: =F29 -> Kwartał 2 | G37: Kwartał 3 | H37: Kwartał 4 | I37: 2014 | J37: 2015 | K37: 2016 | L37: 2017 | M37: 2018 | N37: 2019
E38: =SUM(E39:E41) -> 0 | F38: =SUM(F39:F41) -> 0 | G38: 0 | H38: 0 | I38: 0 | J38: 0 | K38: 0 | L38: 0 | M38: 0 | N38: 0
C39: pożyczka z ES | E39: ='3_Zał_F_dane fin i zał_klient'!E40 -> 0 | F39: ='3_Zał_F_dane fin i zał_klient'!F40 -> 0 | G39: ='3_Zał_F_dane fin i zał_klient'!G40 -> 0 | H39: ='3_Zał_F_dane fin i zał_klient'!H40 -> 0 | I39: =SUM(E39:H39) -> 0 | J39: ='3_Zał_F_dane fin i zał_klient'!J40 -> 0 | K39: ='3_Zał_F_dane fin i zał_klient'!K40 -> 0 | L39: ='3_Zał_F_dane fin i zał_klient'!L40 -> 0 | M39: ='3_Zał_F_dane fin i zał_klient'!M40 -> 0 | N39: ='3_Zał_F_dane fin i zał_klient'!N40 -> 0
C40: inne | D40: kredyt 1 | E40: ='3_Zał_F_dane fin i zał_klient'!E41 -> 0 | F40: ='3_Zał_F_dane fin i zał_klient'!F41 -> 0 | G40: ='3_Zał_F_dane fin i zał_klient'!G41 -> 0 | H40: ='3_Zał_F_dane fin i zał_klient'!H41 -> 0 | I40: =SUM(E40:H40) -> 0 | J40: ='3_Zał_F_dane fin i zał_klient'!J41 -> 0 | K40: ='3_Zał_F_dane fin i zał_klient'!K41 -> 0 | L40: ='3_Zał_F_dane fin i zał_klient'!L41 -> 0 | M40: ='3_Zał_F_dane fin i zał_klient'!M41 -> 0 | N40: ='3_Zał_F_dane fin i zał_klient'!N41 -> 0
C41: inne | D41: kredyt 2 | E41: ='3_Zał_F_dane fin i zał_klient'!E42 -> 0 | F41: ='3_Zał_F_dane fin i zał_klient'!F42 -> 0 | G41: ='3_Zał_F_dane fin i zał_klient'!G42 -> 0 | H41: ='3_Zał_F_dane fin i zał_klient'!H42 -> 0 | I41: =SUM(E41:H41) -> 0 | J41: ='3_Zał_F_dane fin i zał_klient'!J42 -> 0 | K41: ='3_Zał_F_dane fin i zał_klient'!K42 -> 0 | L41: ='3_Zał_F_dane fin i zał_klient'!L42 -> 0 | M41: ='3_Zał_F_dane fin i zał_klient'!M42 -> 0 | N41: ='3_Zał_F_dane fin i zał_klient'!N42 -> 0
C42: Stan planowanych kredytów i pozyczek po planowanych spłatach
C43: Razem , z tego | E43: =E37 -> Kwartał 1 | F43: =F37 -> Kwartał 2 | G43: Kwartał 3 | H43: Kwartał 4 | I43: 2014 | J43: 2015 | K43: 2016 | L43: 2017 | M43: 2018 | N43: 2019
E44: =SUM(E45:E46) -> 0 | F44: 0 | G44: 0 | H44: 0 | I44: 0 | J44: 0 | K44: 0 | L44: 0 | M44: 0 | N44: 0
C45: pożyczka z ES | E45: ='1_wniosek'!E161-E39 -> 0 | F45: ='1_wniosek'!F161-F39+E45 -> 0 | G45: ='1_wniosek'!G161-G39+F45 -> 0 | H45: ='1_wniosek'!H161-H39+G45 -> 0 | I45: =H45 -> 0 | J45: ='1_wniosek'!J161-J39+I45 -> 0 | K45: ='1_wniosek'!K161-K39+J45 -> 0 | L45: ='1_wniosek'!L161-L39+K45 -> 0 | M45: ='1_wniosek'!M161-M39+L45 -> 0 | N45: ='1_wniosek'!N161-N39+M45 -> 0
C46: kredyt 1 | E46: ='1_wniosek'!E166-E40 -> 0 | F46: ='1_wniosek'!F166-F40+E46 -> 0 | G46: ='1_wniosek'!G166-G40+F46 -> 0 | H46: ='1_wniosek'!H166-H40+G46 -> 0 | I46: =H46 -> 0 | J46: ='1_wniosek'!J166-J40+I46 -> 0 | K46: ='1_wniosek'!K166-K40+J46 -> 0 | L46: ='1_wniosek'!L166-L40+K46 -> 0 | M46: ='1_wniosek'!M166-M40+L46 -> 0 | N46: ='1_wniosek'!N166-N40+M46 -> 0
C47: kredyt 2 | E47: ='1_wniosek'!E167-E41 -> 0 | F47: ='1_wniosek'!F167-F41+E47 -> 0 | G47: ='1_wniosek'!G167-G41+F47 -> 0 | H47: ='1_wniosek'!H167-H41+G47 -> 0 | I47: =H47 -> 0 | J47: ='1_wniosek'!J167-J41+I47 -> 0 | K47: ='1_wniosek'!K167-K41+J47 -> 0 | L47: ='1_wniosek'!L167-L41+K47 -> 0 | M47: ='1_wniosek'!M167-M41+L47 -> 0 | N47: ='1_wniosek'!N167-N41+M47 -> 0
D49: =D30 -> 0 | E49: =E44+E30 -> 0 | F49: =F44+F30 -> 0 | G49: 0 | H49: 0 | I49: 0 | J49: 0 | K49: 0 | L49: 0 | M49: 0 | N49: 0 | O49: oprocentowanie
C50: k finansowe pożyczki es | E50: =(E45+D45)/2*$O$50 -> 0 | F50: 0 | G50: 0 | H50: =(H45+G45)/2*$O$50 -> 0 | I50: =SUM(E50:H50) -> 0 | J50: 0 | K50: 0 | L50: 0 | M50: 0 | N50: =(N45+M45)/2*$O$50 -> 0 | O50: ='1_wniosek'!T9 -> 0
C51: k finansowe kred 1 | E51: =(E46+D46)/2*'1_wniosek'!$D$166 -> 0 | F51: =(F46+E46)/2*'1_wniosek'!$D$166 -> 0 | G51: =(G46+F46)/2*'1_wniosek'!$D$166 -> 0 | H51: =(H46+G46)/2*'1_wniosek'!$D$166 -> 0 | I51: =SUM(E51:H51) -> 0 | J51: =(J46+I46)/2*'1_wniosek'!$D$166 -> 0 | K51: =(K46+J46)/2*'1_wniosek'!$D$166 -> 0 | L51: =(L46+K46)/2*'1_wniosek'!$D$166 -> 0 | M51: =(M46+L46)/2*'1_wniosek'!$D$166 -> 0 | N51: =(N46+M46)/2*'1_wniosek'!$D$166 -> 0 | O51: ='1_wniosek'!D166 -> 0
C52: k finansowe kred 2 | E52: =(E47+D47)/2*'1_wniosek'!$D$167 -> 0 | F52: =(F47+E47)/2*'1_wniosek'!$D$167 -> 0 | G52: =(G47+F47)/2*'1_wniosek'!$D$167 -> 0 | H52: =(H47+G47)/2*'1_wniosek'!$D$167 -> 0 | I52: 0 | J52: =(J47+I47)/2*'1_wniosek'!$D$167 -> 0 | K52: =(K47+J47)/2*'1_wniosek'!$D$167 -> 0 | L52: =(L47+K47)/2*'1_wniosek'!$D$167 -> 0 | M52: =(M47+L47)/2*'1_wniosek'!$D$167 -> 0 | N52: =(N47+M47)/2*'1_wniosek'!$D$167 -> 0 | O52: ='1_wniosek'!D167 -> 0
J54: =J50+J51+J52 -> 0 | K54: =K50+K51+K52 -> 0 | L54: 0 | M54: 0 | N54: 0

Sheet 7 (hidden)
A1: 7
B2: Założenia dotyczące dotychczasowej działalności ( w tys. zł.) | E2: 1 kw | F2: 2 kw | G2: 3 kw | H2: 4 kw | I2: razem 1 rok | J2: 2 rok | K2: 3 rok | L2: 4 rok | M2: 5 rok | N2: 5 rok
B3: 1. | C3: Planowane przychody ogółem, z tego: | E3: =E4 -> 0 | F3: =F4 -> 0 | G3: 0 | H3: 0 | I3: 0 | J3: 0 | K3: 0 | L3: 0 | M3: 0 | N3: 0 | O3: popr 30.09
B4: 1a. | C4: Przychody ze sprzedaży | E4: ='1_wniosek'!E188-'1_wniosek'!E190 -> 0 | F4: ='1_wniosek'!F188-'1_wniosek'!F190 -> 0 | G4: ='1_wniosek'!G188-'1_wniosek'!G190 -> 0 | H4: ='1_wniosek'!H188-'1_wniosek'!H190 -> 0 | I4: ='1_wniosek'!I188-'1_wniosek'!I190 -> 0 | J4: ='1_wniosek'!J188-'1_wniosek'!J190 -> 0 | K4: ='1_wniosek'!K188-'1_wniosek'!K190 -> 0 | L4: ='1_wniosek'!L188-'1_wniosek'!L190 -> 0 | M4: ='1_wniosek'!M188-'1_wniosek'!M190 -> 0 | N4: ='1_wniosek'!N188-'1_wniosek'!N190 -> 0 | O4: popr 13.10
B5: 1b. | C5: Pozostałe przychody operacyjne - razem, z tego | E5: =E6-E7+E8 ->  | F5: =F6-F7+F8 ->  | I5: =SUM(E5:H5) ->  | J5: =J6-J7+J8 ->  | K5: =K6-K7+K8 ->  | L5: =L6-L7+L8 ->  | M5: =M6-M7+M8 -> 
B6: 1b.1. | C6: planowana wartość sprzedaży aktywów trwałych | E6: ='1_wniosek'!#REF! ->  | F6: ='1_wniosek'!#REF! ->  | G6: ='1_wniosek'!#REF! ->  | H6: ='1_wniosek'!#REF! ->  | I6: ='1_wniosek'!#REF! ->  | J6: ='1_wniosek'!#REF! ->  | K6: ='1_wniosek'!#REF! ->  | L6: ='1_wniosek'!#REF! ->  | M6: ='1_wniosek'!#REF! ->  | N6: ='1_wniosek'!#REF! -> 
B7: 1b.2. | C7: dotychczasowe umorzenie sprzedanych aktywów trwałych | E7: ='1_wniosek'!#REF! ->  | F7: ='1_wniosek'!#REF! ->  | G7: ='1_wniosek'!#REF! ->  | H7: ='1_wniosek'!#REF! ->  | I7: ='1_wniosek'!#REF! ->  | J7: ='1_wniosek'!#REF! ->  | K7: ='1_wniosek'!#REF! ->  | L7: ='1_wniosek'!#REF! ->  | M7: ='1_wniosek'!#REF! ->  | N7: ='1_wniosek'!#REF! -> 
B8: 1b.3. | C8: inne, pozostałe przychody operacyjne | E8: ='1_wniosek'!#REF! ->  | F8: ='1_wniosek'!#REF! ->  | G8: ='1_wniosek'!#REF! ->  | H8: ='1_wniosek'!#REF! ->  | I8: ='1_wniosek'!#REF! ->  | J8: ='1_wniosek'!#REF! ->  | K8: ='1_wniosek'!#REF! ->  | L8: ='1_wniosek'!#REF! ->  | M8: ='1_wniosek'!#REF! ->  | N8: ='1_wniosek'!#REF! -> 
B9: 1c. | C9: Przychody finansowe | E9: ='1_wniosek'!E193 -> 0 | F9: ='1_wniosek'!F193 -> 0 | G9: ='1_wniosek'!G193 -> 0 | H9: ='1_wniosek'!H193 -> 0 | I9: ='1_wniosek'!I193 -> 0 | J9: ='1_wniosek'!J193 -> 0 | K9: ='1_wniosek'!K193 -> 0 | L9: ='1_wniosek'!L193 -> 0 | M9: ='1_wniosek'!M193 -> 0 | N9: ='1_wniosek'!N193 -> 0
C10: V. Przychody z działalności statutowej | E10: ='1_wniosek'!E194 -> 0 | F10: ='1_wniosek'!F194 -> 0 | G10: ='1_wniosek'!G194 -> 0 | H10: ='1_wniosek'!H194 -> 0 | I10: ='1_wniosek'!I194 -> 0 | J10: ='1_wniosek'!J194 -> 0 | K10: ='1_wniosek'!K194 -> 0 | L10: ='1_wniosek'!L194 -> 0 | M10: ='1_wniosek'!M194 -> 0 | N10: ='1_wniosek'!N194 -> 0
P15: przepływy nie uwzględniają
B16: 2.a | C16: Planowane koszty dotychczasowej działalności operacyjnej ogółem, z tego | E16: =E17+E18+E19+E20+E21 -> 0 | F16: =F17+F18+F19+F20+F21 -> 0 | G16: 0 | H16: 0 | I16: 0 | J16: 0 | K16: 0 | L16: 0 | M16: 0 | N16: 0 | O16: popr30.09.2013
B17: 2a.1 | C17: amortyzacja | E17: ='1_wniosek'!E198 -> 0 | F17: ='1_wniosek'!F198 -> 0 | G17: ='1_wniosek'!G198 -> 0 | H17: ='1_wniosek'!H198 -> 0 | I17: ='1_wniosek'!I198 -> 0 | J17: ='1_wniosek'!J198 -> 0 | K17: ='1_wniosek'!K198 -> 0 | L17: ='1_wniosek'!L198 -> 0 | M17: ='1_wniosek'!M198 -> 0 | N17: ='1_wniosek'!N198 -> 0
B18: 2a.2 | C18: pozostałe koszty działalności | E18: ='1_wniosek'!E200+'1_wniosek'!E201+'1_wniosek'!E202 -> 0 | F18: ='1_wniosek'!F200+'1_wniosek'!F201+'1_wniosek'!F202 -> 0 | G18: ='1_wniosek'!G200+'1_wniosek'!G201+'1_wniosek'!G202 -> 0 | H18: ='1_wniosek'!H200+'1_wniosek'!H201+'1_wniosek'!H202 -> 0 | I18: ='1_wniosek'!I200+'1_wniosek'!I201+'1_wniosek'!I202 -> 0 | J18: ='1_wniosek'!J200+'1_wniosek'!J201+'1_wniosek'!J202 -> 0 | K18: ='1_wniosek'!K200+'1_wniosek'!K201+'1_wniosek'!K202 -> 0 | L18: ='1_wniosek'!L200+'1_wniosek'!L201+'1_wniosek'!L202 -> 0 | M18: ='1_wniosek'!M200+'1_wniosek'!M201+'1_wniosek'!M202 -> 0 | N18: ='1_wniosek'!N200+'1_wniosek'!N201+'1_wniosek'!N202 -> 0
B19: 2b. | C19: pozostałe koszty operacyjne | E19: ='1_wniosek'!E206 -> 0 | F19: ='1_wniosek'!F206 -> 0 | G19: ='1_wniosek'!G206 -> 0 | H19: ='1_wniosek'!H206 -> 0 | I19: ='1_wniosek'!I206 -> 0 | J19: ='1_wniosek'!J206 -> 0 | K19: ='1_wniosek'!K206 -> 0 | L19: ='1_wniosek'!L206 -> 0 | M19: ='1_wniosek'!M206 -> 0 | N19: ='1_wniosek'!N206 -> 0
B20: 2c. | C20: planowane koszty finansowe dotyczące dotychczas zobow | E20: ='1_wniosek'!E204 -> 0 | F20: ='1_wniosek'!F204 -> 0 | G20: ='1_wniosek'!G204 -> 0 | H20: ='1_wniosek'!H204 -> 0 | I20: ='1_wniosek'!I204 -> 0 | J20: ='1_wniosek'!J204 -> 0 | K20: ='1_wniosek'!K204 -> 0 | L20: ='1_wniosek'!L204 -> 0 | M20: ='1_wniosek'!M204 -> 0 | N20: ='1_wniosek'!N204 -> 0
B21: 3. | C21: VII. Koszty realizacji zadań statutowych | E21: ='1_wniosek'!E207 -> 0 | F21: ='1_wniosek'!F207 -> 0 | G21: ='1_wniosek'!G207 -> 0 | H21: ='1_wniosek'!H207 -> 0 | I21: ='1_wniosek'!I207 -> 0 | J21: ='1_wniosek'!J207 -> 0 | K21: ='1_wniosek'!K207 -> 0 | L21: ='1_wniosek'!L207 -> 0 | M21: ='1_wniosek'!M207 -> 0 | N21: ='1_wniosek'!N207 -> 0
B23: 4. | C23: Planowane spłaty rat kapitałowych dotychczasowych pożyczek / kredytów / leasingu ogółem | E23: =SUM(E24:E26) -> 0 | F23: 0 | G23: 0 | H23: 0 | I23: 0 | J23: 0 | K23: 0 | L23: 0 | M23: 0 | N23: =SUM(N24:N26) -> 0
B24: 4.a | C24: kredyt 1 | E24: ='3_Zał_F_TISE'!E24 -> 0 | F24: ='3_Zał_F_TISE'!F24 -> 0 | G24: ='3_Zał_F_TISE'!G24 -> 0 | H24: ='3_Zał_F_TISE'!H24 -> 0 | I24: ='3_Zał_F_TISE'!I24 -> 0 | J24: ='3_Zał_F_TISE'!J24 -> 0 | K24: ='3_Zał_F_TISE'!K24 -> 0 | L24: ='3_Zał_F_TISE'!L24 -> 0 | M24: ='3_Zał_F_TISE'!M24 -> 0 | N24: ='3_Zał_F_TISE'!N24 -> 0
B25: 4.b | I25: =SUM(E25:H25) -> 0
B26: 4.c | I26: =SUM(E26:H26) -> 0
B28: Założenia dotyczące kapitału obrotowego w dotychczasowej działalności | D28: rok ubiegły | E28: 1 kw 1 rok | F28: 2 kw 1 rok | G28: 3 kw 1 rok | H28: 4 kw 1 rok | I28: razem 1 rok | J28: 2 rok | K28: 3 rok | L28: 4 rok | M28: 5 rok | N28: 5 rok
B29: 5. | C29: Planowane zmiany kapitału obrotowego - w dniach | D29: =D31-D30-D32 ->  | E29: =E31-E30-E32 -> 0 | F29: =F31-F30-F32 -> 0 | G29: 0 | H29: 0 | I29: 0 | J29: 0 | K29: 0 | L29: 0 | M29: 0 | N29: =N31-N30-N32 -> 0
B30: 5a. | C30: Planowane średnie terminy płatności przez odbiorców w dniach | D30: ='3_Zał_F_TISE'!D8*360/'3_Zał_F_TISE'!K5 ->  | E30: ='4_założenia KO'!D14 -> 0 | F30: ='4_założenia KO'!E14 -> 0 | G30: ='4_założenia KO'!F14 -> 0 | H30: ='4_założenia KO'!G14 -> 0 | I30: ='4_założenia KO'!H14 -> 0 | J30: ='4_założenia KO'!I14 -> 0 | K30: ='4_założenia KO'!J14 -> 0 | L30: ='4_założenia KO'!K14 -> 0 | M30: ='4_założenia KO'!L14 -> 0 | N30: ='4_założenia KO'!M14 -> 0 | O30: poprawka 22.09.2013 przychody ogółem a nie z działalności gospodarczej
B31: 5b. | C31: Planowane średnie terminy płatności za bieżace zobowiązania dla dostawców w dniach | D31: ='3_Zał_F_TISE'!G9*360/'3_Zał_F_TISE'!K5 ->  | E31: ='4_założenia KO'!D15 -> 0 | F31: ='4_założenia KO'!E15 -> 0 | G31: ='4_założenia KO'!F15 -> 0 | H31: ='4_założenia KO'!G15 -> 0 | I31: ='4_założenia KO'!H15 -> 0 | J31: ='4_założenia KO'!I15 -> 0 | K31: ='4_założenia KO'!J15 -> 0 | L31: ='4_założenia KO'!K15 -> 0 | M31: ='4_założenia KO'!L15 -> 0 | N31: ='4_założenia KO'!M15 -> 0
B32: 5c. | C32: Planowana średnia rotacja zapasów w magazynie - w dniach | D32: ='3_Zał_F_TISE'!D6*360/'3_Zał_F_TISE'!K5 ->  | E32: ='4_założenia KO'!D16 -> 0 | F32: ='4_założenia KO'!E16 -> 0 | G32: ='4_założenia KO'!F16 -> 0 | H32: ='4_założenia KO'!G16 -> 0 | I32: ='4_założenia KO'!H16 -> 0 | J32: ='4_założenia KO'!I16 -> 0 | K32: ='4_założenia KO'!J16 -> 0 | L32: ='4_założenia KO'!K16 -> 0 | M32: ='4_założenia KO'!L16 -> 0 | N32: ='4_założenia KO'!M16 -> 0
B34: Założenia dotyczące zmian elementów uproszczonego bilansu sporządzonego przez wnioskodawcę | D34: rok ubiegły | E34: 1 kw 1 rok | F34: 2 kw 1 rok | G34: 3 kw 1 rok | H34: 4 kw 1 rok | I34: razem 1 rok | J34: 2 rok | K34: 3 rok | L34: 4 rok | M34: 5 rok | N34: 5 rok
B35: 6. | C35: Planowane stany" innych składników majątkowych " z uproszczonego bilansu | D35: ='3_Zał_F_TISE'!D11 -> 0 | E35: ='4_założenia KO'!D20 -> 0 | F35: ='4_założenia KO'!E20 -> 0 | G35: ='4_założenia KO'!F20 -> 0 | H35: ='4_założenia KO'!G20 -> 0 | I35: ='4_założenia KO'!H20 -> 0 | J35: ='4_założenia KO'!I20 -> 0 | K35: ='4_założenia KO'!J20 -> 0 | L35: ='4_założenia KO'!K20 -> 0 | M35: ='4_założenia KO'!L20 -> 0 | N35: ='4_założenia KO'!M20 -> 0
B36: 7. | C36: Planowane stany "Pozostałych zobowiązań" z uproszczonego bilansu | D36: ='3_Zał_F_TISE'!G11 -> 0 | E36: ='4_założenia KO'!D21 -> 0 | F36: ='4_założenia KO'!E21 -> 0 | G36: ='4_założenia KO'!F21 -> 0 | H36: ='4_założenia KO'!G21 -> 0 | I36: ='4_założenia KO'!H21 -> 0 | J36: ='4_założenia KO'!I21 -> 0 | K36: ='4_założenia KO'!J21 -> 0 | L36: ='4_założenia KO'!K21 -> 0 | M36: ='4_założenia KO'!L21 -> 0 | N36: ='4_założenia KO'!M21 -> 0
B37: 8. | C37: Planowane stany "Innych pasywów kr" z uproszczonego bilansu | D37: ='3_Zał_F_TISE'!G12 -> 0 | E37: ='4_założenia KO'!D22 -> 0 | F37: ='4_założenia KO'!E22 -> 0 | G37: ='4_założenia KO'!F22 -> 0 | H37: ='4_założenia KO'!G22 -> 0 | I37: ='4_założenia KO'!H22 -> 0 | J37: ='4_założenia KO'!I22 -> 0 | K37: ='4_założenia KO'!J22 -> 0 | L37: ='4_założenia KO'!K22 -> 0 | M37: ='4_założenia KO'!L22 -> 0 | N37: ='4_założenia KO'!M22 -> 0
B38: 9. | C38: Planowane stany "Innych pasywów długoterm" z uproszczonego bilansu | D38: ='3_Zał_F_TISE'!G13 -> 0 | E38: ='4_założenia KO'!D23 -> 0 | F38: ='4_założenia KO'!E23 -> 0 | G38: ='4_założenia KO'!F23 -> 0 | H38: ='4_założenia KO'!G23 -> 0 | I38: ='4_założenia KO'!H23 -> 0 | J38: ='4_założenia KO'!I23 -> 0 | K38: ='4_założenia KO'!J23 -> 0 | L38: ='4_założenia KO'!K23 -> 0 | M38: ='4_założenia KO'!L23 -> 0 | N38: ='4_założenia KO'!M23 -> 0
B40: Tabela 2a Kalkulacja przepływów pieniężnych z dotychczasowej działalności Wnioskodawcy
B41: Przepływy pieniężne z dotychczasowej działalności w tys. zł. | E41: 1 kw | F41: 2 kw | G41: 3 kw | H41: 4 kw | I41: razem 1 rok | J41: 2 rok | K41: 3 rok | L41: 4 rok | M41: 5 rok | N41: 5 rok
B42: - | C42: Nakłady inwestycyjne
B43: + | C43: Przychody | E43: =E3 -> 0 | F43: 0 | G43: =G3 -> 0 | H43: =H3 -> 0 | I43: 0 | J43: 0 | K43: 0 | L43: 0 | M43: 0 | N43: 0
B44: - | C44: Koszty działalności operacyjnej / w tym również amortyzacja/ | E44: =E16 -> 0 | F44: 0 | G44: 0 | H44: 0 | I44: 0 | J44: 0 | K44: 0 | L44: 0 | M44: 0 | N44: =N16 -> 0
B45: - | C45: Koszty finansowe | E45: =E20 -> 0 | F45: 0 | G45: 0 | H45: 0 | I45: 0 | J45: 0 | K45: 0 | L45: 0 | M45: 0 | N45: =N20 -> 0
B46: - | C46: Podatek dochodowy | E46: =IF((E43-(E44+E45))<=0,0,(E43-(E44+E45))*19%) -> 0 | F46: =IF((F43-(F44+F45))<=0,0,(F43-(F44+F45))*19%) -> 0 | G46: 0 | H46: 0 | I46: 0 | J46: 0 | K46: 0 | L46: 0 | M46: 0 | N46: =IF((N43-(N44+N45))<=0,0,(N43-(N44+N45))*19%) -> 0
B47: + | C47: Amortyzacja | E47: =E17 -> 0 | F47: 0 | G47: 0 | H47: 0 | I47: 0 | J47: 0 | K47: 0 | L47: 0 | M47: 0 | N47: =N17 -> 0
B48: "-/+" | C48: Zmiany kapitału obrotowego | E48: =E66-D66 -> 0 | F48: =F66-E66 -> 0 | G48: =G66-F66 -> 0 | H48: 0 | I48: 0 | J48: 0 | K48: 0 | L48: 0 | M48: 0 | N48: 0
B50: + | C50: Zaciągnięcia pożyczki
B51: - | C51: Spłata pożyczki | E51: =E24 -> 0 | F51: 0 | G51: 0 | H51: 0 | I51: 0 | J51: 0 | K51: 0 | L51: 0 | M51: 0 | N51: =N24 -> 0
B52: = | C52: Przepływy pieniężne z przedsięwzięcia (FCFEI) | E52: =-E42+E43-E44-E45-E46+E47+E48+E50-E51 -> 0 | F52: =-F42+F43-F44-F45-F46+F47+F48+F50-F51 -> 0 | G52: 0 | H52: 0 | I52: 0 | J52: 0 | K52: 0 | L52: 0 | M52: 0 | N52: =-N42+N43-N44-N45-N46+N47+N48+N50-N51 -> 0
B54: Tabela 2 Kalkulacja przepływów pieniężnych z całej działalności Wnioskodawcy
B55: Przepływy pieniężne z działalności całejw tys. zł. | E55: 1 kw | F55: 2 kw | G55: 3 kw | H55: 4 kw | I55: razem 1 rok | J55: 2 rok | K55: 3 rok | L55: 4 rok | M55: 5 rok | N55: 5 rok
B56: - | C56: Nakłady inwestycyjne | E56: =E42+'5'!E56 -> 0 | F56: =F42+'5'!F56 -> 0 | G56: =G42+'5'!G56 -> 0 | H56: =H42+'5'!H56 -> 0 | I56: =I42+'5'!I56 -> 0 | J56: =J42+'5'!J56 -> 0 | K56: =K42+'5'!K56 -> 0 | L56: =L42+'5'!L56 -> 0 | M56: =M42+'5'!M56 -> 0 | N56: =N42+'5'!N56 -> 0
B57: + | C57: Przychody | E57: =E43+'5'!E57 -> 0 | F57: =F43+'5'!F57 -> 0 | G57: =G43+'5'!G57 -> 0 | H57: =H43+'5'!H57 -> 0 | I57: =I43+'5'!I57 -> 0 | J57: =J43+'5'!J57 -> 0 | K57: =K43+'5'!K57 -> 0 | L57: =L43+'5'!L57 -> 0 | M57: =M43+'5'!M57 -> 0 | N57: =N43+'5'!N57 -> 0
B58: - | C58: Koszty działalności operacyjnej / w tym również amortyzacja/ | E58: =E44+'5'!E58 -> 0 | F58: =F44+'5'!F58 -> 0 | G58: =G44+'5'!G58 -> 0 | H58: =H44+'5'!H58 -> 0 | I58: =I44+'5'!I58 -> 0 | J58: =J44+'5'!J58 -> 0 | K58: =K44+'5'!K58 -> 0 | L58: =L44+'5'!L58 -> 0 | M58: =M44+'5'!M58 -> 0 | N58: =N44+'5'!N58 -> 0
B59: - | C59: Koszty finansowe | E59: =E45+'5'!E59 -> 0 | F59: =F45+'5'!F59 -> 0 | G59: =G45+'5'!G59 -> 0 | H59: =H45+'5'!H59 -> 0 | I59: =I45+'5'!I59 -> 0 | J59: =J45+'5'!J59 -> 0 | K59: =K45+'5'!K59 -> 0 | L59: =L45+'5'!L59 -> 0 | M59: =M45+'5'!M59 -> 0 | N59: =N45+'5'!N59 -> 0
B60: - | C60: Podatek dochodowy | E60: ='5_projekcje'!E42 -> 0 | F60: ='5_projekcje'!F42 -> 0 | G60: ='5_projekcje'!G42 -> 0 | H60: ='5_projekcje'!H42 -> 0 | I60: ='5_projekcje'!I42 -> 0 | J60: ='5_projekcje'!J42 -> 0 | K60: ='5_projekcje'!K42 -> 0 | L60: ='5_projekcje'!L42 -> 0 | M60: ='5_projekcje'!M42 -> 0 | N60: ='5_projekcje'!N42 -> 0
B61: + | C61: Amortyzacja | E61: =E47+'5'!E61 -> 0 | F61: =F47+'5'!F61 -> 0 | G61: =G47+'5'!G61 -> 0 | H61: =H47+'5'!H61 -> 0 | I61: =I47+'5'!I61 -> 0 | J61: =J47+'5'!J61 -> 0 | K61: =K47+'5'!K61 -> 0 | L61: =L47+'5'!L61 -> 0 | M61: =M47+'5'!M61 -> 0 | N61: =N47+'5'!N61 -> 0
B62: "-/+" | C62: Zmiany kapitału obrotowego | E62: =E48+'5'!E62 -> 0 | F62: =F48+'5'!F62 -> 0 | G62: =G48+'5'!G62 -> 0 | H62: =H48+'5'!H62 -> 0 | I62: =I48+'5'!I62 -> 0 | J62: =J48+'5'!J62 -> 0 | K62: =K48+'5'!K62 -> 0 | L62: =L48+'5'!L62 -> 0 | M62: =M48+'5'!M62 -> 0 | N62: =N48+'5'!N62 -> 0
B63: + | C63: Zaciągnięcia pożyczki | E63: =E50+'5'!E63 -> 0 | F63: =F50+'5'!F63 -> 0 | G63: =G50+'5'!G63 -> 0 | H63: =H50+'5'!H63 -> 0 | I63: =I50+'5'!I63 -> 0 | J63: =J50+'5'!J63 -> 0 | K63: =K50+'5'!K63 -> 0 | L63: =L50+'5'!L63 -> 0 | M63: =M50+'5'!M63 -> 0 | N63: =N50+'5'!N63 -> 0
B64: - | C64: Spłata pożyczki | E64: =E51+'5'!E64 -> 0 | F64: =F51+'5'!F64 -> 0 | G64: =G51+'5'!G64 -> 0 | H64: =H51+'5'!H64 -> 0 | I64: =I51+'5'!I64 -> 0 | J64: =J51+'5'!J64 -> 0 | K64: =K51+'5'!K64 -> 0 | L64: =L51+'5'!L64 -> 0 | M64: =M51+'5'!M64 -> 0 | N64: =N51+'5'!N64 -> 0
B65: = | C65: Przepływy pieniężne z przedsięwzięcia (FCFEI) | E65: =-E56+E57-E58-E59-E60+E61+E62+E63-E64 -> 0 | F65: =-F56+F57-F58-F59-F60+F61+F62+F63-F64 -> 0 | G65: 0 | H65: 0 | I65: 0 | J65: 0 | K65: 0 | L65: 0 | M65: 0 | N65: =-N56+N57-N58-N59-N60+N61+N62+N63-N64 -> 0
C66: dotychczasowa działalność | D66: =D68-D67-D69 -> 0 | E66: =IF('5_projekcje'!R3=0,D66,E68-E67-E69) -> 0 | F66: =IF('5_projekcje'!S3=0,E66,F68-F67-F69) -> 0 | G66: =IF('5_projekcje'!T3=0,F66,G68-G67-G69) -> 0 | H66: =IF('5_projekcje'!U3=0,G66,H68-H67-H69) -> 0 | I66: =I68-I67-I69 -> 0 | J66: 0 | K66: 0 | L66: 0 | M66: 0 | N66: =N68-N67-N69 -> 0 | O66: popr -22.09.2013
C67: nalezności handlowe | D67: ='3_Zał_F_TISE'!D8 -> 0 | E67: =IFERROR(IF('5_projekcje'!R3=0,D67,(E30*E3/'5'!E3)),0) -> 0 | F67: =IFERROR(IF('5_projekcje'!S3=0,E67,(F30*F3/'5'!F3)),0) -> 0 | G67: =IFERROR(IF('5_projekcje'!T3=0,F67,(G30*G3/'5'!G3)),0) -> 0 | H67: =IFERROR(IF('5_projekcje'!U3=0,G67,(H30*H3/'5'!H3)),0) -> 0 | I67: =IFERROR(I30*I3/'5'!I3,0) -> 0 | J67: =IFERROR(J30*J3/'5'!J3,0) -> 0 | K67: =IFERROR(K30*K3/'5'!K3,0) -> 0 | L67: =IFERROR(L30*L3/'5'!L3,0) -> 0 | M67: =IFERROR(M30*M3/'5'!M3,0) -> 0 | N67: =IFERROR(N30*N3/'5'!N3,0) -> 0
C68: zobow handlowe | D68: ='3_Zał_F_TISE'!G9 -> 0 | E68: =IFERROR(IF('5_projekcje'!R3=0,D68,(E31*E3/'5'!E3)),0) -> 0 | F68: =IFERROR(IF('5_projekcje'!S3=0,E68,(F31*F3/'5'!F3)),0) -> 0 | G68: =IFERROR(IF('5_projekcje'!T3=0,F68,(G31*G3/'5'!G3)),0) -> 0 | H68: =IFERROR(IF('5_projekcje'!U3=0,G68,(H31*H3/'5'!H3)),0) -> 0 | I68: =IFERROR(I31*I3/'5'!I3,0) -> 0 | J68: =IFERROR(J31*J3/'5'!J3,0) -> 0 | K68: =IFERROR(K31*K3/'5'!K3,0) -> 0 | L68: =IFERROR(L31*L3/'5'!L3,0) -> 0 | M68: =IFERROR(M31*M3/'5'!M3,0) -> 0 | N68: =IFERROR(N31*N3/'5'!N3,0) -> 0 | O68: popr dp przych ogółem-22.09.2013
C69: zapasy z dział dotychczasowej | D69: ='3_Zał_F_TISE'!D6 -> 0 | E69: =IFERROR(IF('5_projekcje'!R3=0,D69,(E32*E3/'5'!E3)),0) -> 0 | F69: =IFERROR(IF('5_projekcje'!S3=0,E69,(F32*F3/'5'!F3)),0) -> 0 | G69: =IFERROR(IF('5_projekcje'!T3=0,F69,(G32*G3/'5'!G3)),0) -> 0 | H69: =IFERROR(IF('5_projekcje'!U3=0,G69,(H32*H3/'5'!H3)),0) -> 0 | I69: =IFERROR(I32*I3/'5'!I3,0) -> 0 | J69: =IFERROR(J32*J3/'5'!J3,0) -> 0 | K69: =IFERROR(K32*K3/'5'!K3,0) -> 0 | L69: =IFERROR(L32*L3/'5'!L3,0) -> 0 | M69: =IFERROR(M32*M3/'5'!M3,0) -> 0 | N69: =IFERROR(N32*N3/'5'!N3,0) -> 0
C70: cała działalność | D70: =D72-D71-D73 -> 0 | E70: =E72-E71-E73 -> 0 | F70: =F72-F71-F73 -> 0 | G70: 0 | H70: 0 | I70: 0 | J70: 0 | K70: 0 | L70: 0 | M70: 0 | N70: =N72-N71-N73 -> 0
C71: nalezności | D71: 30 | E71: =E67+'5'!E67 -> 0 | F71: =F67+'5'!F67 -> 0 | G71: =G67+'5'!G67 -> 0 | H71: =H67+'5'!H67 -> 0 | I71: =H71 -> 0 | J71: =J67+'5'!J67 -> 0 | K71: =K67+'5'!K67 -> 0 | L71: =L67+'5'!L67 -> 0 | M71: =M67+'5'!M67 -> 0 | N71: =N67+'5'!N67 -> 0
C72: zobow handlowe | D72: 40 | E72: =E68+'5'!E68 -> 0 | F72: =F68+'5'!F68 -> 0 | G72: =G68+'5'!G68 -> 0 | H72: =H68+'5'!H68 -> 0 | I72: =H72 -> 0 | J72: =J68+'5'!J68 -> 0 | K72: =K68+'5'!K68 -> 0 | L72: =L68+'5'!L68 -> 0 | M72: =M68+'5'!M68 -> 0 | N72: =N68+'5'!N68 -> 0
C73: zapasy z dział dotychczasowej | D73: 10 | E73: =E69+'5'!E69 -> 0 | F73: =F69+'5'!F69 -> 0 | G73: =G69+'5'!G69 -> 0 | H73: =H69+'5'!H69 -> 0 | I73: =H73 -> 0 | J73: =J69+'5'!J69 -> 0 | K73: =K69+'5'!K69 -> 0 | L73: =L69+'5'!L69 -> 0 | M73: =M69+'5'!M69 -> 0 | N73: =N69+'5'!N69 -> 0

Sheet 4_założenia KO (hidden)
B2: Założenia wypełniane przez TISE na podstawie wywiadu
B3: Założenia dotyczące nowego przedsięwzięcia
B4: Planowane zmiany kapitału obrotowego - w dniach | D4: 1 kw 2013 | E4: 2 kw | F4: 3 kw | G4: 4 kw | H4: 2013 | I4: 2014 | J4: 2015 | K4: 2016 | L4: 2017 | M4: 2018
D5: =D7-D6-D8 -> 0 | E5: =E7-E6-E8 -> 0 | F5: 0 | G5: 0 | H5: 0 | I5: 0 | J5: 0 | K5: 0 | L5: 0 | M5: =M7-M6-M8 -> 0
B6: jaki zakładasz średni czas / w dniach/ zapłaty przez odbiorców - Twoich klientów _ w związku ze sprzedażą wynikającą z planowanego przedsięwzięcia | D6: =IFERROR(D14,0) -> 0 | E6: =D6 -> 0 | F6: =E6 -> 0 | G6: 0 | H6: 0 | I6: 0 | J6: 0 | K6: 0 | L6: 0 | M6: 0
B7: jaki zakładasz średni czas / w dniach/ zapłaty przez Ciebie dla Twoich dostawców -w związku z zakupami wynikającymi z planowanego przedsięwzięcia | D7: =IFERROR(D15,0) -> 0 | E7: =D7 -> 0 | F7: =E7 -> 0 | G7: 0 | H7: 0 | I7: 0 | J7: 0 | K7: 0 | L7: 0 | M7: 0
B8: Ile / orientacyjnie/ dni będą zalegać zapasy ( towarów, produktów, materiałów - dotyczących nowego przedsięwzięcia) w Twoich magazynach | D8: 0 | E8: 0 | F8: =E8 -> 0 | G8: 0 | H8: 0 | I8: 0 | J8: 0 | K8: 0 | L8: 0 | M8: 0
B10: Założenia dotyczące dotychczasowej działalności
B12: Założenia dotyczące kapitału obrotowego w dotychczasowej działalności | C12: rok ubiegły | D12: 1 kw 1 rok | E12: 2 kw 1 rok | F12: 3 kw 1 rok | G12: 4 kw 1 rok | H12: =H4 -> 2013 | I12: =I4 -> 2014 | J12: 2015 | K12: 2016 | L12: 2017 | M12: =M4 -> 2018
B13: Planowane zmiany kapitału obrotowego - w dniach | C13: =C15-C14-C16 ->  | D13: =D15-D14-D16 -> 0 | E13: =E15-E14-E16 -> 0 | F13: 0 | G13: 0 | H13: 0 | I13: 0 | J13: 0 | K13: 0 | L13: 0 | M13: =M15-M14-M16 -> 0
B14: jaki zakładasz średni czas / w dniach/ zapłaty przez odbiorców - Twoich klientów - w związku ze sprzedażą w ramach dotychczasowej działąlności | C14: ='7'!D30 ->  | D14: =IFERROR(C14,0) -> 0 | E14: =D14 -> 0 | F14: =E14 -> 0 | G14: 0 | H14: 0 | I14: 0 | J14: 0 | K14: 0 | L14: 0 | M14: 0
B15: jaki zakładasz średni czas / w dniach/ zapłaty przez Ciebie dla Twoich dostawców - wzwiązku z zakupami w ramach dotychczasowej działalności | C15: ='7'!D31 ->  | D15: =IFERROR(C15,0) -> 0 | E15: =D15 -> 0 | F15: 0 | G15: 0 | H15: 0 | I15: 0 | J15: 0 | K15: 0 | L15: 0 | M15: 0
B16: Ile / orientacyjnie/ dni będą zalegać zapasy ( towarów, produktów, materiałów - wynikających z dotychczasowej działalności) w Twoich magazynach | C16: ='7'!D32 ->  | D16: 0 | E16: =D16 -> 0 | F16: 0 | G16: 0 | H16: 0 | I16: 0 | J16: 0 | K16: 0 | L16: 0 | M16: 0
B18: Założenia dotyczące zmian elementów uproszczonego bilansu sporządzonego przez wnioskodawcę | C18: rok ubiegły | D18: 1 kw 1 rok | E18: 2 kw 1 rok | F18: 3 kw 1 rok | G18: 4 kw 1 rok | H18: =H4 -> 2013 | I18: =I4 -> 2014 | J18: 2015 | K18: 2016 | L18: 2017 | M18: =M4 -> 2018
B19: Planowane stany" pozostałych należności " z uproszczonego bilansu | C19: ='3_Zał_F_TISE'!D9 -> 0 | D19: =C19 -> 0 | E19: =D19 -> 0 | F19: 0 | G19: 0 | H19: 0 | I19: 0 | J19: 0 | K19: 0 | L19: 0 | M19: 0
B20: Planowane stany" innych składników majątkowych " z uproszczonego bilansu | C20: ='7'!D35 -> 0 | D20: =C20 -> 0 | E20: =D20 -> 0 | F20: 0 | G20: 0 | H20: 0 | I20: 0 | J20: 0 | K20: 0 | L20: 0 | M20: 0
B21: Planowane stany "Pozostałych zobowiązań" z uproszczonego bilansu | C21: ='7'!D36 -> 0 | D21: 0 | E21: =D21 -> 0 | F21: 0 | G21: 0 | H21: 0 | I21: 0 | J21: 0 | K21: 0 | L21: 0 | M21: 0
B22: Planowane stany "Innych pasywów kr" z uproszczonego bilansu | C22: ='7'!D37 -> 0 | D22: 0 | E22: =D22 -> 0 | F22: 0 | G22: 0 | H22: 0 | I22: 0 | J22: 0 | K22: 0 | L22: 0 | M22: 0
B23: Planowane stany "Innych pasywów długoterm" z uproszczonego bilansu | C23: ='7'!D38 -> 0 | D23: 0 | E23: =D23 -> 0 | F23: 0 | G23: 0 | H23: 0 | I23: 0 | J23: 0 | K23: 0 | L23: 0 | M23: 0

Sheet 5_projekcje (hidden)
C1: projekcje - wyliczane automatycznie
C2: Aktywa | D2: ='3_Zał_F_dane fin i zał_klient'!G5 -> 2013 | E2: ='1_wniosek'!E124 -> Kwartał 1 | F2: ='1_wniosek'!F124 -> Kwartał 2 | G2: ='1_wniosek'!G124 -> Kwartał 3 | H2: ='1_wniosek'!H124 -> Kwartał 4 | I2: ='1_wniosek'!I123 -> 2014 | J2: ='1_wniosek'!J157 -> 2015 | K2: ='1_wniosek'!K157 -> 2016 | L2: ='1_wniosek'!L157 -> 2017 | M2: ='1_wniosek'!M157 -> 2018 | N2: ='1_wniosek'!N157 -> 2019 | R2: =E2 -> Kwartał 1 | S2: =F2 -> Kwartał 2 | T2: =G2 -> Kwartał 3 | U2: =H2 -> Kwartał 4 | W2: nie dotyczy | X2: 1
C3: Aktywa trwałe | D3: ='3_Zał_F_TISE'!D5 -> 0 | E3: =IF(R3=0,D3,(D3-E35+'7'!E56)) -> 0 | F3: =IF(S3=0,E3,(E3-F35+'7'!F56)) -> 0 | G3: =IF(T3=0,F3,(F3-G35+'7'!G56)) -> 0 | H3: =IF(U3=0,G3,(G3-H35+'7'!H56)) -> 0 | I3: =H3 -> 0 | J3: =I3-J35+'7'!J56 -> 0 | K3: =J3-K35+'7'!K56 -> 0 | L3: =K3-L35+'7'!L56 -> 0 | M3: =L3-M35+'7'!M56 -> 0 | N3: =M3-N35+'7'!N56 -> 0 | R3: =VLOOKUP(E2,'1_wniosek'!$AB$124:$AC$128,2,FALSE) -> 90 | S3: =VLOOKUP(F2,'1_wniosek'!$AB$124:$AC$128,2,FALSE) -> 180 | T3: =VLOOKUP(G2,'1_wniosek'!$AB$124:$AC$128,2,FALSE) -> 270 | U3: =VLOOKUP(H2,'1_wniosek'!$AB$124:$AC$128,2,FALSE) -> 360
C4: Zapasy | D4: ='3_Zał_F_TISE'!D6 -> 0 | E4: =IFERROR(IF(R3=0,D4,'7'!E73),0) -> 0 | F4: =IFERROR(IF(S3=0,E4,'7'!F73),0) -> 0 | G4: =IFERROR(IF(T3=0,F4,'7'!G73),0) -> 0 | H4: =IFERROR(IF(U3=0,G4,'7'!H73),0) -> 0 | I4: =H4 -> 0 | J4: =IFERROR('7'!J73,0) -> 0 | K4: =IFERROR('7'!K73,0) -> 0 | L4: =IFERROR('7'!L73,0) -> 0 | M4: =IFERROR('7'!M73,0) -> 0 | N4: =IFERROR('7'!N73,0) -> 0 | R4: =R3 -> 90 | S4: =S3 -> 180 | T4: =T3 -> 270 | U4: =U3 -> 360 | V4: =SUM(R4:U4) -> 900
C5: Należności | D5: =D6+D7 -> 0 | E5: =E6+E7 -> 0 | F5: =F6+F7 -> 0 | G5: =G6+G7 -> 0 | H5: =H6+H7 -> 0 | I5: =H5 -> 0 | J5: =J6+J7 -> 0 | K5: =K6+K7 -> 0 | L5: =L6+L7 -> 0 | M5: =M6+M7 -> 0 | N5: =N6+N7 -> 0
C6: - od odbiorców /handlowe/ | D6: ='3_Zał_F_TISE'!D8 -> 0 | E6: =IF(R3=0,D6,'7'!E71) -> 0 | F6: =IF(S3=0,E6,'7'!F71) -> 0 | G6: =IF(T3=0,F6,'7'!G71) -> 0 | H6: =IF(U3=0,G6,'7'!H71) -> 0 | I6: =H6 -> 0 | J6: ='7'!J71 -> 0 | K6: ='7'!K71 -> 0 | L6: ='7'!L71 -> 0 | M6: ='7'!M71 -> 0 | N6: ='7'!N71 -> 0 | R6: ='1_wniosek'!E187 -> prognoza | S6: ='1_wniosek'!F187 -> prognoza | T6: ='1_wniosek'!G187 -> prognoza | U6: ='1_wniosek'!H187 -> prognoza
C7: - pozostałe | D7: ='3_Zał_F_TISE'!D9 -> 0 | E7: ='4_założenia KO'!D19 -> 0 | F7: ='4_założenia KO'!E19 -> 0 | G7: ='4_założenia KO'!F19 -> 0 | H7: ='4_założenia KO'!G19 -> 0 | I7: =H7 -> 0 | J7: ='4_założenia KO'!I19 -> 0 | K7: ='4_założenia KO'!J19 -> 0 | L7: ='4_założenia KO'!K19 -> 0 | M7: ='4_założenia KO'!L19 -> 0 | N7: ='4_założenia KO'!M19 -> 0 | R7: =VLOOKUP('1_wniosek'!E187,'1_wniosek'!$S$186:$T$187,2,FALSE) -> 1 | S7: =VLOOKUP('1_wniosek'!F187,'1_wniosek'!$S$186:$T$187,2,FALSE) -> 1 | T7: =VLOOKUP('1_wniosek'!G187,'1_wniosek'!$S$186:$T$187,2,FALSE) -> 1 | U7: =VLOOKUP('1_wniosek'!H187,'1_wniosek'!$S$186:$T$187,2,FALSE) -> 1
C8: śr pieniężne | D8: ='3_Zał_F_TISE'!D10 -> 0 | E8: =IF(('7'!E65+'5_projekcje'!D8+'5_projekcje'!D7-'5_projekcje'!E7+'5_projekcje'!D10-'5_projekcje'!E10-'5_projekcje'!D20+'5_projekcje'!E20)<0,0,'7'!E65+'5_projekcje'!D9+'5_projekcje'!D7-'5_projekcje'!E7+'5_projekcje'!D10-'5_projekcje'!E10-'5_projekcje'!D20+'5_projekcje'!E20) -> 0 | F8: =IF(('7'!F65+'5_projekcje'!E8+'5_projekcje'!E7-'5_projekcje'!F7+'5_projekcje'!E10-'5_projekcje'!F10-'5_projekcje'!E20+'5_projekcje'!F20)<0,0,'7'!F65+'5_projekcje'!E9+'5_projekcje'!E7-'5_projekcje'!F7+'5_projekcje'!E10-'5_projekcje'!F10-'5_projekcje'!E20+'5_projekcje'!F20) -> 0 | G8: =IF(('7'!G65+'5_projekcje'!F8+'5_projekcje'!F7-'5_projekcje'!G7+'5_projekcje'!F10-'5_projekcje'!G10-'5_projekcje'!F20+'5_projekcje'!G20)<0,0,'7'!G65+'5_projekcje'!F9+'5_projekcje'!F7-'5_projekcje'!G7+'5_projekcje'!F10-'5_projekcje'!G10-'5_projekcje'!F20+'5_projekcje'!G20) -> 0 | H8: =IF(('7'!H65+'5_projekcje'!G8+'5_projekcje'!G7-'5_projekcje'!H7+'5_projekcje'!G10-'5_projekcje'!H10-'5_projekcje'!G20+'5_projekcje'!H20)<0,0,'7'!H65+'5_projekcje'!G9+'5_projekcje'!G7-'5_projekcje'!H7+'5_projekcje'!G10-'5_projekcje'!H10-'5_projekcje'!G20+'5_projekcje'!H20) -> 0 | I8: =IF(('7'!I65+'5_projekcje'!H8+'5_projekcje'!H7-'5_projekcje'!I7+'5_projekcje'!H10-'5_projekcje'!I10-'5_projekcje'!H20+'5_projekcje'!I20)<0,0,'7'!I65+'5_projekcje'!H9+'5_projekcje'!H7-'5_projekcje'!I7+'5_projekcje'!H10-'5_projekcje'!I10-'5_projekcje'!H20+'5_projekcje'!I20) -> 0 | J8: =IF(('7'!J65+'5_projekcje'!I8+'5_projekcje'!I7-'5_projekcje'!J7+'5_projekcje'!I10-'5_projekcje'!J10-'5_projekcje'!I20+'5_projekcje'!J20)<0,0,'7'!J65+'5_projekcje'!I9+'5_projekcje'!I7-'5_projekcje'!J7+'5_projekcje'!I10-'5_projekcje'!J10-'5_projekcje'!I20+'5_projekcje'!J20) -> 0 | K8: =IF(('7'!K65+'5_projekcje'!J8+'5_projekcje'!J7-'5_projekcje'!K7+'5_projekcje'!J10-'5_projekcje'!K10-'5_projekcje'!J20+'5_projekcje'!K20)<0,0,'7'!K65+'5_projekcje'!J9+'5_projekcje'!J7-'5_projekcje'!K7+'5_projekcje'!J10-'5_projekcje'!K10-'5_projekcje'!J20+'5_projekcje'!K20) -> 0 | L8: =IF(('7'!L65+'5_projekcje'!K8+'5_projekcje'!K7-'5_projekcje'!L7+'5_projekcje'!K10-'5_projekcje'!L10-'5_projekcje'!K20+'5_projekcje'!L20)<0,0,'7'!L65+'5_projekcje'!K9+'5_projekcje'!K7-'5_projekcje'!L7+'5_projekcje'!K10-'5_projekcje'!L10-'5_projekcje'!K20+'5_projekcje'!L20) -> 0 | M8: =IF(('7'!M65+'5_projekcje'!L8+'5_projekcje'!L7-'5_projekcje'!M7+'5_projekcje'!L10-'5_projekcje'!M10-'5_projekcje'!L20+'5_projekcje'!M20)<0,0,'7'!M65+'5_projekcje'!L9+'5_projekcje'!L7-'5_projekcje'!M7+'5_projekcje'!L10-'5_projekcje'!M10-'5_projekcje'!L20+'5_projekcje'!M20) -> 0 | N8: =IF(('7'!N65+'5_projekcje'!M8+'5_projekcje'!M7-'5_projekcje'!N7+'5_projekcje'!M10-'5_projekcje'!N10-'5_projekcje'!M20+'5_projekcje'!N20)<0,0,'7'!N65+'5_projekcje'!M9+'5_projekcje'!M7-'5_projekcje'!N7+'5_projekcje'!M10-'5_projekcje'!N10-'5_projekcje'!M20+'5_projekcje'!N20) -> 0
C9: śr pieniężne/popr/ | D9: =D8 -> 0 | E9: =IFERROR(IF(R3=0,D9,(IF(E105>E8,0,E8-E105))),0) -> 0 | F9: =IFERROR(IF(S3=0,E9,(IF(F105>F8,0,F8-F105))),0) -> 0 | G9: =IFERROR(IF(T3=0,F9,(IF(G105>G8,0,G8-G105))),0) -> 0 | H9: =IFERROR(IF(U3=0,G9,(IF(H105>H8,0,H8-H105))),0) -> 0 | I9: =IFERROR(IF(I105>I8,0,I8-I105),0) -> 0 | J9: 0 | K9: 0 | L9: 0 | M9: 0 | N9: 0
C10: inne składniki majątkowe | D10: ='3_Zał_F_TISE'!D11 -> 0 | E10: ='7'!E35 -> 0 | F10: ='7'!F35 -> 0 | G10: ='7'!G35 -> 0 | H10: ='7'!H35 -> 0 | I10: ='7'!I35 -> 0 | J10: ='7'!J35 -> 0 | K10: ='7'!K35 -> 0 | L10: ='7'!L35 -> 0 | M10: ='7'!M35 -> 0 | N10: ='7'!N35 -> 0
C11: Razem Aktywa | D11: =D3+D4+D5+D9+D10 -> 0 | E11: =E3+E4+E5+E8+E10 -> 0 | F11: 0 | G11: 0 | H11: 0 | I11: 0 | J11: 0 | K11: 0 | L11: 0 | M11: 0 | N11: 0
C12: Razem Aktywa | D12: =D11 -> 0 | E12: =E3+E4+E5+E9+E10 -> 0 | F12: 0 | G12: 0 | H12: 0 | I12: 0 | J12: 0 | K12: 0 | L12: 0 | M12: 0 | N12: 0
C14: Pasywa | D14: =D2 -> 2013 | E14: Kwartał 1 | F14: Kwartał 2 | G14: Kwartał 3 | H14: Kwartał 4 | I14: 2014 | J14: 2015 | K14: 2016 | L14: 2017 | M14: 2018 | N14: 2019
C15: Kapitały własne | D15: ='3_Zał_F_TISE'!G5 -> 0 | E15: =IF(R3=0,D15,(D15+'5_projekcje'!E43)) -> 0 | F15: =IF(S3=0,E15,(E15+'5_projekcje'!F43)) -> 0 | G15: =IF(T3=0,F15,(F15+'5_projekcje'!G43)) -> 0 | H15: =IF(U3=0,G15,(G15+'5_projekcje'!H43)) -> 0 | I15: =H15 -> 0 | J15: =I15+'5_projekcje'!J43 -> 0 | K15: =J15+'5_projekcje'!K43 -> 0 | L15: =K15+'5_projekcje'!L43 -> 0 | M15: =L15+'5_projekcje'!M43 -> 0 | N15: =M15+'5_projekcje'!N43 -> 0
C16: Dług oprocentowany długoterminowy/ kredyty pożyczki , leasingi/ | D16: ='3_Zał_F_TISE'!G7 -> 0 | E16: =IF(R3=0,D16,(D16-'7'!E64+'7'!E63)) -> 0 | F16: =IF(S3=0,E16,(E16-'7'!F64+'7'!F63)) -> 0 | G16: =IF(T3=0,F16,(F16-'7'!G64+'7'!G63)) -> 0 | H16: =IF(U3=0,G16,(G16-'7'!H64+'7'!H63)) -> 0 | I16: =H16 -> 0 | J16: =I16-'7'!J64+'7'!J63 -> 0 | K16: =J16-'7'!K64+'7'!K63 -> 0 | L16: =K16-'7'!L64+'7'!L63 -> 0 | M16: =L16-'7'!M64+'7'!M63 -> 0 | N16: =M16-'7'!N64+'7'!N63 -> 0
C17: Zobowiązania krótkoterminowe | D17: =D19+D20 -> 0 | E17: =E19+E20 -> 0 | F17: =F19+F20 -> 0 | G17: =G19+G20 -> 0 | H17: =H19+H20 -> 0 | I17: =H17 -> 0 | J17: =J19+J20 -> 0 | K17: =K19+K20 -> 0 | L17: =L19+L20 -> 0 | M17: =M19+M20 -> 0 | N17: =N19+N20 -> 0
C18: Zobowiązania krótkoterminowe/p/ | D18: =D17 -> 0 | E18: =E19+E21 -> 0 | F18: =F19+F21 -> 0 | G18: =G19+G21 -> 0 | H18: =H19+H21 -> 0 | I18: =H18 -> 0 | J18: =J19+J21 -> 0 | K18: =K19+K21 -> 0 | L18: =L19+L21 -> 0 | M18: =M19+M21 -> 0 | N18: =N19+N21 -> 0
C19: - handlowe | D19: ='3_Zał_F_TISE'!G9 -> 0 | E19: =IF(R3=0,D19,'7'!E72) -> 0 | F19: =IF(S3=0,E19,'7'!F72) -> 0 | G19: =IF(T3=0,F19,'7'!G72) -> 0 | H19: =IF(U3=0,G19,'7'!H72) -> 0 | I19: =H19 -> 0 | J19: ='7'!J72 -> 0 | K19: ='7'!K72 -> 0 | L19: ='7'!L72 -> 0 | M19: ='7'!M72 -> 0 | N19: ='7'!N72 -> 0
C20: - kredyty obrotowe | D20: ='3_Zał_F_TISE'!G10 -> 0
C21: kredyty, pożyczki krótkoterminowe | D21: =D20 -> 0 | E21: =IFERROR(IF(R3=0,D21,(IF(E105-E8>0,E105-E8,0))),0) -> 0 | F21: =IFERROR(IF(S3=0,E21,(IF(F105-F8>0,F105-F8,0))),0) -> 0 | G21: =IFERROR(IF(T3=0,F21,(IF(G105-G8>0,G105-G8,0))),0) -> 0 | H21: =IFERROR(IF(U3=0,G21,(IF(H105-H8>0,H105-H8,0))),0) -> 0 | I21: =IFERROR(IF(I105-I8>0,I105-I8,0),0) -> 0 | J21: 0 | K21: 0 | L21: 0 | M21: 0 | N21: 0
C22: Pozostałe zobowiązania | D22: ='3_Zał_F_TISE'!G11 -> 0 | E22: ='7'!E36 -> 0 | F22: ='7'!F36 -> 0 | G22: ='7'!G36 -> 0 | H22: ='7'!H36 -> 0 | I22: =H22 -> 0 | J22: ='7'!J36 -> 0 | K22: ='7'!K36 -> 0 | L22: ='7'!L36 -> 0 | M22: ='7'!M36 -> 0 | N22: ='7'!N36 -> 0
C23: Inne pasywa krótkoterm | D23: ='3_Zał_F_TISE'!G12 -> 0 | E23: ='7'!E37 -> 0 | F23: ='7'!F37 -> 0 | G23: ='7'!G37 -> 0 | H23: ='7'!H37 -> 0 | I23: =H23 -> 0 | J23: ='7'!J37 -> 0 | K23: ='7'!K37 -> 0 | L23: ='7'!L37 -> 0 | M23: ='7'!M37 -> 0 | N23: ='7'!N37 -> 0
C24: Inne pasywa długoterm | D24: ='3_Zał_F_TISE'!G13 -> 0 | E24: ='7'!E38 -> 0 | F24: ='7'!F38 -> 0 | G24: ='7'!G38 -> 0 | H24: ='7'!H38 -> 0 | I24: =H24 -> 0 | J24: ='7'!J38 -> 0 | K24: ='7'!K38 -> 0 | L24: ='7'!L38 -> 0 | M24: ='7'!M38 -> 0 | N24: ='7'!N38 -> 0
C25: Razem Pasywa | D25: =D15+D16+D17+D22+D23+D24 -> 0 | E25: 0 | F25: 0 | G25: 0 | H25: 0 | I25: 0 | J25: 0 | K25: 0 | L25: 0 | M25: 0 | N25: 0
C26: Razem Pasywa/p/ | D26: =D15+D16+D19+D21+D22+D23+D24 -> 0 | E26: =E15+E16+E18+E22+E23+E24 -> 0 | F26: 0 | G26: 0 | H26: 0 | I26: 0 | J26: 0 | K26: 0 | L26: 0 | M26: 0 | N26: 0
C27: różnica A-P | D27: =D12-D26 -> 0 | E27: 0 | F27: 0 | G27: 0 | H27: 0 | I27: 0 | J27: 0 | K27: 0 | L27: 0 | M27: 0 | N27: 0
C28: rzis | D28: =D2 -> 2013 | E28: Kwartał 1 | F28: Kwartał 2 | G28: Kwartał 3 | H28: Kwartał 4 | I28: 2014 | J28: 2015 | K28: 2016 | L28: 2017 | M28: 2018 | N28: 2019
C29: I. Przychody ogółem (II+III+IV+V), z tego | D29: ='3_Zał_F_TISE'!K5 -> 0 | E29: ='1_wniosek'!E188 -> 0 | F29: ='1_wniosek'!F188 -> 0 | G29: ='1_wniosek'!G188 -> 0 | H29: ='1_wniosek'!H188 -> 0 | I29: =SUM(E29:H29) -> 0 | J29: ='1_wniosek'!J188 -> 0 | K29: ='1_wniosek'!K188 -> 0 | L29: ='1_wniosek'!L188 -> 0 | M29: ='1_wniosek'!M188 -> 0 | N29: ='1_wniosek'!N188 -> 0
C30: II. Przychody z działalności gospodarczej , ze sprzedaży produktów, usług i towarów ogółem, z tego: | D30: ='3_Zał_F_TISE'!K6 -> 0 | E30: ='1_wniosek'!E189 -> 0 | F30: ='1_wniosek'!F189 -> 0 | G30: ='1_wniosek'!G189 -> 0 | H30: ='1_wniosek'!H189 -> 0 | I30: =SUM(E30:H30) -> 0 | J30: ='1_wniosek'!J189 -> 0 | K30: ='1_wniosek'!K189 -> 0 | L30: ='1_wniosek'!L189 -> 0 | M30: ='1_wniosek'!M189 -> 0 | N30: ='1_wniosek'!N189 -> 0
C31: III. Pozostałe przychody operacyjne | D31: ='3_Zał_F_TISE'!K7 -> 0 | E31: ='1_wniosek'!E192 -> 0 | F31: ='1_wniosek'!F192 -> 0 | G31: ='1_wniosek'!G192 -> 0 | H31: ='1_wniosek'!H192 -> 0 | I31: 0 | J31: ='1_wniosek'!J192 -> 0 | K31: ='1_wniosek'!K192 -> 0 | L31: ='1_wniosek'!L192 -> 0 | M31: ='1_wniosek'!M192 -> 0 | N31: ='1_wniosek'!N192 -> 0
C32: IV. Przychody finansowe | D32: ='3_Zał_F_TISE'!K8 -> 0 | E32: ='1_wniosek'!E193 -> 0 | F32: ='1_wniosek'!F193 -> 0 | G32: ='1_wniosek'!G193 -> 0 | H32: ='1_wniosek'!H193 -> 0 | I32: 0 | J32: ='1_wniosek'!J193 -> 0 | K32: ='1_wniosek'!K193 -> 0 | L32: ='1_wniosek'!L193 -> 0 | M32: ='1_wniosek'!M193 -> 0 | N32: ='1_wniosek'!N193 -> 0
C33: V. Przychody z działalności statutowej | D33: ='3_Zał_F_TISE'!K9 -> 0 | E33: ='1_wniosek'!E194 -> 0 | F33: ='1_wniosek'!F194 -> 0 | G33: ='1_wniosek'!G194 -> 0 | H33: ='1_wniosek'!H194 -> 0 | I33: 0 | J33: ='1_wniosek'!J194 -> 0 | K33: ='1_wniosek'!K194 -> 0 | L33: ='1_wniosek'!L194 -> 0 | M33: ='1_wniosek'!M194 -> 0 | N33: ='1_wniosek'!N194 -> 0
C34: VI. Koszty działalności gospodarczej, w tym | D34: ='3_Zał_F_TISE'!K10 -> 0 | E34: =SUM(E35:E40) -> 0 | F34: =SUM(F35:F40) -> 0 | G34: =SUM(G35:G40) -> 0 | H34: =SUM(H35:H40) -> 0 | I34: 0 | J34: =SUM(J35:J40) -> 0 | K34: =SUM(K35:K40) -> 0 | L34: =SUM(L35:L40) -> 0 | M34: =SUM(M35:M40) -> 0 | N34: =SUM(N35:N40) -> 0
C35: amortyzacja | D35: ='3_Zał_F_TISE'!K11 -> 0 | E35: ='1_wniosek'!E198+'1_wniosek'!E199 -> 0 | F35: ='1_wniosek'!F198+'1_wniosek'!F199 -> 0 | G35: ='1_wniosek'!G198+'1_wniosek'!G199 -> 0 | H35: ='1_wniosek'!H198+'1_wniosek'!H199 -> 0 | I35: 0 | J35: ='1_wniosek'!J198+'1_wniosek'!J199 -> 0 | K35: ='1_wniosek'!K198+'1_wniosek'!K199 -> 0 | L35: ='1_wniosek'!L198+'1_wniosek'!L199 -> 0 | M35: ='1_wniosek'!M198+'1_wniosek'!M199 -> 0 | N35: ='1_wniosek'!N198+'1_wniosek'!N199 -> 0
C36: koszty eksploatacyjne - np. czynsz,zużycie materiałów i energii, transport ,podatki , opłaty, inne | D36: ='3_Zał_F_TISE'!K12 -> 0 | E36: ='1_wniosek'!E200+'1_wniosek'!E134+'1_wniosek'!E148 -> 0 | F36: ='1_wniosek'!F200+'1_wniosek'!F134+'1_wniosek'!F148 -> 0 | G36: ='1_wniosek'!G200+'1_wniosek'!G134+'1_wniosek'!G148 -> 0 | H36: ='1_wniosek'!H200+'1_wniosek'!H134+'1_wniosek'!H148 -> 0 | I36: 0 | J36: ='1_wniosek'!J200+'1_wniosek'!J134+'1_wniosek'!J148 -> 0 | K36: ='1_wniosek'!K200+'1_wniosek'!K134+'1_wniosek'!K148 -> 0 | L36: ='1_wniosek'!L200+'1_wniosek'!L134+'1_wniosek'!L148 -> 0 | M36: ='1_wniosek'!M200+'1_wniosek'!M134+'1_wniosek'!M148 -> 0 | N36: ='1_wniosek'!N200+'1_wniosek'!N134+'1_wniosek'!N148 -> 0
C37: wynagrodzenia z narzutami | D37: ='3_Zał_F_TISE'!K13 -> 0 | E37: ='1_wniosek'!E201+'1_wniosek'!E135+'1_wniosek'!E149 -> 0 | F37: ='1_wniosek'!F201+'1_wniosek'!F135+'1_wniosek'!F149 -> 0 | G37: ='1_wniosek'!G201+'1_wniosek'!G135+'1_wniosek'!G149 -> 0 | H37: ='1_wniosek'!H201+'1_wniosek'!H135+'1_wniosek'!H149 -> 0 | I37: 0 | J37: ='1_wniosek'!J201+'1_wniosek'!J135+'1_wniosek'!J149 -> 0 | K37: ='1_wniosek'!K201+'1_wniosek'!K135+'1_wniosek'!K149 -> 0 | L37: ='1_wniosek'!L201+'1_wniosek'!L135+'1_wniosek'!L149 -> 0 | M37: ='1_wniosek'!M201+'1_wniosek'!M135+'1_wniosek'!M149 -> 0 | N37: ='1_wniosek'!N201+'1_wniosek'!N135+'1_wniosek'!N149 -> 0
C38: koszt sprzedanych towarów , materiałów , usług | D38: ='3_Zał_F_TISE'!K14 -> 0 | E38: ='1_wniosek'!E202 -> 0 | F38: ='1_wniosek'!F202 -> 0 | G38: ='1_wniosek'!G202 -> 0 | H38: ='1_wniosek'!H202 -> 0 | I38: 0 | J38: ='1_wniosek'!J202 -> 0 | K38: ='1_wniosek'!K202 -> 0 | L38: ='1_wniosek'!L202 -> 0 | M38: ='1_wniosek'!M202 -> 0 | N38: ='1_wniosek'!N202 -> 0
C39: Pozostałe koszty operacyjne | D39: ='3_Zał_F_TISE'!K15 -> 0 | E39: ='1_wniosek'!E206 -> 0 | F39: ='1_wniosek'!F206 -> 0 | G39: ='1_wniosek'!G206 -> 0 | H39: ='1_wniosek'!H206 -> 0 | I39: 0 | J39: ='1_wniosek'!J206 -> 0 | K39: ='1_wniosek'!K206 -> 0 | L39: ='1_wniosek'!L206 -> 0 | M39: ='1_wniosek'!M206 -> 0 | N39: ='1_wniosek'!N206 -> 0
C40: Koszty finansowe | D40: ='3_Zał_F_TISE'!K16 -> 0 | E40: ='1_wniosek'!E205+'1_wniosek'!E204 -> 0 | F40: ='1_wniosek'!F205+'1_wniosek'!F204 -> 0 | G40: ='1_wniosek'!G205+'1_wniosek'!G204 -> 0 | H40: ='1_wniosek'!H205+'1_wniosek'!H204 -> 0 | I40: 0 | J40: ='1_wniosek'!J205+'1_wniosek'!J204 -> 0 | K40: ='1_wniosek'!K205+'1_wniosek'!K204 -> 0 | L40: ='1_wniosek'!L205+'1_wniosek'!L204 -> 0 | M40: ='1_wniosek'!M205+'1_wniosek'!M204 -> 0 | N40: ='1_wniosek'!N205+'1_wniosek'!N204 -> 0
C41: VII. Koszty realizacji zadań statutowych | D41: ='3_Zał_F_TISE'!K17 -> 0 | E41: ='1_wniosek'!E207 -> 0 | F41: ='1_wniosek'!F207 -> 0 | G41: ='1_wniosek'!G207 -> 0 | H41: ='1_wniosek'!H207 -> 0 | I41: 0 | J41: ='1_wniosek'!J207 -> 0 | K41: ='1_wniosek'!K207 -> 0 | L41: ='1_wniosek'!L207 -> 0 | M41: ='1_wniosek'!M207 -> 0 | N41: ='1_wniosek'!N207 -> 0
C42: Podatek dochodowy | D42: ='3_Zał_F_TISE'!K19 -> 0 | E42: =IF((E29-E34-E39-E40-E41)>0,(E29-E34-E39-E40-E41)*19%,0) -> 0 | F42: 0 | G42: 0 | H42: 0 | I42: 0 | J42: 0 | K42: 0 | L42: 0 | M42: 0 | N42: 0
C43: Wynik netto | D43: ='3_Zał_F_TISE'!K20 -> 0 | E43: =E29-E34-E41-E42 -> 0 | F43: 0 | G43: 0 | H43: 0 | I43: 0 | J43: 0 | K43: 0 | L43: 0 | M43: 0 | N43: 0
C45: =#REF! ->  | D45: =#REF! ->  | E45: =#REF! ->  | F45: =#REF! ->  | G45: =#REF! ->  | H45: =#REF! ->  | I45: =#REF! ->  | J45: =#REF! ->  | K45: =#REF! ->  | L45: =#REF! ->  | M45: =#REF! ->  | N45: =#REF! -> 
B46: 1. | C46: Suma przepływów pienięznych dla Właściela | D46: =#REF! ->  | E46: =#REF! ->  | F46: =#REF! ->  | G46: =#REF! ->  | H46: =#REF! ->  | I46: =#REF! ->  | J46: =#REF! ->  | K46: =#REF! ->  | L46: =#REF! ->  | M46: =#REF! ->  | N46: =#REF! ->  | O46: =IF((E120+F120+G120+H120+I120+J120+K120+L120+M120+N120)=0,"tak","nie") -> 
B47: 2. | C47: Wskaźnik EBITDA/Obsługa długu | D47: =#REF! ->  | E47: =#REF! ->  | F47: =#REF! ->  | G47: =#REF! ->  | H47: =#REF! ->  | I47: =#REF! ->  | J47: =#REF! ->  | K47: =#REF! ->  | L47: =#REF! ->  | M47: =#REF! ->  | N47: =#REF! -> 
B48: 3. | C48: Wskaźnik zadłużenia | D48: =#REF! ->  | E48: =#REF! ->  | F48: =#REF! ->  | G48: =#REF! ->  | H48: =#REF! ->  | I48: =#REF! ->  | J48: =#REF! ->  | K48: =#REF! ->  | L48: =#REF! ->  | M48: =#REF! ->  | N48: =#REF! -> 
B49: 4. | C49: Wskaźnik rentowności sprzedaży | D49: =#REF! ->  | E49: =#REF! ->  | F49: =#REF! ->  | G49: =#REF! ->  | H49: =#REF! ->  | I49: =#REF! ->  | J49: =#REF! ->  | K49: =#REF! ->  | L49: =#REF! ->  | M49: =#REF! ->  | N49: =#REF! -> 
B50: 5. | C50: Wskaźnik pokrycia aktywów trwałych kapitałem stałym | D50: =#REF! ->  | E50: =#REF! ->  | F50: =#REF! ->  | G50: =#REF! ->  | H50: =#REF! ->  | I50: =#REF! ->  | J50: =#REF! ->  | K50: =#REF! ->  | L50: =#REF! ->  | M50: =#REF! ->  | N50: =#REF! -> 
B52: Tabela 2 Kalkulacja przepływów pieniężnych z całej działalności Wnioskodawcy
B53: Przepływy pieniężne z działalności całejw tys. zł. | E53: =#REF! ->  | F53: =#REF! ->  | G53: =#REF! ->  | H53: =#REF! ->  | I53: =#REF! ->  | J53: =#REF! ->  | K53: =#REF! ->  | L53: =#REF! ->  | M53: =#REF! ->  | N53: =#REF! -> 
B54: - | C54: Nakłady inwestycyjne | E54: ='7'!E56 -> 0 | F54: ='7'!F56 -> 0 | G54: ='7'!G56 -> 0 | H54: ='7'!H56 -> 0 | I54: ='7'!I56 -> 0 | J54: ='7'!J56 -> 0 | K54: ='7'!K56 -> 0 | L54: ='7'!L56 -> 0 | M54: ='7'!M56 -> 0 | N54: ='7'!N56 -> 0
B55: + | C55: Przychody | E55: ='7'!E57 -> 0 | F55: ='7'!F57 -> 0 | G55: ='7'!G57 -> 0 | H55: ='7'!H57 -> 0 | I55: ='7'!I57 -> 0 | J55: ='7'!J57 -> 0 | K55: ='7'!K57 -> 0 | L55: ='7'!L57 -> 0 | M55: ='7'!M57 -> 0 | N55: ='7'!N57 -> 0
B56: - | C56: Koszty działalności operacyjnej / w tym również amortyzacja/ | E56: ='7'!E58 -> 0 | F56: ='7'!F58 -> 0 | G56: ='7'!G58 -> 0 | H56: ='7'!H58 -> 0 | I56: ='7'!I58 -> 0 | J56: ='7'!J58 -> 0 | K56: ='7'!K58 -> 0 | L56: ='7'!L58 -> 0 | M56: ='7'!M58 -> 0 | N56: ='7'!N58 -> 0
B57: - | C57: Koszty finansowe | E57: ='7'!E59 -> 0 | F57: ='7'!F59 -> 0 | G57: ='7'!G59 -> 0 | H57: ='7'!H59 -> 0 | I57: ='7'!I59 -> 0 | J57: ='7'!J59 -> 0 | K57: ='7'!K59 -> 0 | L57: ='7'!L59 -> 0 | M57: ='7'!M59 -> 0 | N57: ='7'!N59 -> 0
B58: - | C58: Podatek dochodowy | E58: ='7'!E60 -> 0 | F58: ='7'!F60 -> 0 | G58: ='7'!G60 -> 0 | H58: ='7'!H60 -> 0 | I58: ='7'!I60 -> 0 | J58: ='7'!J60 -> 0 | K58: ='7'!K60 -> 0 | L58: ='7'!L60 -> 0 | M58: ='7'!M60 -> 0 | N58: ='7'!N60 -> 0
B59: + | C59: Amortyzacja | E59: ='7'!E61 -> 0 | F59: ='7'!F61 -> 0 | G59: ='7'!G61 -> 0 | H59: ='7'!H61 -> 0 | I59: ='7'!I61 -> 0 | J59: ='7'!J61 -> 0 | K59: ='7'!K61 -> 0 | L59: ='7'!L61 -> 0 | M59: ='7'!M61 -> 0 | N59: ='7'!N61 -> 0
B60: "-/+" | C60: Zmiany kapitału obrotowego | E60: ='7'!E62 -> 0 | F60: ='7'!F62 -> 0 | G60: ='7'!G62 -> 0 | H60: ='7'!H62 -> 0 | I60: ='7'!I62 -> 0 | J60: ='7'!J62 -> 0 | K60: ='7'!K62 -> 0 | L60: ='7'!L62 -> 0 | M60: ='7'!M62 -> 0 | N60: ='7'!N62 -> 0
B61: + | C61: Zaciągnięcia pożyczki | E61: ='7'!E63 -> 0 | F61: ='7'!F63 -> 0 | G61: ='7'!G63 -> 0 | H61: ='7'!H63 -> 0 | I61: ='7'!I63 -> 0 | J61: ='7'!J63 -> 0 | K61: ='7'!K63 -> 0 | L61: ='7'!L63 -> 0 | M61: ='7'!M63 -> 0 | N61: ='7'!N63 -> 0
B62: - | C62: Spłata pożyczki | E62: ='7'!E64 -> 0 | F62: ='7'!F64 -> 0 | G62: ='7'!G64 -> 0 | H62: ='7'!H64 -> 0 | I62: ='7'!I64 -> 0 | J62: ='7'!J64 -> 0 | K62: ='7'!K64 -> 0 | L62: ='7'!L64 -> 0 | M62: ='7'!M64 -> 0 | N62: ='7'!N64 -> 0
B63: = | C63: Przepływy pieniężne z przedsięwzięcia (FCFEI) | E63: ='7'!E65 -> 0 | F63: ='7'!F65 -> 0 | G63: ='7'!G65 -> 0 | H63: ='7'!H65 -> 0 | I63: ='7'!I65 -> 0 | J63: ='7'!J65 -> 0 | K63: ='7'!K65 -> 0 | L63: ='7'!L65 -> 0 | M63: ='7'!M65 -> 0 | N63: ='7'!N65 -> 0
B88: 1. | C88: Suma przepływów pienięznych dla Właściela
B89: 2. | C89: Wskaźnik EBITDA/Obsługa długu
B90: 3. | C90: Wskaźnik zadłużenia
B91: 4. | C91: Wskaźnik rentowności sprzedaży
B92: 5. | C92: Wskaźnik pokrycia aktywów stałych kapitałem trwałym
D104: =D11-D25 -> 0 | E104: =-E9 -> 0 | F104: 0 | G104: 0 | H104: 0 | I104: 0 | J104: 0 | K104: 0 | L104: 0 | M104: 0 | N104: 0
C105: różnica A- P | D105: =E12-E26 -> 0 | E105: =E11-E25 -> 0 | F105: 0 | G105: 0 | H105: 0 | I105: 0 | J105: 0 | K105: 0 | L105: 0 | M105: 0 | N105: 0
C106: sr pie sp | D106: =D8 -> 0
C107: śr pie sk | E107: =D106+'7'!E65+'5_projekcje'!E20-'5_projekcje'!D20+'5_projekcje'!D7-'5_projekcje'!E7+'5_projekcje'!D10-'5_projekcje'!E10 -> 0 | F107: =E106+'7'!F65+'5_projekcje'!F20-'5_projekcje'!E20+'5_projekcje'!E7-'5_projekcje'!F7+'5_projekcje'!E10-'5_projekcje'!F10 -> 0
C108: zm apbiez | E108: =D7-E7+D10-E10+E20-D20+E22-D22+E23-D23 -> 0
B110: Wskaźniki | D110: 2012 | E110: 1 kw | F110: 2 kw | G110: 3 kw | H110: 4 kw | I110: razem 1 rok | J110: 2 rok | K110: 3 rok | L110: 4 rok | M110: 5 rok | N110: 5 rok
B111: 1. | C111: Suma przepływów pienięznych dla Właściela | E111: ='7'!E65 -> 0 | F111: ='7'!F65 -> 0 | G111: ='7'!G65 -> 0 | H111: ='7'!H65 -> 0 | I111: ='7'!I65 -> 0 | J111: ='7'!J65 -> 0 | K111: ='7'!K65 -> 0 | L111: ='7'!L65 -> 0 | M111: ='7'!M65 -> 0 | N111: ='7'!N65 -> 0
B112: 2. | C112: Wskaźnik EBITDA/Obsługa długu | D112: =IFERROR((D43+D42+D40+D35)/'7'!D64,2) -> 2 | E112: =IFERROR((E43+E42+E40+E35)/'7'!E64,2) -> 2 | F112: =IFERROR((F43+F42+F40+F35)/'7'!F64,2) -> 2 | G112: =IFERROR((G43+G42+G40+G35)/'7'!G64,2) -> 2 | H112: =IFERROR((H43+H42+H40+H35)/'7'!H64,2) -> 2 | I112: =IFERROR((I43+I42+I40+I35)/'7'!I64,2) -> 2 | J112: =IFERROR((J43+J42+J40+J35)/'7'!J64,2) -> 2 | K112: =IFERROR((K43+K42+K40+K35)/'7'!K64,2) -> 2 | L112: =IFERROR((L43+L42+L40+L35)/'7'!L64,2) -> 2 | M112: =IFERROR((M43+M42+M40+M35)/'7'!M64,2) -> 2 | N112: =IFERROR((N43+N42+N40+N35)/'7'!N64,2) -> 2
B113: 3. | C113: Wskaźnik zadłużenia | E113: =(E16+E21+E22)/E26 -> 
B114: 4. | C114: Wskaźnik rentowności sprzedaży | D114: =D43/D29 -> 
B115: 5. | C115: Wskaźnik pokrycia aktywów stałych kapitałem trwałym | D115: =(D15+D16+D24)/D3 -> 
C116: kontrola śr pienięznych | F116: =F8-E8 -> 0 | G116: 0 | H116: 0 | I116: 0 | J116: 0 | K116: 0 | L116: 0 | M116: 0 | N116: 0
C117: różnica suma przepływów - kontrola śr pien | F117: =F111-F116 -> 0 | G117: 0 | H117: 0 | I117: 0 | J117: 0 | K117: 0 | L117: 0 | M117: 0 | N117: 0
C120: Suma przepływów pienięznych dla Właściela | E120: =IF(R7=2,0,(IF(#REF!<0,-1,0))) ->  | F120: =IF(S7=2,0,(IF(#REF!<0,-1,0))) ->  | G120: =IF(T7=2,0,(IF(#REF!<0,-1,0))) ->  | H120: =IF(U7=2,0,(IF(#REF!<0,-1,0))) ->  | I120: =IF(#REF!<0,-1,0) ->  | J120: =IF(#REF!<0,-1,0) ->  | K120: =IF(#REF!<0,-1,0) ->  | L120: =IF(#REF!<0,-1,0) ->  | M120: =IF(#REF!<0,-1,0) ->  | N120: =IF(#REF!<0,-1,0) -> 
C121: Wskaźnik EBITDA/Obsługa długu | E121: =IF(#REF!>1.3,1,0) ->  | F121: =IF(#REF!>1.3,1,0) ->  | G121: =IF(#REF!>1.3,1,0) ->  | H121: =IF(#REF!>1.3,1,0) ->  | I121: =IF(#REF!>1.3,1,0) ->  | J121: =IF(#REF!>1.3,1,0) ->  | K121: =IF(#REF!>1.3,1,0) ->  | L121: =IF(#REF!>1.3,1,0) ->  | M121: =IF(#REF!>1.3,1,0) ->  | N121: =IF(#REF!>1.3,1,0) ->  | O121: =SUM(E121:N121) -> 
C122: Wskaźnik zadłużenia | E122: =IF(#REF!<0.7,1,0) ->  | F122: =IF(#REF!<0.7,1,0) ->  | G122: =IF(#REF!<0.7,1,0) ->  | H122: =IF(#REF!<0.7,1,0) ->  | I122: =IF(#REF!<0.7,1,0) ->  | J122: =IF(#REF!<0.7,1,0) ->  | K122: =IF(#REF!<0.7,1,0) ->  | L122: =IF(#REF!<0.7,1,0) ->  | M122: =IF(#REF!<0.7,1,0) ->  | N122: =IF(#REF!<0.7,1,0) -> 
C123: Wskaźnik rentowności sprzedaży | E123: =IF(#REF!>0,1,0) ->  | F123: =IF(#REF!>0,1,0) ->  | G123: =IF(#REF!>0,1,0) ->  | H123: =IF(#REF!>0,1,0) ->  | I123: =IF(#REF!>0,1,0) ->  | J123: =IF(#REF!>0,1,0) ->  | K123: =IF(#REF!>0,1,0) ->  | L123: =IF(#REF!>0,1,0) ->  | M123: =IF(#REF!>0,1,0) ->  | N123: =IF(#REF!>0,1,0) -> 
C124: Wskaźnik pokrycia aktywów stałych kapitałem trwałym | E124: =IF(#REF!>1,1,0) ->  | F124: =IF(#REF!>1,1,0) ->  | G124: =IF(#REF!>1,1,0) ->  | H124: =IF(#REF!>1,1,0) ->  | I124: =IF(#REF!>1,1,0) ->  | J124: =IF(#REF!>1,1,0) ->  | K124: =IF(#REF!>1,1,0) ->  | L124: =IF(#REF!>1,1,0) ->  | M124: =IF(#REF!>1,1,0) ->  | N124: =IF(#REF!>1,1,0) -> 
C125: pokrycie wydatków w źródłach finansowania | E125: ='5_projekcje'!E130 -> 1 | F125: ='5_projekcje'!F130 -> 1 | G125: ='5_projekcje'!G130 -> 1 | H125: ='5_projekcje'!H130 -> 1 | I125: ='5_projekcje'!I130 -> 1 | J125: ='5_projekcje'!J130 -> 1 | K125: ='5_projekcje'!K130 -> 1 | L125: ='5_projekcje'!L130 -> 1 | M125: ='5_projekcje'!M130 -> 1 | N125: ='5_projekcje'!N130 -> 1 | O125: =SUM(E125:N125) -> 10
E126: =IF(R7=2,1,E125) -> 1 | F126: 1 | G126: 1 | H126: 1 | I126: 1 | J126: 1 | K126: 1 | L126: 1 | M126: 1 | N126: 1 | O126: =SUM(E126:N126) -> 10 | Q126: pokrycie inwestycji w źródłach
C127: z wniosku | O127: =IF((E126+F126+G126+H126+I126+J126+K126+L126+M126+N126)=10,"tak","nie") -> tak
C128: środki własne wnioskodawcy po wydatkach w danym okresie na przedsięwzięcie | E128: ='5_projekcje'!E9 -> 0 | F128: ='5_projekcje'!F9 -> 0 | G128: ='5_projekcje'!G9 -> 0 | H128: ='5_projekcje'!H9 -> 0 | I128: ='5_projekcje'!I9 -> 0 | J128: ='5_projekcje'!J9 -> 0 | K128: ='5_projekcje'!K9 -> 0 | L128: ='5_projekcje'!L9 -> 0 | M128: ='5_projekcje'!M9 -> 0 | N128: ='5_projekcje'!N9 -> 0
C129: "Inne" żródła finansowania niezbędne do uzyskania | E129: ='5_projekcje'!E21 -> 0 | F129: ='5_projekcje'!F21 -> 0 | G129: ='5_projekcje'!G21 -> 0 | H129: ='5_projekcje'!H21 -> 0 | I129: ='5_projekcje'!I21 -> 0 | J129: ='5_projekcje'!J21 -> 0 | K129: ='5_projekcje'!K21 -> 0 | L129: ='5_projekcje'!L21 -> 0 | M129: ='5_projekcje'!M21 -> 0 | N129: ='5_projekcje'!N21 -> 0
E130: =IF(E132>=0,1,0) -> 1 | F130: 1 | G130: 1 | H130: 1 | I130: 1 | J130: 1 | K130: 1 | L130: 1 | M130: 1 | N130: 1
C131: Różnica :żródła finansowania -wydatki i koszty - w każdym okresie | E131: =E133-'1_wniosek'!E154 -> 0 | F131: =F133-'1_wniosek'!F154 -> 0 | G131: =G133-'1_wniosek'!G154 -> 0 | H131: =H133-'1_wniosek'!H154 -> 0 | I131: =I133-'1_wniosek'!I154 -> 0 | J131: =J133-'1_wniosek'!J154 -> 0 | K131: =K133-'1_wniosek'!K154 -> 0 | L131: =L133-'1_wniosek'!L154 -> 0 | M131: =M133-'1_wniosek'!M154 -> 0 | N131: =N133-'1_wniosek'!N154 -> 0
C132: Różnica :żródła finansowania -wydatki i koszty - skumulowana | E132: =E131 -> 0 | F132: =E132+F131 -> 0 | G132: 0 | H132: 0 | I132: 0 | J132: 0 | K132: 0 | L132: 0 | M132: 0 | N132: 0
C133: Roboczy_Źródła finansowania przedsięwzięcia razem/ wartość wypłacanych środków w okresie/, z tego | E133: ='1_wniosek'!E161+'1_wniosek'!E160+'1_wniosek'!E162 -> 0 | F133: ='1_wniosek'!F161+'1_wniosek'!F160+'1_wniosek'!F162 -> 0 | G133: ='1_wniosek'!G161+'1_wniosek'!G160+'1_wniosek'!G162 -> 0 | H133: ='1_wniosek'!H161+'1_wniosek'!H160+'1_wniosek'!H162 -> 0 | I133: ='1_wniosek'!I161+'1_wniosek'!I160+'1_wniosek'!I162 -> 0 | J133: ='1_wniosek'!J161+'1_wniosek'!J160+'1_wniosek'!J162 -> 0 | K133: ='1_wniosek'!K161+'1_wniosek'!K160+'1_wniosek'!K162 -> 0 | L133: ='1_wniosek'!L161+'1_wniosek'!L160+'1_wniosek'!L162 -> 0 | M133: ='1_wniosek'!M161+'1_wniosek'!M160+'1_wniosek'!M162 -> 0 | N133: ='1_wniosek'!N161+'1_wniosek'!N160+'1_wniosek'!N162 -> 0 | P133: =SUM(I133:N133) -> 0

Sheet 10 (hidden)
